Workbook

Sheet Main
B10: 2022-04-22
B12: Sheet No. | C12: Template Name | D12: Summary
B13: 1 | C13: Future Intra | D13: For Intraday trading in F&O segment
B14: 2 | C14: Cash Intra | D14: For Intraday trading in cash market segment
B15: 3 | C15: Mid-cap Intra | D15: For Intraday trading in Mid-cap stocks
B16: 4 | C16: Bulk Deals | D16: Reveals Bulk Deals carried on NSE & BSE
B17: 5 | C17: Call Tracker
K27: `

Sheet Future Intra
M5: Back to Main Page
A6: FOR INTRA DAY TRADING | L6: =Main!B10 -> 2022-04-22
A9: Sr.no | B9: Sector | C9: Scrip | D9: Expiry Date | E9: CLOSE RATE | F9: Pivot Point | G9: Supports | J9: Resistances
E10: Point | F10: Point | G10: S1 | H10: S2 | I10: S3 | J10: R1 | K10: R2 | L10: R3 | M10: HIGH | N10: LOW | O10: OI | P10: % Change in OI
A11: 1 | B11: Index | C11: NIFTY | D11: 2022-04-28 | E11: 17410.15 | F11: 17357.05 | G11: 17275.10 | H11: 17140.05 | I11: 17058.10 | J11: 17492.10 | K11: 17574.05 | L11: 17709.10 | M11: 17439 | N11: 17222 | O11: 11987050 | P11: 8.43%
A12: 2 | B12: Index | C12: BANKNIFTY | D12: 2022-04-28 | E12: 36930.25 | F12: 36819.40 | G12: 36588.80 | H12: 36247.35 | I12: 36016.75 | J12: 37160.85 | K12: 37391.45 | L12: 37732.90 | M12: 37050 | N12: 36477.95 | O12: 2649550 | P12: -1.00%
A13: 3 | B13: Index | C13: FINNIFTY | D13: 2022-04-26 | E13: 17022.10 | F13: 16950.80 | G13: 16851.65 | H13: 16681.20 | I13: 16582.05 | J13: 17121.25 | K13: 17220.40 | L13: 17390.85 | M13: 17049.95 | N13: 16780.35 | O13: 3280 | P13: 7.89%
A14: 4 | B14: Index | C14: MIDCPNIFTY | D14: 2022-04-26 | E14: 7350.15 | F14: 2450.05 | G14: 4900.10 | H14: 2450.05 | I14: 4900.10 | J14: 4900.10 | K14: 2450.05 | L14: 4900.10 | M14: 0 | N14: 0 | O14: 1575 | P14: 0.00%
A15: 5 | B15: Chemical | C15: AARTIIND | D15: 2022-04-28 | E15: 945.00 | F15: 947.53 | G15: 940.67 | H15: 936.33 | I15: 929.47 | J15: 951.87 | K15: 958.73 | L15: 963.07 | M15: 954.4 | N15: 943.2 | O15: 2023850 | P15: 4.66%
A16: 6 | B16: Capital_Goods | C16: ABB | D16: 2022-04-28 | E16: 2143.20 | F16: 2144.87 | G16: 2124.78 | H16: 2106.37 | I16: 2086.28 | J16: 2163.28 | K16: 2183.37 | L16: 2201.78 | M16: 2164.95 | N16: 2126.45 | O16: 266250 | P16: 2.01%
A17: 7 | B17: Pharma | C17: ABBOTINDIA | D17: 2022-04-28 | E17: 17439.20 | F17: 17311.08 | G17: 17052.32 | H17: 16665.43 | I17: 16406.67 | J17: 17697.97 | K17: 17956.73 | L17: 18343.62 | M17: 17569.85 | N17: 16924.2 | O17: 35000 | P17: -4.76%
A18: 8 | B18: Others | C18: ABCAPITAL | D18: 2022-04-28 | E18: 113.65 | F18: 112.65 | G18: 111.40 | H18: 109.15 | I18: 107.90 | J18: 114.90 | K18: 116.15 | L18: 118.40 | M18: 113.9 | N18: 110.4 | O18: 22435600 | P18: 0.61%
A19: 9 | B19: Textile | C19: ABFRL | D19: 2022-04-28 | E19: 293.65 | F19: 294.18 | G19: 291.32 | H19: 288.98 | I19: 286.12 | J19: 296.52 | K19: 299.38 | L19: 301.72 | M19: 297.05 | N19: 291.85 | O19: 12009400 | P19: 4.53%
A20: 10 | B20: Cement | C20: ACC | D20: 2022-04-28 | E20: 2269.50 | F20: 2249.78 | G20: 2224.57 | H20: 2179.63 | I20: 2154.42 | J20: 2294.72 | K20: 2319.93 | L20: 2364.87 | M20: 2275 | N20: 2204.85 | O20: 3326000 | P20: -8.03%
A21: 11 | B21: Others | C21: ADANIENT | D21: 2022-04-28 | E21: 2292.20 | F21: 2266.38 | G21: 2232.77 | H21: 2173.33 | I21: 2139.72 | J21: 2325.82 | K21: 2359.43 | L21: 2418.87 | M21: 2300 | N21: 2206.95 | O21: 19820500 | P21: 3.55%
A22: 12 | B22: Others | C22: ADANIPORTS | D22: 2022-04-28 | E22: 853.60 | F22: 849.50 | G22: 837.70 | H22: 821.80 | I22: 810.00 | J22: 865.40 | K22: 877.20 | L22: 893.10 | M22: 861.3 | N22: 833.6 | O22: 78098750 | P22: 1.85%
A23: 13 | B23: Pharma | C23: ALKEM | D23: 2022-04-28 | E23: 3417.70 | F23: 3426.40 | G23: 3389.80 | H23: 3361.90 | I23: 3325.30 | J23: 3454.30 | K23: 3490.90 | L23: 3518.80 | M23: 3463 | N23: 3398.5 | O23: 195800 | P23: 4.93%
A24: 14 | B24: Automobile | C24: AMARAJABAT | D24: 2022-04-28 | E24: 572.60 | F24: 570.53 | G24: 566.07 | H24: 559.53 | I24: 555.07 | J24: 577.07 | K24: 581.53 | L24: 588.07 | M24: 575 | N24: 564 | O24: 6970000 | P24: -1.53%
A25: 15 | B25: Cement | C25: AMBUJACEM | D25: 2022-04-28 | E25: 378.25 | F25: 379.45 | G25: 374.10 | H25: 369.95 | I25: 364.60 | J25: 383.60 | K25: 388.95 | L25: 393.10 | M25: 384.8 | N25: 375.3 | O25: 31651500 | P25: -0.28%
A26: 16 | B26: Pharma | C26: APLLTD | D26: 2022-04-28 | E26: 771.75 | F26: 762.17 | G26: 751.58 | H26: 731.42 | I26: 720.83 | J26: 782.33 | K26: 792.92 | L26: 813.08 | M26: 772.75 | N26: 742 | O26: 1705900 | P26: -4.09%
A27: 17 | B27: Others | C27: APOLLOHOSP | D27: 2022-04-28 | E27: 4899.15 | F27: 4864.15 | G27: 4809.45 | H27: 4719.75 | I27: 4665.05 | J27: 4953.85 | K27: 5008.55 | L27: 5098.25 | M27: 4918.85 | N27: 4774.45 | O27: 1895750 | P27: 4.49%
A28: 18 | B28: Automobile | C28: APOLLOTYRE | D28: 2022-04-28 | E28: 204.50 | F28: 201.88 | G28: 198.92 | H28: 193.33 | I28: 190.37 | J28: 207.47 | K28: 210.43 | L28: 216.02 | M28: 204.85 | N28: 196.3 | O28: 13282500 | P28: 2.07%
A29: 19 | B29: Automobile | C29: ASHOKLEY | D29: 2022-04-28 | E29: 128.95 | F29: 129.27 | G29: 128.03 | H29: 127.12 | I29: 125.88 | J29: 130.18 | K29: 131.42 | L29: 132.33 | M29: 130.5 | N29: 128.35 | O29: 33687000 | P29: 6.20%
A30: 20 | B30: FMCG | C30: ASIANPAINT | D30: 2022-04-28 | E30: 3156.65 | F30: 3139.30 | G30: 3101.15 | H30: 3045.65 | I30: 3007.50 | J30: 3194.80 | K30: 3232.95 | L30: 3288.45 | M30: 3177.45 | N30: 3083.8 | O30: 5183100 | P30: 0.18%
A31: 21 | B31: Others | C31: ASTRAL | D31: 2022-04-28 | E31: 2127.25 | F31: 2136.53 | G31: 2104.27 | H31: 2081.28 | I31: 2049.02 | J31: 2159.52 | K31: 2191.78 | L31: 2214.77 | M31: 2168.8 | N31: 2113.55 | O31: 679525 | P31: -2.18%
A32: 22 | B32: Others | C32: ATUL | D32: 2022-04-28 | E32: 9903.35 | F32: 9832.88 | G32: 9729.42 | H32: 9555.48 | I32: 9452.02 | J32: 10006.82 | K32: 10110.28 | L32: 10284.22 | M32: 9936.35 | N32: 9658.95 | O32: 139275 | P32: -1.85%
A33: 23 | B33: Banking | C33: AUBANK | D33: 2022-04-28 | E33: 1435.55 | F33: 1442.13 | G33: 1416.22 | H33: 1396.88 | I33: 1370.97 | J33: 1461.47 | K33: 1487.38 | L33: 1506.72 | M33: 1468.05 | N33: 1422.8 | O33: 2884000 | P33: 8.50%
A34: 24 | B34: Pharma | C34: AUROPHARMA | D34: 2022-04-28 | E34: 676.15 | F34: 675.32 | G34: 671.68 | H34: 667.22 | I34: 663.58 | J34: 679.78 | K34: 683.42 | L34: 687.88 | M34: 678.95 | N34: 670.85 | O34: 15858000 | P34: 0.47%
A35: 25 | B35: Banking | C35: AXISBANK | D35: 2022-04-28 | E35: 803.95 | F35: 800.87 | G35: 795.43 | H35: 786.92 | I35: 781.48 | J35: 809.38 | K35: 814.82 | L35: 823.33 | M35: 806.3 | N35: 792.35 | O35: 46731600 | P35: 0.07%
A36: 26 | B36: Automobile | C36: BAJAJ-AUTO | D36: 2022-04-28 | E36: 3705.75 | F36: 3706.23 | G36: 3673.47 | H36: 3641.18 | I36: 3608.42 | J36: 3738.52 | K36: 3771.28 | L36: 3803.57 | M36: 3739 | N36: 3673.95 | O36: 2051000 | P36: -0.30%
A37: 27 | B37: Finance | C37: BAJAJFINSV | D37: 2022-04-28 | E37: 15878.65 | F37: 15849.77 | G37: 15628.93 | H37: 15379.22 | I37: 15158.38 | J37: 16099.48 | K37: 16320.32 | L37: 16570.03 | M37: 16070.6 | N37: 15600.05 | O37: 640400 | P37: -0.41%
A38: 28 | B38: Finance | C38: BAJFINANCE | D38: 2022-04-28 | E38: 7163.15 | F38: 7139.35 | G38: 7070.70 | H38: 6978.25 | I38: 6909.60 | J38: 7231.80 | K38: 7300.45 | L38: 7392.90 | M38: 7208 | N38: 7046.9 | O38: 4083625 | P38: 0.46%
A39: 29 | B39: Automobile | C39: BALKRISIND | D39: 2022-04-28 | E39: 2168.60 | F39: 2154.00 | G39: 2118.00 | H39: 2067.40 | I39: 2031.40 | J39: 2204.60 | K39: 2240.60 | L39: 2291.20 | M39: 2190 | N39: 2103.4 | O39: 1230200 | P39: 1.38%
A40: 30 | B40: Others | C40: BALRAMCHIN | D40: 2022-04-28 | E40: 497.85 | F40: 497.62 | G40: 487.73 | H40: 477.62 | I40: 467.73 | J40: 507.73 | K40: 517.62 | L40: 527.73 | M40: 507.5 | N40: 487.5 | O40: 8131200 | P40: -0.47%
A41: 31 | B41: Banking | C41: BANDHANBNK | D41: 2022-04-28 | E41: 337.85 | F41: 335.18 | G41: 328.87 | H41: 319.88 | I41: 313.57 | J41: 344.17 | K41: 350.48 | L41: 359.47 | M41: 341.5 | N41: 326.2 | O41: 38377800 | P41: 2.10%
A42: 32 | B42: Banking | C42: BANKBARODA | D42: 2022-04-28 | E42: 114.35 | F42: 114.10 | G42: 113.50 | H42: 112.65 | I42: 112.05 | J42: 114.95 | K42: 115.55 | L42: 116.40 | M42: 114.7 | N42: 113.25 | O42: 118883700 | P42: 0.47%
A43: 33 | B43: FMCG | C43: BATAINDIA | D43: 2022-04-28 | E43: 1955.20 | F43: 1949.42 | G43: 1930.43 | H43: 1905.67 | I43: 1886.68 | J43: 1974.18 | K43: 1993.17 | L43: 2017.93 | M43: 1968.4 | N43: 1924.65 | O43: 1632950 | P43: 4.21%
A44: 34 | B44: Capital_Goods | C44: BEL | D44: 2022-04-28 | E44: 253.85 | F44: 255.13 | G44: 251.42 | H44: 248.98 | I44: 245.27 | J44: 257.57 | K44: 261.28 | L44: 263.72 | M44: 258.85 | N44: 252.7 | O44: 33383000 | P44: 3.67%
A45: 35 | B45: FMCG | C45: BERGEPAINT | D45: 2022-04-28 | E45: 717.80 | F45: 719.97 | G45: 712.33 | H45: 706.87 | I45: 699.23 | J45: 725.43 | K45: 733.07 | L45: 738.53 | M45: 727.6 | N45: 714.5 | O45: 4425300 | P45: 5.48%
A46: 36 | B46: Automobile | C46: BHARATFORG | D46: 2022-04-28 | E46: 741.65 | F46: 742.07 | G46: 733.13 | H46: 724.62 | I46: 715.68 | J46: 750.58 | K46: 759.52 | L46: 768.03 | M46: 751 | N46: 733.55 | O46: 5866500 | P46: 3.91%
A47: 37 | B47: Telecom | C47: BHARTIARTL | D47: 2022-04-28 | E47: 734.95 | F47: 736.08 | G47: 728.22 | H47: 721.48 | I47: 713.62 | J47: 742.82 | K47: 750.68 | L47: 757.42 | M47: 743.95 | N47: 729.35 | O47: 47896150 | P47: -2.46%
A48: 38 | B48: Capital_Goods | C48: BHEL | D48: 2022-04-28 | E48: 54.85 | F48: 54.78 | G48: 54.32 | H48: 53.78 | I48: 53.32 | J48: 55.32 | K48: 55.78 | L48: 56.32 | M48: 55.25 | N48: 54.25 | O48: 110890500 | P48: 2.01%
A49: 39 | B49: Pharma | C49: BIOCON | D49: 2022-04-28 | E49: 373.70 | F49: 366.18 | G49: 357.22 | H49: 340.73 | I49: 331.77 | J49: 382.67 | K49: 391.63 | L49: 408.12 | M49: 375.15 | N49: 349.7 | O49: 15251300 | P49: 4.52%
A50: 40 | B50: Automobile | C50: BOSCHLTD | D50: 2022-04-28 | E50: 14694.40 | F50: 14627.35 | G50: 14537.00 | H50: 14379.60 | I50: 14289.25 | J50: 14784.75 | K50: 14875.10 | L50: 15032.50 | M50: 14717.7 | N50: 14469.95 | O50: 152650 | P50: 1.36%
A51: 41 | B51: Oil_Gas | C51: BPCL | D51: 2022-04-28 | E51: 397.45 | F51: 395.60 | G51: 392.20 | H51: 386.95 | I51: 383.55 | J51: 400.85 | K51: 404.25 | L51: 409.50 | M51: 399 | N51: 390.35 | O51: 19233000 | P51: -1.37%
A52: 42 | B52: FMCG | C52: BRITANNIA | D52: 2022-04-28 | E52: 3365.40 | F52: 3339.17 | G52: 3301.23 | H52: 3237.07 | I52: 3199.13 | J52: 3403.33 | K52: 3441.27 | L52: 3505.43 | M52: 3377.1 | N52: 3275 | O52: 1466600 | P52: 3.33%
A53: 43 | B53: Technology | C53: BSOFT | D53: 2022-04-28 | E53: 432.20 | F53: 429.45 | G53: 423.35 | H53: 414.50 | I53: 408.40 | J53: 438.30 | K53: 444.40 | L53: 453.25 | M53: 435.55 | N53: 420.6 | O53: 4360200 | P53: -6.76%
A54: 44 | B54: Banking | C54: CANBK | D54: 2022-04-28 | E54: 238.75 | F54: 237.70 | G54: 236.05 | H54: 233.35 | I54: 231.70 | J54: 240.40 | K54: 242.05 | L54: 244.75 | M54: 239.35 | N54: 235 | O54: 45133200 | P54: -0.26%
A55: 45 | B55: Finance | C55: CANFINHOME | D55: 2022-04-28 | E55: 639.60 | F55: 641.97 | G55: 633.13 | H55: 626.67 | I55: 617.83 | J55: 648.43 | K55: 657.27 | L55: 663.73 | M55: 650.8 | N55: 635.5 | O55: 3284775 | P55: 0.63%
A56: 46 | B56: Others | C56: CHAMBLFERT | D56: 2022-04-28 | E56: 478.25 | F56: 470.53 | G56: 459.27 | H56: 440.28 | I56: 429.02 | J56: 489.52 | K56: 500.78 | L56: 519.77 | M56: 481.8 | N56: 451.55 | O56: 3573000 | P56: 3.12%
A57: 47 | B57: Finance | C57: CHOLAFIN | D57: 2022-04-28 | E57: 723.35 | F57: 721.32 | G57: 713.93 | H57: 704.52 | I57: 697.13 | J57: 730.73 | K57: 738.12 | L57: 747.53 | M57: 728.7 | N57: 711.9 | O57: 9041250 | P57: 1.32%
A58: 48 | B58: Pharma | C58: CIPLA | D58: 2022-04-28 | E58: 1001.40 | F58: 1008.97 | G58: 991.93 | H58: 982.47 | I58: 965.43 | J58: 1018.43 | K58: 1035.47 | L58: 1044.93 | M58: 1026 | N58: 999.5 | O58: 8983000 | P58: 4.90%
A59: 49 | B59: Others | C59: COALINDIA | D59: 2022-04-28 | E59: 207.05 | F59: 205.33 | G59: 202.67 | H59: 198.28 | I59: 195.62 | J59: 209.72 | K59: 212.38 | L59: 216.77 | M59: 208 | N59: 200.95 | O59: 50983800 | P59: 10.24%
A60: 50 | B60: Technology | C60: COFORGE | D60: 2022-04-28 | E60: 4099.00 | F60: 4070.00 | G60: 4029.00 | H60: 3959.00 | I60: 3918.00 | J60: 4140.00 | K60: 4181.00 | L60: 4251.00 | M60: 4111 | N60: 4000 | O60: 993100 | P60: 2.73%
A61: 51 | B61: FMCG | C61: COLPAL | D61: 2022-04-28 | E61: 1551.90 | F61: 1547.58 | G61: 1535.17 | H61: 1518.43 | I61: 1506.02 | J61: 1564.32 | K61: 1576.73 | L61: 1593.47 | M61: 1560 | N61: 1530.85 | O61: 2417800 | P61: 1.47%
A62: 52 | B62: Others | C62: CONCOR | D62: 2022-04-28 | E62: 658.60 | F62: 659.22 | G62: 651.43 | H62: 644.27 | I62: 636.48 | J62: 666.38 | K62: 674.17 | L62: 681.33 | M62: 667 | N62: 652.05 | O62: 6112800 | P62: 0.43%
A63: 53 | B63: Others | C63: COROMANDEL | D63: 2022-04-28 | E63: 842.50 | F63: 840.93 | G63: 823.97 | H63: 805.43 | I63: 788.47 | J63: 859.47 | K63: 876.43 | L63: 894.97 | M63: 857.9 | N63: 822.4 | O63: 1365625 | P63: 11.25%
A64: 54 | B64: Capital_Goods | C64: CROMPTON | D64: 2022-04-28 | E64: 382.00 | F64: 383.30 | G64: 378.80 | H64: 375.60 | I64: 371.10 | J64: 386.50 | K64: 391.00 | L64: 394.20 | M64: 387.8 | N64: 380.1 | O64: 5309700 | P64: 3.87%
A65: 55 | B65: Banking | C65: CUB | D65: 2022-04-28 | E65: 137.65 | F65: 136.92 | G65: 135.18 | H65: 132.72 | I65: 130.98 | J65: 139.38 | K65: 141.12 | L65: 143.58 | M65: 138.65 | N65: 134.45 | O65: 12971000 | P65: 0.13%
A66: 56 | B66: Capital_Goods | C66: CUMMINSIND | D66: 2022-04-28 | E66: 1091.70 | F66: 1096.93 | G66: 1077.77 | H66: 1063.83 | I66: 1044.67 | J66: 1110.87 | K66: 1130.03 | L66: 1143.97 | M66: 1116.1 | N66: 1083 | O66: 1794600 | P66: 3.32%
A67: 57 | B67: FMCG | C67: DABUR | D67: 2022-04-28 | E67: 561.55 | F67: 558.58 | G67: 553.87 | H67: 546.18 | I67: 541.47 | J67: 566.27 | K67: 570.98 | L67: 578.67 | M67: 563.3 | N67: 550.9 | O67: 11513750 | P67: 2.28%
A68: 58 | B68: Cement | C68: DALBHARAT | D68: 2022-04-28 | E68: 1616.95 | F68: 1615.45 | G68: 1601.50 | H68: 1586.05 | I68: 1572.10 | J68: 1630.90 | K68: 1644.85 | L68: 1660.30 | M68: 1629.4 | N68: 1600 | O68: 1249000 | P68: 1.40%
A69: 59 | B69: Chemical | C69: DEEPAKNTR | D69: 2022-04-28 | E69: 2297.55 | F69: 2282.12 | G69: 2255.03 | H69: 2212.52 | I69: 2185.43 | J69: 2324.63 | K69: 2351.72 | L69: 2394.23 | M69: 2309.2 | N69: 2239.6 | O69: 1803250 | P69: 2.12%
A70: 60 | B70: Others | C70: DELTACORP | D70: 2022-04-28 | E70: 292.75 | F70: 292.07 | G70: 288.88 | H70: 285.02 | I70: 281.83 | J70: 295.93 | K70: 299.12 | L70: 302.98 | M70: 295.25 | N70: 288.2 | O70: 13650500 | P70: 1.07%
A71: 61 | B71: Pharma | C71: DIVISLAB | D71: 2022-04-28 | E71: 4535.30 | F71: 4512.38 | G71: 4469.77 | H71: 4404.23 | I71: 4361.62 | J71: 4577.92 | K71: 4620.53 | L71: 4686.07 | M71: 4555 | N71: 4446.85 | O71: 2076200 | P71: -1.24%
A72: 62 | B72: Others | C72: DIXON | D72: 2022-04-28 | E72: 4271.60 | F72: 4263.13 | G72: 4229.72 | H72: 4187.83 | I72: 4154.42 | J72: 4305.02 | K72: 4338.43 | L72: 4380.32 | M72: 4296.55 | N72: 4221.25 | O72: 704875 | P72: 1.13%
A73: 63 | B73: Realty | C73: DLF | D73: 2022-04-28 | E73: 390.15 | F73: 387.25 | G73: 383.60 | H73: 377.05 | I73: 373.40 | J73: 393.80 | K73: 397.45 | L73: 404.00 | M73: 390.9 | N73: 380.7 | O73: 40250100 | P73: 2.48%
A74: 64 | B74: Pharma | C74: DRREDDY | D74: 2022-04-28 | E74: 4335.20 | F74: 4340.98 | G74: 4319.22 | H74: 4303.23 | I74: 4281.47 | J74: 4356.97 | K74: 4378.73 | L74: 4394.72 | M74: 4362.75 | N74: 4325 | O74: 2745375 | P74: -1.30%
A75: 65 | B75: Automobile | C75: EICHERMOT | D75: 2022-04-28 | E75: 2651.50 | F75: 2623.62 | G75: 2569.33 | H75: 2487.17 | I75: 2432.88 | J75: 2705.78 | K75: 2760.07 | L75: 2842.23 | M75: 2677.9 | N75: 2541.45 | O75: 3526600 | P75: 5.20%
A76: 66 | B76: Automobile | C76: ESCORTS | D76: 2022-04-28 | E76: 1592.40 | F76: 1573.95 | G76: 1552.80 | H76: 1513.20 | I76: 1492.05 | J76: 1613.55 | K76: 1634.70 | L76: 1674.30 | M76: 1595.1 | N76: 1534.35 | O76: 3908850 | P76: -5.15%
A77: 67 | B77: Automobile | C77: EXIDEIND | D77: 2022-04-28 | E77: 156.90 | F77: 156.48 | G77: 155.72 | H77: 154.53 | I77: 153.77 | J77: 157.67 | K77: 158.43 | L77: 159.62 | M77: 157.25 | N77: 155.3 | O77: 22003200 | P77: -0.59%
A78: 68 | B78: Banking | C78: FEDERALBNK | D78: 2022-04-28 | E78: 96.90 | F78: 96.65 | G78: 96.10 | H78: 95.30 | I78: 94.75 | J78: 97.45 | K78: 98.00 | L78: 98.80 | M78: 97.2 | N78: 95.85 | O78: 72460000 | P78: 4.62%
A79: 69 | B79: Technology | C79: FSL | D79: 2022-04-28 | E79: 129.30 | F79: 129.05 | G79: 128.40 | H79: 127.50 | I79: 126.85 | J79: 129.95 | K79: 130.60 | L79: 131.50 | M79: 129.7 | N79: 128.15 | O79: 12415000 | P79: 1.06%
A80: 70 | B80: Oil_Gas | C80: GAIL | D80: 2022-04-28 | E80: 164.60 | F80: 163.60 | G80: 162.00 | H80: 159.40 | I80: 157.80 | J80: 166.20 | K80: 167.80 | L80: 170.40 | M80: 165.2 | N80: 161 | O80: 34928600 | P80: 8.63%
A81: 71 | B81: Pharma | C81: GLENMARK | D81: 2022-04-28 | E81: 454.90 | F81: 457.08 | G81: 451.82 | H81: 448.73 | I81: 443.47 | J81: 460.17 | K81: 465.43 | L81: 468.52 | M81: 462.35 | N81: 454 | O81: 6705650 | P81: 6.35%
A82: 72 | B82: Infrastructure | C82: GMRINFRA | D82: 2022-04-28 | E82: 38.00 | F82: 37.78 | G82: 37.42 | H82: 36.83 | I82: 36.47 | J82: 38.37 | K82: 38.73 | L82: 39.32 | M82: 38.15 | N82: 37.2 | O82: 113355000 | P82: 1.16%
A83: 73 | B83: Others | C83: GNFC | D83: 2022-04-28 | E83: 882.35 | F83: 882.72 | G83: 872.93 | H83: 863.52 | I83: 853.73 | J83: 892.13 | K83: 901.92 | L83: 911.33 | M83: 892.5 | N83: 873.3 | O83: 3653000 | P83: 14.37%
A84: 74 | B84: FMCG | C84: GODREJCP | D84: 2022-04-28 | E84: 800.25 | F84: 802.80 | G84: 793.25 | H84: 786.25 | I84: 776.70 | J84: 809.80 | K84: 819.35 | L84: 826.35 | M84: 812.35 | N84: 795.8 | O84: 5982500 | P84: 0.93%
A85: 75 | B85: Realty | C85: GODREJPROP | D85: 2022-04-28 | E85: 1598.45 | F85: 1597.80 | G85: 1585.85 | H85: 1573.25 | I85: 1561.30 | J85: 1610.40 | K85: 1622.35 | L85: 1634.95 | M85: 1609.75 | N85: 1585.2 | O85: 4225325 | P85: 1.19%
A86: 76 | B86: Pharma | C86: GRANULES | D86: 2022-04-28 | E86: 291.75 | F86: 291.68 | G86: 290.32 | H86: 288.88 | I86: 287.52 | J86: 293.12 | K86: 294.48 | L86: 295.92 | M86: 293.05 | N86: 290.25 | O86: 11938100 | P86: 2.65%
A87: 77 | B87: Cement | C87: GRASIM | D87: 2022-04-28 | E87: 1767.70 | F87: 1760.27 | G87: 1746.93 | H87: 1726.17 | I87: 1712.83 | J87: 1781.03 | K87: 1794.37 | L87: 1815.13 | M87: 1773.6 | N87: 1739.5 | O87: 9654850 | P87: 1.04%
A88: 78 | B88: Oil_Gas | C88: GSPL | D88: 2022-04-28 | E88: 279.70 | F88: 279.72 | G88: 277.78 | H88: 275.87 | I88: 273.93 | J88: 281.63 | K88: 283.57 | L88: 285.48 | M88: 281.65 | N88: 277.8 | O88: 2881500 | P88: 3.10%
A89: 79 | B89: Oil_Gas | C89: GUJGASLTD | D89: 2022-04-28 | E89: 523.30 | F89: 521.75 | G89: 518.90 | H89: 514.50 | I89: 511.65 | J89: 526.15 | K89: 529.00 | L89: 533.40 | M89: 524.6 | N89: 517.35 | O89: 3266250 | P89: -1.40%
A90: 80 | B90: Others | C90: HAL | D90: 2022-04-28 | E90: 1682.45 | F90: 1689.68 | G90: 1667.57 | H90: 1652.68 | I90: 1630.57 | J90: 1704.57 | K90: 1726.68 | L90: 1741.57 | M90: 1711.8 | N90: 1674.8 | O90: 2478075 | P90: 0.56%
A91: 81 | B91: Capital_Goods | C91: HAVELLS | D91: 2022-04-28 | E91: 1324.90 | F91: 1317.92 | G91: 1304.98 | H91: 1285.07 | I91: 1272.13 | J91: 1337.83 | K91: 1350.77 | L91: 1370.68 | M91: 1330.85 | N91: 1298 | O91: 5184500 | P91: 2.98%
A92: 82 | B92: Technology | C92: HCLTECH | D92: 2022-04-28 | E92: 1091.30 | F92: 1086.22 | G92: 1076.13 | H92: 1060.97 | I92: 1050.88 | J92: 1101.38 | K92: 1111.47 | L92: 1126.63 | M92: 1096.3 | N92: 1071.05 | O92: 22330700 | P92: -0.68%
A93: 83 | B93: Finance | C93: HDFC | D93: 2022-04-28 | E93: 2230.90 | F93: 2220.83 | G93: 2195.07 | H93: 2159.23 | I93: 2133.47 | J93: 2256.67 | K93: 2282.43 | L93: 2318.27 | M93: 2246.6 | N93: 2185 | O93: 27810600 | P93: -3.07%
A94: 84 | B94: Finance | C94: HDFCAMC | D94: 2022-04-28 | E94: 2099.10 | F94: 2100.20 | G94: 2085.85 | H94: 2072.60 | I94: 2058.25 | J94: 2113.45 | K94: 2127.80 | L94: 2141.05 | M94: 2114.55 | N94: 2086.95 | O94: 3603600 | P94: 7.83%
A95: 85 | B95: Banking | C95: HDFCBANK | D95: 2022-04-28 | E95: 1380.65 | F95: 1375.22 | G95: 1364.18 | H95: 1347.72 | I95: 1336.68 | J95: 1391.68 | K95: 1402.72 | L95: 1419.18 | M95: 1386.25 | N95: 1358.75 | O95: 88644600 | P95: 4.42%
A96: 86 | B96: Finance | C96: HDFCLIFE | D96: 2022-04-28 | E96: 570.90 | F96: 568.00 | G96: 559.70 | H96: 548.50 | I96: 540.20 | J96: 579.20 | K96: 587.50 | L96: 598.70 | M96: 576.3 | N96: 556.8 | O96: 24847900 | P96: -3.25%
A97: 87 | B97: Automobile | C97: HEROMOTOCO | D97: 2022-04-28 | E97: 2321.05 | F97: 2310.63 | G97: 2294.02 | H97: 2266.98 | I97: 2250.37 | J97: 2337.67 | K97: 2354.28 | L97: 2381.32 | M97: 2327.25 | N97: 2283.6 | O97: 3822600 | P97: 0.40%
A98: 88 | B98: Metals | C98: HINDALCO | D98: 2022-04-28 | E98: 541.25 | F98: 539.73 | G98: 532.52 | H98: 523.78 | I98: 516.57 | J98: 548.47 | K98: 555.68 | L98: 564.42 | M98: 546.95 | N98: 531 | O98: 27410350 | P98: 2.31%
A99: 89 | B99: Metals | C99: HINDCOPPER | D99: 2022-04-28 | E99: 122.00 | F99: 121.95 | G99: 121.10 | H99: 120.20 | I99: 119.35 | J99: 122.85 | K99: 123.70 | L99: 124.60 | M99: 122.8 | N99: 121.05 | O99: 17982600 | P99: 1.46%
A100: 90 | B100: Oil_Gas | C100: HINDPETRO | D100: 2022-04-28 | E100: 301.40 | F100: 301.08 | G100: 297.52 | H100: 293.63 | I100: 290.07 | J100: 304.97 | K100: 308.53 | L100: 312.42 | M100: 304.65 | N100: 297.2 | O100: 14914800 | P100: 6.72%
A101: 91 | B101: FMCG | C101: HINDUNILVR | D101: 2022-04-28 | E101: 2197.90 | F101: 2189.48 | G101: 2175.12 | H101: 2152.33 | I101: 2137.97 | J101: 2212.27 | K101: 2226.63 | L101: 2249.42 | M101: 2203.85 | N101: 2166.7 | O101: 10818000 | P101: -2.41%
A102: 92 | B102: Others | C102: HONAUT | D102: 2022-04-28 | E102: 40650.15 | F102: 40315.03 | G102: 39846.57 | H102: 39042.98 | I102: 38574.52 | J102: 41118.62 | K102: 41587.08 | L102: 42390.67 | M102: 40783.5 | N102: 39511.45 | O102: 6795 | P102: 5.84%
A103: 93 | B103: Finance | C103: IBULHSGFIN | D103: 2022-04-28 | E103: 162.75 | F103: 162.10 | G103: 159.90 | H103: 157.05 | I103: 154.85 | J103: 164.95 | K103: 167.15 | L103: 170.00 | M103: 164.3 | N103: 159.25 | O103: 40758800 | P103: -0.94%
A104: 94 | B104: Banking | C104: ICICIBANK | D104: 2022-04-28 | E104: 764.10 | F104: 760.58 | G104: 755.22 | H104: 746.33 | I104: 740.97 | J104: 769.47 | K104: 774.83 | L104: 783.72 | M104: 765.95 | N104: 751.7 | O104: 104920750 | P104: -0.88%
A105: 95 | B105: Finance | C105: ICICIGI | D105: 2022-04-28 | E105: 1406.90 | F105: 1397.05 | G105: 1378.00 | H105: 1349.10 | I105: 1330.05 | J105: 1425.95 | K105: 1445.00 | L105: 1473.90 | M105: 1416.1 | N105: 1368.15 | O105: 2926975 | P105: 2.65%
A106: 96 | B106: Finance | C106: ICICIPRULI | D106: 2022-04-28 | E106: 533.80 | F106: 534.13 | G106: 528.67 | H106: 523.53 | I106: 518.07 | J106: 539.27 | K106: 544.73 | L106: 549.87 | M106: 539.6 | N106: 529 | O106: 5864250 | P106: -0.79%
A107: 97 | B107: Telecom | C107: IDEA | D107: 2022-04-28 | E107: 10.05 | F107: 10.07 | G107: 9.93 | H107: 9.82 | I107: 9.68 | J107: 10.18 | K107: 10.32 | L107: 10.43 | M107: 10.2 | N107: 9.95 | O107: 807240000 | P107: 4.48%
A108: 98 | B108: Finance | C108: IDFC | D108: 2022-04-28 | E108: 59.75 | F108: 59.48 | G108: 58.72 | H108: 57.68 | I108: 56.92 | J108: 60.52 | K108: 61.28 | L108: 62.32 | M108: 60.25 | N108: 58.45 | O108: 120910000 | P108: 5.76%
A109: 99 | B109: Banking | C109: IDFCFIRSTB | D109: 2022-04-28 | E109: 40.95 | F109: 40.75 | G109: 40.45 | H109: 39.95 | I109: 39.65 | J109: 41.25 | K109: 41.55 | L109: 42.05 | M109: 41.05 | N109: 40.25 | O109: 250271700 | P109: 4.66%
A110: 100 | B110: Others | C110: IEX | D110: 2022-04-28 | E110: 235.00 | F110: 235.33 | G110: 233.27 | H110: 231.53 | I110: 229.47 | J110: 237.07 | K110: 239.13 | L110: 240.87 | M110: 237.4 | N110: 233.6 | O110: 42457500 | P110: 3.32%
A111: 101 | B111: Oil_Gas | C111: IGL | D111: 2022-04-28 | E111: 380.35 | F111: 379.20 | G111: 376.30 | H111: 372.25 | I111: 369.35 | J111: 383.25 | K111: 386.15 | L111: 390.20 | M111: 382.1 | N111: 375.15 | O111: 17583500 | P111: 1.99%
A112: 102 | B112: Infrastructure | C112: INDHOTEL | D112: 2022-04-28 | E112: 244.30 | F112: 243.92 | G112: 239.23 | H112: 234.17 | I112: 229.48 | J112: 248.98 | K112: 253.67 | L112: 258.73 | M112: 248.6 | N112: 238.85 | O112: 24148088 | P112: 2.95%
A113: 103 | B113: Cement | C113: INDIACEM | D113: 2022-04-28 | E113: 214.80 | F113: 214.45 | G113: 212.90 | H113: 211.00 | I113: 209.45 | J113: 216.35 | K113: 217.90 | L113: 219.80 | M113: 216 | N113: 212.55 | O113: 14647900 | P113: -0.43%
A114: 104 | B114: Others | C114: INDIAMART | D114: 2022-04-28 | E114: 4788.70 | F114: 4803.78 | G114: 4688.67 | H114: 4588.63 | I114: 4473.52 | J114: 4903.82 | K114: 5018.93 | L114: 5118.97 | M114: 4918.9 | N114: 4703.75 | O114: 357600 | P114: 6.45%
A115: 105 | B115: Others | C115: INDIGO | D115: 2022-04-28 | E115: 1943.00 | F115: 1933.42 | G115: 1908.48 | H115: 1873.97 | I115: 1849.03 | J115: 1967.93 | K115: 1992.87 | L115: 2027.38 | M115: 1958.35 | N115: 1898.9 | O115: 2657750 | P115: 3.37%
A116: 106 | B116: Banking | C116: INDUSINDBK | D116: 2022-04-28 | E116: 989.75 | F116: 986.30 | G116: 979.60 | H116: 969.45 | I116: 962.75 | J116: 996.45 | K116: 1003.15 | L116: 1013.30 | M116: 993 | N116: 976.15 | O116: 25263000 | P116: 0.06%
A117: 107 | B117: Telecom | C117: INDUSTOWER | D117: 2022-04-28 | E117: 217.20 | F117: 217.13 | G117: 216.37 | H117: 215.53 | I117: 214.77 | J117: 217.97 | K117: 218.73 | L117: 219.57 | M117: 217.9 | N117: 216.3 | O117: 16710400 | P117: -0.60%
A118: 108 | B118: Technology | C118: INFY | D118: 2022-04-28 | E118: 1617.05 | F118: 1610.12 | G118: 1595.23 | H118: 1573.42 | I118: 1558.53 | J118: 1631.93 | K118: 1646.82 | L118: 1668.63 | M118: 1625 | N118: 1588.3 | O118: 44533500 | P118: 1.45%
A119: 109 | B119: Technology | C119: INTELLECT | D119: 2022-04-28 | E119: 846.25 | F119: 850.78 | G119: 836.62 | H119: 826.98 | I119: 812.82 | J119: 860.42 | K119: 874.58 | L119: 884.22 | M119: 864.95 | N119: 841.15 | O119: 1794000 | P119: 1.83%
A120: 110 | B120: Oil_Gas | C120: IOC | D120: 2022-04-28 | E120: 135.20 | F120: 134.78 | G120: 134.02 | H120: 132.83 | I120: 132.07 | J120: 135.97 | K120: 136.73 | L120: 137.92 | M120: 135.55 | N120: 133.6 | O120: 60209500 | P120: 2.83%
A121: 111 | B121: Pharma | C121: IPCALAB | D121: 2022-04-28 | E121: 1032.80 | F121: 1029.87 | G121: 1024.73 | H121: 1016.67 | I121: 1011.53 | J121: 1037.93 | K121: 1043.07 | L121: 1051.13 | M121: 1035 | N121: 1021.8 | O121: 757800 | P121: -0.82%
A122: 112 | B122: Others | C122: IRCTC | D122: 2022-04-28 | E122: 757.10 | F122: 752.23 | G122: 745.47 | H122: 733.83 | I122: 727.07 | J122: 763.87 | K122: 770.63 | L122: 782.27 | M122: 759 | N122: 740.6 | O122: 15015000 | P122: -2.73%
A123: 113 | B123: FMCG | C123: ITC | D123: 2022-04-28 | E123: 261.35 | F123: 262.32 | G123: 259.53 | H123: 257.72 | I123: 254.93 | J123: 264.13 | K123: 266.92 | L123: 268.73 | M123: 265.1 | N123: 260.5 | O123: 119974400 | P123: -0.48%
A124: 114 | B124: Metals | C124: JINDALSTEL | D124: 2022-04-28 | E124: 542.60 | F124: 541.25 | G124: 524.50 | H124: 506.40 | I124: 489.65 | J124: 559.35 | K124: 576.10 | L124: 594.20 | M124: 558 | N124: 523.15 | O124: 32807500 | P124: 2.36%
A125: 115 | B125: Cement | C125: JKCEMENT | D125: 2022-04-28 | E125: 2722.55 | F125: 2734.52 | G125: 2701.58 | H125: 2680.62 | I125: 2647.68 | J125: 2755.48 | K125: 2788.42 | L125: 2809.38 | M125: 2767.45 | N125: 2713.55 | O125: 329525 | P125: 6.81%
A126: 116 | B126: Metals | C126: JSWSTEEL | D126: 2022-04-28 | E126: 736.40 | F126: 736.47 | G126: 726.93 | H126: 717.47 | I126: 707.93 | J126: 745.93 | K126: 755.47 | L126: 764.93 | M126: 746 | N126: 727 | O126: 29890350 | P126: 0.41%
A127: 117 | B127: Others | C127: JUBLFOOD | D127: 2022-04-28 | E127: 595.00 | F127: 583.18 | G127: 565.82 | H127: 536.63 | I127: 519.27 | J127: 612.37 | K127: 629.73 | L127: 658.92 | M127: 600.55 | N127: 554 | O127: 9894375 | P127: 0.60%
A128: 118 | B128: Banking | C128: KOTAKBANK | D128: 2022-04-28 | E128: 1761.45 | F128: 1752.73 | G128: 1732.77 | H128: 1704.08 | I128: 1684.12 | J128: 1781.42 | K128: 1801.38 | L128: 1830.07 | M128: 1772.7 | N128: 1724.05 | O128: 17018400 | P128: -3.44%
A129: 119 | B129: Finance | C129: L&TFH | D129: 2022-04-28 | E129: 88.90 | F129: 86.87 | G129: 83.58 | H129: 78.27 | I129: 74.98 | J129: 92.18 | K129: 95.47 | L129: 100.78 | M129: 90.15 | N129: 81.55 | O129: 56230124 | P129: 20.09%
A130: 120 | B130: Others | C130: LALPATHLAB | D130: 2022-04-28 | E130: 2785.55 | F130: 2781.72 | G130: 2746.48 | H130: 2707.42 | I130: 2672.18 | J130: 2820.78 | K130: 2856.02 | L130: 2895.08 | M130: 2816.95 | N130: 2742.65 | O130: 771750 | P130: -2.89%
A131: 121 | B131: Pharma | C131: LAURUSLABS | D131: 2022-04-28 | E131: 613.40 | F131: 612.40 | G131: 609.60 | H131: 605.80 | I131: 603.00 | J131: 616.20 | K131: 619.00 | L131: 622.80 | M131: 615.2 | N131: 608.6 | O131: 8126100 | P131: 2.77%
A132: 122 | B132: Finance | C132: LICHSGFIN | D132: 2022-04-28 | E132: 382.40 | F132: 381.23 | G132: 378.27 | H132: 374.13 | I132: 371.17 | J132: 385.37 | K132: 388.33 | L132: 392.47 | M132: 384.2 | N132: 377.1 | O132: 23386000 | P132: -2.26%
A133: 123 | B133: Capital_Goods | C133: LT | D133: 2022-04-28 | E133: 1718.50 | F133: 1716.88 | G133: 1704.02 | H133: 1689.53 | I133: 1676.67 | J133: 1731.37 | K133: 1744.23 | L133: 1758.72 | M133: 1729.75 | N133: 1702.4 | O133: 14289900 | P133: 0.66%
A134: 124 | B134: Technology | C134: LTI | D134: 2022-04-28 | E134: 5095.60 | F134: 5119.42 | G134: 4982.93 | H134: 4870.27 | I134: 4733.78 | J134: 5232.08 | K134: 5368.57 | L134: 5481.23 | M134: 5255.9 | N134: 5006.75 | O134: 1809600 | P134: 23.78%
A135: 125 | B135: Technology | C135: LTTS | D135: 2022-04-28 | E135: 4255.80 | F135: 4237.78 | G135: 4195.57 | H135: 4135.33 | I135: 4093.12 | J135: 4298.02 | K135: 4340.23 | L135: 4400.47 | M135: 4280 | N135: 4177.55 | O135: 1007800 | P135: -2.14%
A136: 126 | B136: Pharma | C136: LUPIN | D136: 2022-04-28 | E136: 784.90 | F136: 782.70 | G136: 778.15 | H136: 771.40 | I136: 766.85 | J136: 789.45 | K136: 794.00 | L136: 800.75 | M136: 787.25 | N136: 775.95 | O136: 8536550 | P136: 1.91%
A137: 127 | B137: Automobile | C137: M&M | D137: 2022-04-28 | E137: 913.65 | F137: 904.60 | G137: 892.35 | H137: 871.05 | I137: 858.80 | J137: 925.90 | K137: 938.15 | L137: 959.45 | M137: 916.85 | N137: 883.3 | O137: 12029500 | P137: 4.42%
A138: 128 | B138: Finance | C138: M&MFIN | D138: 2022-04-28 | E138: 180.30 | F138: 179.95 | G138: 177.60 | H138: 174.90 | I138: 172.55 | J138: 182.65 | K138: 185.00 | L138: 187.70 | M138: 182.3 | N138: 177.25 | O138: 35848000 | P138: 5.63%
A139: 129 | B139: Finance | C139: MANAPPURAM | D139: 2022-04-28 | E139: 121.60 | F139: 119.83 | G139: 117.72 | H139: 113.83 | I139: 111.72 | J139: 123.72 | K139: 125.83 | L139: 129.72 | M139: 121.95 | N139: 115.95 | O139: 34530000 | P139: -0.64%
A140: 130 | B140: FMCG | C140: MARICO | D140: 2022-04-28 | E140: 518.90 | F140: 518.08 | G140: 515.22 | H140: 511.53 | I140: 508.67 | J140: 521.77 | K140: 524.63 | L140: 528.32 | M140: 520.95 | N140: 514.4 | O140: 7949000 | P140: -0.69%
A141: 131 | B141: Automobile | C141: MARUTI | D141: 2022-04-28 | E141: 7893.70 | F141: 7836.23 | G141: 7762.47 | H141: 7631.23 | I141: 7557.47 | J141: 7967.47 | K141: 8041.23 | L141: 8172.47 | M141: 7910 | N141: 7705 | O141: 2361200 | P141: 7.76%
A142: 132 | B142: FMCG | C142: MCDOWELL-N | D142: 2022-04-28 | E142: 875.20 | F142: 874.25 | G142: 866.75 | H142: 858.30 | I142: 850.80 | J142: 882.70 | K142: 890.20 | L142: 898.65 | M142: 881.75 | N142: 865.8 | O142: 13860000 | P142: 1.48%
A143: 133 | B143: Others | C143: MCX | D143: 2022-04-28 | E143: 1388.40 | F143: 1379.97 | G143: 1363.43 | H143: 1338.47 | I143: 1321.93 | J143: 1404.93 | K143: 1421.47 | L143: 1446.43 | M143: 1396.5 | N143: 1355 | O143: 2204300 | P143: -1.72%
A144: 134 | B144: Pharma | C144: METROPOLIS | D144: 2022-04-28 | E144: 2480.35 | F144: 2495.55 | G144: 2449.80 | H144: 2419.25 | I144: 2373.50 | J144: 2526.10 | K144: 2571.85 | L144: 2602.40 | M144: 2541.3 | N144: 2465 | O144: 441200 | P144: -3.12%
A145: 135 | B145: Finance | C145: MFSL | D145: 2022-04-28 | E145: 750.25 | F145: 751.42 | G145: 742.28 | H145: 734.32 | I145: 725.18 | J145: 759.38 | K145: 768.52 | L145: 776.48 | M145: 760.55 | N145: 743.45 | O145: 1992900 | P145: 4.50%
A146: 136 | B146: Oil_Gas | C146: MGL | D146: 2022-04-28 | E146: 826.90 | F146: 822.87 | G146: 817.03 | H146: 807.17 | I146: 801.33 | J146: 832.73 | K146: 838.57 | L146: 848.43 | M146: 828.7 | N146: 813 | O146: 2916000 | P146: -1.34%
A147: 137 | B147: Technology | C147: MINDTREE | D147: 2022-04-28 | E147: 3742.30 | F147: 3715.48 | G147: 3683.87 | H147: 3625.43 | I147: 3593.82 | J147: 3773.92 | K147: 3805.53 | L147: 3863.97 | M147: 3747.1 | N147: 3657.05 | O147: 3139000 | P147: 1.72%
A148: 138 | B148: Automobile | C148: MOTHERSUMI | D148: 2022-04-28 | E148: 141.65 | F148: 140.52 | G148: 138.48 | H148: 135.32 | I148: 133.28 | J148: 143.68 | K148: 145.72 | L148: 148.88 | M148: 142.55 | N148: 137.35 | O148: 29375500 | P148: 2.17%
A149: 139 | B149: Technology | C149: MPHASIS | D149: 2022-04-28 | E149: 2911.00 | F149: 2902.55 | G149: 2876.50 | H149: 2842.00 | I149: 2815.95 | J149: 2937.05 | K149: 2963.10 | L149: 2997.60 | M149: 2928.6 | N149: 2868.05 | O149: 1647625 | P149: 0.77%
A150: 140 | B150: Automobile | C150: MRF | D150: 2022-04-28 | E150: 69757.45 | F150: 69190.77 | G150: 68141.68 | H150: 66525.92 | I150: 65476.83 | J150: 70806.53 | K150: 71855.62 | L150: 73471.38 | M150: 70239.85 | N150: 67575 | O150: 108530 | P150: 0.30%
A151: 141 | B151: Finance | C151: MUTHOOTFIN | D151: 2022-04-28 | E151: 1317.15 | F151: 1315.75 | G151: 1301.50 | H151: 1285.85 | I151: 1271.60 | J151: 1331.40 | K151: 1345.65 | L151: 1361.30 | M151: 1330 | N151: 1300.1 | O151: 3669375 | P151: 1.15%
A152: 142 | B152: Others | C152: NAM-INDIA | D152: 2022-04-28 | E152: 332.35 | F152: 331.52 | G152: 327.43 | H152: 322.52 | I152: 318.43 | J152: 336.43 | K152: 340.52 | L152: 345.43 | M152: 335.6 | N152: 326.6 | O152: 2731200 | P152: 2.71%
A153: 143 | B153: Metals | C153: NATIONALUM | D153: 2022-04-28 | E153: 119.30 | F153: 118.85 | G153: 117.60 | H153: 115.90 | I153: 114.65 | J153: 120.55 | K153: 121.80 | L153: 123.50 | M153: 120.1 | N153: 117.15 | O153: 81940000 | P153: -2.66%
A154: 144 | B154: Others | C154: NAUKRI | D154: 2022-04-28 | E154: 4647.20 | F154: 4649.98 | G154: 4602.62 | H154: 4558.03 | I154: 4510.67 | J154: 4694.57 | K154: 4741.93 | L154: 4786.52 | M154: 4697.35 | N154: 4605.4 | O154: 1422625 | P154: 1.78%
A155: 145 | B155: Chemical | C155: NAVINFLUOR | D155: 2022-04-28 | E155: 4064.75 | F155: 4025.13 | G155: 3972.27 | H155: 3879.78 | I155: 3826.92 | J155: 4117.62 | K155: 4170.48 | L155: 4262.97 | M155: 4078 | N155: 3932.65 | O155: 349425 | P155: -6.78%
A156: 146 | B156: Others | C156: NBCC | D156: 2022-04-28 | E156: 39.90 | F156: 39.78 | G156: 39.52 | H156: 39.13 | I156: 38.87 | J156: 40.17 | K156: 40.43 | L156: 40.82 | M156: 40.05 | N156: 39.4 | O156: 31992000 | P156: 5.92%
A157: 147 | B157: FMCG | C157: NESTLEIND | D157: 2022-04-28 | E157: 18260.55 | F157: 18224.77 | G157: 17813.08 | H157: 17365.62 | I157: 16953.93 | J157: 18672.23 | K157: 19083.92 | L157: 19531.38 | M157: 18636.45 | N157: 17777.3 | O157: 304075 | P157: 3.31%
A158: 148 | B158: Metals | C158: NMDC | D158: 2022-04-28 | E158: 170.00 | F158: 169.15 | G158: 167.75 | H158: 165.50 | I158: 164.10 | J158: 171.40 | K158: 172.80 | L158: 175.05 | M158: 170.55 | N158: 166.9 | O158: 59864500 | P158: 0.18%
A159: 149 | B159: Power | C159: NTPC | D159: 2022-04-28 | E159: 162.65 | F159: 162.08 | G159: 160.87 | H159: 159.08 | I159: 157.87 | J159: 163.87 | K159: 165.08 | L159: 166.87 | M159: 163.3 | N159: 160.3 | O159: 82855200 | P159: 4.91%
A160: 150 | B160: Realty | C160: OBEROIRLTY | D160: 2022-04-28 | E160: 983.50 | F160: 976.38 | G160: 963.12 | H160: 942.73 | I160: 929.47 | J160: 996.77 | K160: 1010.03 | L160: 1030.42 | M160: 989.65 | N160: 956 | O160: 4271400 | P160: 3.04%
A161: 151 | B161: Technology | C161: OFSS | D161: 2022-04-28 | E161: 3545.00 | F161: 3539.67 | G161: 3519.33 | H161: 3493.67 | I161: 3473.33 | J161: 3565.33 | K161: 3585.67 | L161: 3611.33 | M161: 3560 | N161: 3514 | O161: 485875 | P161: 2.26%
A162: 152 | B162: Oil_Gas | C162: ONGC | D162: 2022-04-28 | E162: 174.80 | F162: 175.50 | G162: 173.90 | H162: 173.00 | I162: 171.40 | J162: 176.40 | K162: 178.00 | L162: 178.90 | M162: 177.1 | N162: 174.6 | O162: 65950500 | P162: -1.61%
A163: 153 | B163: Textile | C163: PAGEIND | D163: 2022-04-28 | E163: 46006.70 | F163: 45942.35 | G163: 45677.15 | H163: 45347.60 | I163: 45082.40 | J163: 46271.90 | K163: 46537.10 | L163: 46866.65 | M163: 46207.55 | N163: 45612.8 | O163: 84960 | P163: 0.43%
A164: 154 | B164: Pharma | C164: PEL | D164: 2022-04-28 | E164: 2247.80 | F164: 2246.30 | G164: 2233.60 | H164: 2219.40 | I164: 2206.70 | J164: 2260.50 | K164: 2273.20 | L164: 2287.40 | M164: 2259 | N164: 2232.1 | O164: 3184775 | P164: 4.29%
A165: 155 | B165: Technology | C165: PERSISTENT | D165: 2022-04-28 | E165: 4031.60 | F165: 4027.67 | G165: 3994.78 | H165: 3957.97 | I165: 3925.08 | J165: 4064.48 | K165: 4097.37 | L165: 4134.18 | M165: 4060.55 | N165: 3990.85 | O165: 608100 | P165: 3.71%
A166: 156 | B166: Oil_Gas | C166: PETRONET | D166: 2022-04-28 | E166: 210.85 | F166: 209.45 | G166: 207.70 | H166: 204.55 | I166: 202.80 | J166: 212.60 | K166: 214.35 | L166: 217.50 | M166: 211.2 | N166: 206.3 | O166: 18009000 | P166: -3.98%
A167: 157 | B167: Finance | C167: PFC | D167: 2022-04-28 | E167: 119.40 | F167: 119.28 | G167: 118.67 | H167: 117.93 | I167: 117.32 | J167: 120.02 | K167: 120.63 | L167: 121.37 | M167: 119.9 | N167: 118.55 | O167: 44088200 | P167: -0.13%
A168: 158 | B168: Pharma | C168: PFIZER | D168: 2022-04-28 | E168: 4459.70 | F168: 4443.60 | G168: 4417.15 | H168: 4374.60 | I168: 4348.15 | J168: 4486.15 | K168: 4512.60 | L168: 4555.15 | M168: 4470.05 | N168: 4401.05 | O168: 113750 | P168: -2.05%
A169: 159 | B169: FMCG | C169: PIDILITIND | D169: 2022-04-28 | E169: 2410.85 | F169: 2401.67 | G169: 2383.33 | H169: 2355.82 | I169: 2337.48 | J169: 2429.18 | K169: 2447.52 | L169: 2475.03 | M169: 2420 | N169: 2374.15 | O169: 2943250 | P169: -0.33%
A170: 160 | B170: Chemical | C170: PIIND | D170: 2022-04-28 | E170: 2886.45 | F170: 2880.07 | G170: 2865.13 | H170: 2843.82 | I170: 2828.88 | J170: 2901.38 | K170: 2916.32 | L170: 2937.63 | M170: 2895 | N170: 2858.75 | O170: 1559500 | P170: 1.20%
A171: 161 | B171: Banking | C171: PNB | D171: 2022-04-28 | E171: 36.05 | F171: 36.02 | G171: 35.83 | H171: 35.62 | I171: 35.43 | J171: 36.23 | K171: 36.42 | L171: 36.63 | M171: 36.2 | N171: 35.8 | O171: 243024000 | P171: 1.36%
A172: 162 | B172: Others | C172: POLYCAB | D172: 2022-04-28 | E172: 2752.40 | F172: 2722.12 | G172: 2684.28 | H172: 2616.17 | I172: 2578.33 | J172: 2790.23 | K172: 2828.07 | L172: 2896.18 | M172: 2759.95 | N172: 2654 | O172: 726000 | P172: 9.65%
A173: 163 | B173: Power | C173: POWERGRID | D173: 2022-04-28 | E173: 228.00 | F173: 227.75 | G173: 226.30 | H173: 224.60 | I173: 223.15 | J173: 229.45 | K173: 230.90 | L173: 232.60 | M173: 229.2 | N173: 226.05 | O173: 39773514 | P173: 1.58%
A174: 164 | B174: Media | C174: PVR | D174: 2022-04-28 | E174: 1786.90 | F174: 1804.28 | G174: 1764.77 | H174: 1742.63 | I174: 1703.12 | J174: 1826.42 | K174: 1865.93 | L174: 1888.07 | M174: 1843.8 | N174: 1782.15 | O174: 2620673 | P174: 1.82%
A175: 165 | B175: Others | C175: RAIN | D175: 2022-04-28 | E175: 183.45 | F175: 182.88 | G175: 181.27 | H175: 179.08 | I175: 177.47 | J175: 185.07 | K175: 186.68 | L175: 188.87 | M175: 184.5 | N175: 180.7 | O175: 6612500 | P175: -0.19%
A176: 166 | B176: Cement | C176: RAMCOCEM | D176: 2022-04-28 | E176: 811.25 | F176: 811.40 | G176: 806.30 | H176: 801.35 | I176: 796.25 | J176: 816.35 | K176: 821.45 | L176: 826.40 | M176: 816.5 | N176: 806.45 | O176: 2727650 | P176: 0.82%
A177: 167 | B177: Banking | C177: RBLBANK | D177: 2022-04-28 | E177: 127.10 | F177: 128.40 | G177: 123.60 | H177: 120.10 | I177: 115.30 | J177: 131.90 | K177: 136.70 | L177: 140.20 | M177: 133.2 | N177: 124.9 | O177: 54314100 | P177: 12.06%
A178: 168 | B178: Power | C178: RECLTD | D178: 2022-04-28 | E178: 130.35 | F178: 130.00 | G178: 129.40 | H178: 128.45 | I178: 127.85 | J178: 130.95 | K178: 131.55 | L178: 132.50 | M178: 130.6 | N178: 129.05 | O178: 31860000 | P178: 0.78%
A179: 169 | B179: Oil_Gas | C179: RELIANCE | D179: 2022-04-28 | E179: 2781.50 | F179: 2767.90 | G179: 2747.00 | H179: 2712.50 | I179: 2691.60 | J179: 2802.40 | K179: 2823.30 | L179: 2857.80 | M179: 2788.8 | N179: 2733.4 | O179: 35253500 | P179: 0.21%
A180: 170 | B180: Metals | C180: SAIL | D180: 2022-04-28 | E180: 103.35 | F180: 102.68 | G180: 101.27 | H180: 99.18 | I180: 97.77 | J180: 104.77 | K180: 106.18 | L180: 108.27 | M180: 104.1 | N180: 100.6 | O180: 158987250 | P180: 2.35%
A181: 171 | B181: Banking | C181: SBICARD | D181: 2022-04-28 | E181: 798.65 | F181: 798.22 | G181: 793.18 | H181: 787.72 | I181: 782.68 | J181: 803.68 | K181: 808.72 | L181: 814.18 | M181: 803.25 | N181: 792.75 | O181: 8246500 | P181: 7.04%
A182: 172 | B182: Finance | C182: SBILIFE | D182: 2022-04-28 | E182: 1144.40 | F182: 1139.48 | G182: 1130.17 | H182: 1115.93 | I182: 1106.62 | J182: 1153.72 | K182: 1163.03 | L182: 1177.27 | M182: 1148.8 | N182: 1125.25 | O182: 7142250 | P182: -0.98%
A183: 173 | B183: Banking | C183: SBIN | D183: 2022-04-28 | E183: 518.00 | F183: 516.68 | G183: 513.77 | H183: 509.53 | I183: 506.62 | J183: 520.92 | K183: 523.83 | L183: 528.07 | M183: 519.6 | N183: 512.45 | O183: 66778500 | P183: -3.10%
A184: 174 | B184: Cement | C184: SHREECEM | D184: 2022-04-28 | E184: 26131.75 | F184: 26004.42 | G184: 25814.28 | H184: 25496.82 | I184: 25306.68 | J184: 26321.88 | K184: 26512.02 | L184: 26829.48 | M184: 26194.55 | N184: 25686.95 | O184: 188225 | P184: 0.95%
A185: 175 | B185: Capital_Goods | C185: SIEMENS | D185: 2022-04-28 | E185: 2385.95 | F185: 2386.97 | G185: 2371.33 | H185: 2356.72 | I185: 2341.08 | J185: 2401.58 | K185: 2417.22 | L185: 2431.83 | M185: 2402.6 | N185: 2372.35 | O185: 1549900 | P185: 1.18%
A186: 176 | B186: Textile | C186: SRF | D186: 2022-04-28 | E186: 2556.80 | F186: 2561.80 | G186: 2535.05 | H186: 2513.30 | I186: 2486.55 | J186: 2583.55 | K186: 2610.30 | L186: 2632.05 | M186: 2588.55 | N186: 2540.05 | O186: 3381000 | P186: 3.15%
A187: 177 | B187: Finance | C187: SRTRANSFIN | D187: 2022-04-28 | E187: 1154.70 | F187: 1144.55 | G187: 1130.45 | H187: 1106.20 | I187: 1092.10 | J187: 1168.80 | K187: 1182.90 | L187: 1207.15 | M187: 1158.65 | N187: 1120.3 | O187: 4398800 | P187: -2.17%
A188: 178 | B188: Pharma | C188: STAR | D188: 2022-04-28 | E188: 343.45 | F188: 340.35 | G188: 336.35 | H188: 329.25 | I188: 325.25 | J188: 347.45 | K188: 351.45 | L188: 358.55 | M188: 344.35 | N188: 333.25 | O188: 5007600 | P188: 2.69%
A189: 179 | B189: Pharma | C189: SUNPHARMA | D189: 2022-04-28 | E189: 944.20 | F189: 937.47 | G189: 927.93 | H189: 911.67 | I189: 902.13 | J189: 953.73 | K189: 963.27 | L189: 979.53 | M189: 947 | N189: 921.2 | O189: 16758700 | P189: 2.10%
A190: 180 | B190: Media | C190: SUNTV | D190: 2022-04-28 | E190: 503.55 | F190: 502.52 | G190: 499.03 | H190: 494.52 | I190: 491.03 | J190: 507.03 | K190: 510.52 | L190: 515.03 | M190: 506 | N190: 498 | O190: 13225500 | P190: -0.79%
A191: 181 | B191: Pharma | C191: SYNGENE | D191: 2022-04-28 | E191: 631.75 | F191: 633.52 | G191: 627.73 | H191: 623.72 | I191: 617.93 | J191: 637.53 | K191: 643.32 | L191: 647.33 | M191: 639.3 | N191: 629.5 | O191: 1009800 | P191: -1.90%
A192: 182 | B192: Chemical | C192: TATACHEM | D192: 2022-04-28 | E192: 985.40 | F192: 982.75 | G192: 975.70 | H192: 966.00 | I192: 958.95 | J192: 992.45 | K192: 999.50 | L192: 1009.20 | M192: 989.8 | N192: 973.05 | O192: 5797000 | P192: -0.29%
A193: 183 | B193: Telecom | C193: TATACOMM | D193: 2022-04-28 | E193: 1283.30 | F193: 1294.10 | G193: 1266.20 | H193: 1249.10 | I193: 1221.20 | J193: 1311.20 | K193: 1339.10 | L193: 1356.20 | M193: 1322 | N193: 1277 | O193: 4231600 | P193: 1.19%
A194: 184 | B194: FMCG | C194: TATACONSUM | D194: 2022-04-28 | E194: 819.45 | F194: 815.37 | G194: 809.23 | H194: 799.02 | I194: 792.88 | J194: 825.58 | K194: 831.72 | L194: 841.93 | M194: 821.5 | N194: 805.15 | O194: 8259300 | P194: -5.13%
A195: 185 | B195: Automobile | C195: TATAMOTORS | D195: 2022-04-28 | E195: 449.55 | F195: 447.52 | G195: 444.13 | H195: 438.72 | I195: 435.33 | J195: 452.93 | K195: 456.32 | L195: 461.73 | M195: 450.9 | N195: 442.1 | O195: 85482900 | P195: -0.97%
A196: 186 | B196: Power | C196: TATAPOWER | D196: 2022-04-28 | E196: 259.05 | F196: 256.73 | G196: 253.27 | H196: 247.48 | I196: 244.02 | J196: 262.52 | K196: 265.98 | L196: 271.77 | M196: 260.2 | N196: 250.95 | O196: 98536500 | P196: -3.28%
A197: 187 | B197: Metals | C197: TATASTEEL | D197: 2022-04-28 | E197: 1304.95 | F197: 1304.17 | G197: 1285.98 | H197: 1267.02 | I197: 1248.83 | J197: 1323.13 | K197: 1341.32 | L197: 1360.28 | M197: 1322.35 | N197: 1285.2 | O197: 31852475 | P197: 0.16%
A198: 188 | B198: Technology | C198: TCS | D198: 2022-04-28 | E198: 3625.45 | F198: 3612.05 | G198: 3580.60 | H198: 3535.75 | I198: 3504.30 | J198: 3656.90 | K198: 3688.35 | L198: 3733.20 | M198: 3643.5 | N198: 3567.2 | O198: 11900250 | P198: -1.59%
A199: 189 | B199: Technology | C199: TECHM | D199: 2022-04-28 | E199: 1316.15 | F199: 1313.47 | G199: 1304.13 | H199: 1292.12 | I199: 1282.78 | J199: 1325.48 | K199: 1334.82 | L199: 1346.83 | M199: 1322.8 | N199: 1301.45 | O199: 15990600 | P199: 6.49%
A200: 190 | B200: FMCG | C200: TITAN | D200: 2022-04-28 | E200: 2525.35 | F200: 2510.60 | G200: 2487.00 | H200: 2448.65 | I200: 2425.05 | J200: 2548.95 | K200: 2572.55 | L200: 2610.90 | M200: 2534.2 | N200: 2472.25 | O200: 5893500 | P200: 0.61%
A201: 191 | B201: Pharma | C201: TORNTPHARM | D201: 2022-04-28 | E201: 2841.95 | F201: 2857.07 | G201: 2819.88 | H201: 2797.82 | I201: 2760.63 | J201: 2879.13 | K201: 2916.32 | L201: 2938.38 | M201: 2894.25 | N201: 2835 | O201: 669000 | P201: 2.96%
A202: 192 | B202: Power | C202: TORNTPOWER | D202: 2022-04-28 | E202: 557.50 | F202: 553.38 | G202: 545.82 | H202: 534.13 | I202: 526.57 | J202: 565.07 | K202: 572.63 | L202: 584.32 | M202: 560.95 | N202: 541.7 | O202: 3229500 | P202: 3.46%
A203: 193 | B203: Others | C203: TRENT | D203: 2022-04-28 | E203: 1286.00 | F203: 1281.77 | G203: 1268.03 | H203: 1250.07 | I203: 1236.33 | J203: 1299.73 | K203: 1313.47 | L203: 1331.43 | M203: 1295.5 | N203: 1263.8 | O203: 2802850 | P203: -1.55%
A204: 194 | B204: Automobile | C204: TVSMOTOR | D204: 2022-04-28 | E204: 658.95 | F204: 658.67 | G204: 652.93 | H204: 646.92 | I204: 641.18 | J204: 664.68 | K204: 670.42 | L204: 676.43 | M204: 664.4 | N204: 652.65 | O204: 7194600 | P204: -0.16%
A205: 195 | B205: FMCG | C205: UBL | D205: 2022-04-28 | E205: 1484.85 | F205: 1490.23 | G205: 1476.52 | H205: 1468.18 | I205: 1454.47 | J205: 1498.57 | K205: 1512.28 | L205: 1520.62 | M205: 1503.95 | N205: 1481.9 | O205: 1206800 | P205: 7.41%
A206: 196 | B206: Cement | C206: ULTRACEMCO | D206: 2022-04-28 | E206: 6860.60 | F206: 6857.63 | G206: 6812.82 | H206: 6765.03 | I206: 6720.22 | J206: 6905.42 | K206: 6950.23 | L206: 6998.02 | M206: 6902.45 | N206: 6809.85 | O206: 1914000 | P206: 0.24%
... 22 more rows

Sheet Cash Intra
M5: Back to Main Page
A6: FOR INTRA DAY TRADING | K6: =Main!B10 -> 2022-04-22
A8: Sr.no | C8: CLOSE RATE | D8: Pivot Point | E8: Supports | H8: Resistances
E9: S1 | F9: S2 | G9: S3 | H9: R1 | I9: R2 | J9: R3 | K9: HIGH | L9: LOW | M9: Total Trade Quanity in Lakhs
A10: 1 | B10: Nifty 50 | C10: 17392.6 | D10: 17340.93 | E10: 17267.17 | F10: 17141.73 | G10: 17067.97 | H10: 17466.37 | I10: 17540.13 | J10: 17665.57 | K10: 17414.7 | L10: 17215.5
A11: 2 | B11: Nifty Bank | C11: 36816.1 | D11: 36708.38 | E11: 36503.42 | F11: 36190.73 | G11: 35985.77 | H11: 37021.07 | I11: 37226.03 | J11: 37538.72 | K11: 36913.35 | L11: 36395.7
A12: 3 | B12: Nifty CPSE | C12: 2795.4 | D12: 2790.90 | E12: 2781.85 | F12: 2768.30 | G12: 2759.25 | H12: 2804.45 | I12: 2813.50 | J12: 2827.05 | K12: 2799.95 | L12: 2777.35
A13: 4 | B13: Nifty Infra | C13: 5237.85 | D13: 5226.28 | E13: 5206.37 | F13: 5174.88 | G13: 5154.97 | H13: 5257.77 | I13: 5277.68 | J13: 5309.17 | K13: 5246.2 | L13: 5194.8
A14: 5 | B14: Nifty IT | C14: 32611.6 | D14: 32485.63 | E14: 32271.27 | F14: 31930.93 | G14: 31716.57 | H14: 32825.97 | I14: 33040.33 | J14: 33380.67 | K14: 32700 | L14: 32145.3
A15: 6 | B15: Nifty PSE | C15: 4469.9 | D15: 4461.57 | E15: 4447.63 | F15: 4425.37 | G15: 4411.43 | H15: 4483.83 | I15: 4497.77 | J15: 4520.03 | K15: 4475.5 | L15: 4439.3
A16: 7 | B16: Nifty Midcap 50 | C16: 8386.7 | D16: 8375.25 | E16: 8354.15 | F16: 8321.60 | G16: 8300.50 | H16: 8407.80 | I16: 8428.90 | J16: 8461.45 | K16: 8396.35 | L16: 8342.7
A17: 8 | B17: ACC | C17: 2270.1 | D17: 2250.12 | E17: 2225.23 | F17: 2180.37 | G17: 2155.48 | H17: 2294.98 | I17: 2319.87 | J17: 2364.73 | K17: 2275 | L17: 2205.25 | M17: 14.91272
A18: 9 | B18: AUBANK | C18: 1435.05 | D18: 1441.33 | E18: 1416.72 | F18: 1398.38 | G18: 1373.77 | H18: 1459.67 | I18: 1484.28 | J18: 1502.62 | K18: 1465.95 | L18: 1423 | M18: 10.94297
A19: 10 | B19: AARTIIND | C19: 940.8 | D19: 943.98 | E19: 935.97 | F19: 931.13 | G19: 923.12 | H19: 948.82 | I19: 956.83 | J19: 961.67 | K19: 952 | L19: 939.15 | M19: 3.48379
A20: 11 | B20: ADANIENT | C20: 2286.35 | D20: 2261.27 | E20: 2228.98 | F20: 2171.62 | G20: 2139.33 | H20: 2318.63 | I20: 2350.92 | J20: 2408.28 | K20: 2293.55 | L20: 2203.9 | M20: 22.43636
A21: 12 | B21: ADANIGREEN | C21: 2811.5 | D21: 2810.50 | E21: 2751.00 | F21: 2690.50 | G21: 2631.00 | H21: 2871.00 | I21: 2930.50 | J21: 2991.00 | K21: 2870 | L21: 2750 | M21: 11.22487
A22: 13 | B22: ADANIPORTS | C22: 850.5 | D22: 847.23 | E22: 835.57 | F22: 820.63 | G22: 808.97 | H22: 862.17 | I22: 873.83 | J22: 888.77 | K22: 858.9 | L22: 832.3 | M22: 55.39106
A23: 14 | B23: ATGL | C23: 2443.35 | D23: 2462.85 | E23: 2395.70 | F23: 2348.05 | G23: 2280.90 | H23: 2510.50 | I23: 2577.65 | J23: 2625.30 | K23: 2530 | L23: 2415.2 | M23: 2.92017
A24: 15 | B24: ADANITRANS | C24: 2699.6 | D24: 2703.43 | E24: 2659.17 | F24: 2618.73 | G24: 2574.47 | H24: 2743.87 | I24: 2788.13 | J24: 2828.57 | K24: 2747.7 | L24: 2663 | M24: 4.20973
A25: 16 | B25: ABCAPITAL | C25: 113.65 | D25: 112.60 | E25: 111.30 | F25: 108.95 | G25: 107.65 | H25: 114.95 | I25: 116.25 | J25: 118.60 | K25: 113.9 | L25: 110.25 | M25: 54.15248
A26: 17 | B26: ABFRL | C26: 292.8 | D26: 293.40 | E26: 290.30 | F26: 287.80 | G26: 284.70 | H26: 295.90 | I26: 299.00 | J26: 301.50 | K26: 296.5 | L26: 290.9 | M26: 21.81901
A27: 18 | B27: AJANTPHARM | C27: 1767 | D27: 1772.67 | E27: 1756.33 | F27: 1745.67 | G27: 1729.33 | H27: 1783.33 | I27: 1799.67 | J27: 1810.33 | K27: 1789 | L27: 1762 | M27: 0.42195
A28: 19 | B28: APLLTD | C28: 771.1 | D28: 762.02 | E28: 751.03 | F28: 730.97 | G28: 719.98 | H28: 782.08 | I28: 793.07 | J28: 813.13 | K28: 773 | L28: 741.95 | M28: 1.82192
A29: 20 | B29: ALKEM | C29: 3404.15 | D29: 3419.38 | E29: 3374.22 | F29: 3344.28 | G29: 3299.12 | H29: 3449.32 | I29: 3494.48 | J29: 3524.42 | K29: 3464.55 | L29: 3389.45 | M29: 0.61401
A30: 21 | B30: AMARAJABAT | C30: 570.8 | D30: 569.07 | E30: 564.83 | F30: 558.87 | G30: 554.63 | H30: 575.03 | I30: 579.27 | J30: 585.23 | K30: 573.3 | L30: 563.1 | M30: 4.56136
A31: 22 | B31: AMBUJACEM | C31: 377.35 | D31: 378.83 | E31: 373.32 | F31: 369.28 | G31: 363.77 | H31: 382.87 | I31: 388.38 | J31: 392.42 | K31: 384.35 | L31: 374.8 | M31: 143.85266
A32: 23 | B32: APOLLOHOSP | C32: 4885.25 | D32: 4853.00 | E32: 4802.35 | F32: 4719.45 | G32: 4668.80 | H32: 4935.90 | I32: 4986.55 | J32: 5069.45 | K32: 4903.65 | L32: 4770.1 | M32: 7.71623
A33: 24 | B33: APOLLOTYRE | C33: 204.15 | D33: 202.02 | E33: 199.23 | F33: 194.32 | G33: 191.53 | H33: 206.93 | I33: 209.72 | J33: 214.63 | K33: 204.8 | L33: 197.1 | M33: 70.95916
A34: 25 | B34: ASHOKLEY | C34: 128.5 | D34: 128.83 | E34: 127.67 | F34: 126.83 | G34: 125.67 | H34: 129.67 | I34: 130.83 | J34: 131.67 | K34: 130 | L34: 128 | M34: 79.85714
A35: 26 | B35: ASIANPAINT | C35: 3158.25 | D35: 3139.57 | E35: 3104.73 | F35: 3051.22 | G35: 3016.38 | H35: 3193.08 | I35: 3227.92 | J35: 3281.43 | K35: 3174.4 | L35: 3086.05 | M35: 10.69035
A36: 27 | B36: ASTRAL | C36: 2119.95 | D36: 2135.00 | E36: 2097.00 | F36: 2074.05 | G36: 2036.05 | H36: 2157.95 | I36: 2195.95 | J36: 2218.90 | K36: 2173 | L36: 2112.05 | M36: 2.2302
A37: 28 | B37: AUROPHARMA | C37: 674 | D37: 673.40 | E37: 669.70 | F37: 665.40 | G37: 661.70 | H37: 677.70 | I37: 681.40 | J37: 685.70 | K37: 677.1 | L37: 669.1 | M37: 6.24963
A38: 29 | B38: DMART | C38: 4030.25 | D38: 4041.75 | E38: 4003.50 | F38: 3976.75 | G38: 3938.50 | H38: 4068.50 | I38: 4106.75 | J38: 4133.50 | K38: 4080 | L38: 4015 | M38: 2.09196
A39: 30 | B39: AXISBANK | C39: 801.8 | D39: 798.78 | E39: 793.57 | F39: 785.33 | G39: 780.12 | H39: 807.02 | I39: 812.23 | J39: 820.47 | K39: 804 | L39: 790.55 | M39: 68.51615
A40: 31 | B40: BAJAJ-AUTO | C40: 3702.35 | D40: 3707.32 | E40: 3675.13 | F40: 3647.92 | G40: 3615.73 | H40: 3734.53 | I40: 3766.72 | J40: 3793.93 | K40: 3739.5 | L40: 3680.1 | M40: 2.16475
A41: 32 | B41: BAJFINANCE | C41: 7138.1 | D41: 7124.13 | E41: 7061.27 | F41: 6984.43 | G41: 6921.57 | H41: 7200.97 | I41: 7263.83 | J41: 7340.67 | K41: 7187 | L41: 7047.3 | M41: 8.75343
A42: 33 | B42: BAJAJFINSV | C42: 15835.75 | D42: 15816.47 | E42: 15611.93 | F42: 15388.12 | G42: 15183.58 | H42: 16040.28 | I42: 16244.82 | J42: 16468.63 | K42: 16021 | L42: 15592.65 | M42: 2.36489
A43: 34 | B43: BAJAJHLDNG | C43: 5343.8 | D43: 5325.00 | E43: 5235.65 | F43: 5127.50 | G43: 5038.15 | H43: 5433.15 | I43: 5522.50 | J43: 5630.65 | K43: 5414.35 | L43: 5216.85 | M43: 1.03502
A44: 35 | B44: BALKRISIND | C44: 2161.3 | D44: 2148.37 | E44: 2112.98 | F44: 2064.67 | G44: 2029.28 | H44: 2196.68 | I44: 2232.07 | J44: 2280.38 | K44: 2183.75 | L44: 2100.05 | M44: 1.30115
A45: 36 | B45: BANDHANBNK | C45: 336.4 | D45: 334.13 | E45: 328.27 | F45: 320.13 | G45: 314.27 | H45: 342.27 | I45: 348.13 | J45: 356.27 | K45: 340 | L45: 326 | M45: 110.12408
A46: 37 | B46: BANKBARODA | C46: 113.9 | D46: 113.80 | E46: 113.10 | F46: 112.30 | G46: 111.60 | H46: 114.60 | I46: 115.30 | J46: 116.10 | K46: 114.5 | L46: 113 | M46: 199.21166
A47: 38 | B47: BANKINDIA | C47: 50.05 | D47: 50.05 | E47: 49.80 | F47: 49.55 | G47: 49.30 | H47: 50.30 | I47: 50.55 | J47: 50.80 | K47: 50.3 | L47: 49.8 | M47: 17.33196
A48: 39 | B48: BATAINDIA | C48: 1948.4 | D48: 1946.55 | E48: 1926.85 | F48: 1905.30 | G48: 1885.60 | H48: 1968.10 | I48: 1987.80 | J48: 2009.35 | K48: 1966.25 | L48: 1925 | M48: 2.96931
A49: 40 | B49: BERGEPAINT | C49: 715.05 | D49: 717.70 | E49: 709.40 | F49: 703.75 | G49: 695.45 | H49: 723.35 | I49: 731.65 | J49: 737.30 | K49: 726 | L49: 712.05 | M49: 5.59791
A50: 41 | B50: BEL | C50: 252.9 | D50: 254.50 | E50: 250.30 | F50: 247.70 | G50: 243.50 | H50: 257.10 | I50: 261.30 | J50: 263.90 | K50: 258.7 | L50: 251.9 | M50: 107.00831
A51: 42 | B51: BHARATFORG | C51: 738.8 | D51: 739.90 | E51: 729.90 | F51: 721.00 | G51: 711.00 | H51: 748.80 | I51: 758.80 | J51: 767.70 | K51: 749.9 | L51: 731 | M51: 12.6614
A52: 43 | B52: BHEL | C52: 54.7 | D52: 54.62 | E52: 54.13 | F52: 53.57 | G52: 53.08 | H52: 55.18 | I52: 55.67 | J52: 56.23 | K52: 55.1 | L52: 54.05 | M52: 185.20814
A53: 44 | B53: BPCL | C53: 397.7 | D53: 395.50 | E53: 392.20 | F53: 386.70 | G53: 383.40 | H53: 401.00 | I53: 404.30 | J53: 409.80 | K53: 398.8 | L53: 390 | M53: 79.77846
A54: 45 | B54: BHARTIARTL | C54: 735.75 | D54: 736.55 | E54: 729.20 | F54: 722.65 | G54: 715.30 | H54: 743.10 | I54: 750.45 | J54: 757.00 | K54: 743.9 | L54: 730 | M54: 61.1183
A55: 46 | B55: BIOCON | C55: 373.95 | D55: 365.85 | E55: 356.70 | F55: 339.45 | G55: 330.30 | H55: 383.10 | I55: 392.25 | J55: 409.50 | K55: 375 | L55: 348.6 | M55: 89.65603
A56: 47 | B56: BOSCHLTD | C56: 14637.45 | D56: 14569.45 | E56: 14488.00 | F56: 14338.55 | G56: 14257.10 | H56: 14718.90 | I56: 14800.35 | J56: 14949.80 | K56: 14650.9 | L56: 14420 | M56: 0.10746
A57: 48 | B57: BRITANNIA | C57: 3359.9 | D57: 3334.75 | E57: 3299.55 | F57: 3239.20 | G57: 3204.00 | H57: 3395.10 | I57: 3430.30 | J57: 3490.65 | K57: 3369.95 | L57: 3274.4 | M57: 1.52205
A58: 49 | B58: INTELLECT | C58: 844.35 | D58: 847.97 | E58: 833.13 | F58: 821.92 | G58: 807.08 | H58: 859.18 | I58: 874.02 | J58: 885.23 | K58: 862.8 | L58: 836.75 | M58: 2.42551
A59: 50 | B59: CANBK | C59: 238 | D59: 237.25 | E59: 236.00 | F59: 234.00 | G59: 232.75 | H59: 239.25 | I59: 240.50 | J59: 242.50 | K59: 238.5 | L59: 235.25 | M59: 40.48997
A60: 51 | B60: CASTROLIND | C60: 107.05 | D60: 106.80 | E60: 105.40 | F60: 103.75 | G60: 102.35 | H60: 108.45 | I60: 109.85 | J60: 111.50 | K60: 108.2 | L60: 105.15 | M60: 17.55539
A61: 52 | B61: CHOLAFIN | C61: 720.55 | D61: 719.22 | E61: 712.43 | F61: 704.32 | G61: 697.53 | H61: 727.33 | I61: 734.12 | J61: 742.23 | K61: 726 | L61: 711.1 | M61: 16.76681
A62: 53 | B62: CIPLA | C62: 998.55 | D62: 1005.08 | E62: 990.17 | F62: 981.78 | G62: 966.87 | H62: 1013.47 | I62: 1028.38 | J62: 1036.77 | K62: 1020 | L62: 996.7 | M62: 15.26774
A63: 54 | B63: CUB | C63: 137.45 | D63: 136.48 | E63: 134.62 | F63: 131.78 | G63: 129.92 | H63: 139.32 | I63: 141.18 | J63: 144.02 | K63: 138.35 | L63: 133.65 | M63: 9.43059
A64: 55 | B64: COALINDIA | C64: 206.9 | D64: 205.27 | E64: 202.63 | F64: 198.37 | G64: 195.73 | H64: 209.53 | I64: 212.17 | J64: 216.43 | K64: 207.9 | L64: 201 | M64: 436.83145
A65: 56 | B65: COFORGE | C65: 4093.05 | D65: 4063.65 | E65: 4020.40 | F65: 3947.75 | G65: 3904.50 | H65: 4136.30 | I65: 4179.55 | J65: 4252.20 | K65: 4106.9 | L65: 3991 | M65: 2.91958
A66: 57 | B66: COLPAL | C66: 1556.95 | D66: 1549.58 | E66: 1537.42 | F66: 1517.88 | G66: 1505.72 | H66: 1569.12 | I66: 1581.28 | J66: 1600.82 | K66: 1561.75 | L66: 1530.05 | M66: 3.89662
A67: 58 | B67: CONCOR | C67: 656.8 | D67: 657.62 | E67: 648.63 | F67: 640.47 | G67: 631.48 | H67: 665.78 | I67: 674.77 | J67: 682.93 | K67: 666.6 | L67: 649.45 | M67: 9.69631
A68: 59 | B68: COROMANDEL | C68: 838.95 | D68: 838.10 | E68: 821.20 | F68: 803.45 | G68: 786.55 | H68: 855.85 | I68: 872.75 | J68: 890.50 | K68: 855 | L68: 820.35 | M68: 6.22832
A69: 60 | B69: CROMPTON | C69: 380.8 | D69: 382.40 | E69: 377.90 | F69: 375.00 | G69: 370.50 | H69: 385.30 | I69: 389.80 | J69: 392.70 | K69: 386.9 | L69: 379.5 | M69: 30.73721
A70: 61 | B70: CUMMINSIND | C70: 1090.75 | D70: 1094.23 | E70: 1075.17 | F70: 1059.58 | G70: 1040.52 | H70: 1109.82 | I70: 1128.88 | J70: 1144.47 | K70: 1113.3 | L70: 1078.65 | M70: 6.19016
A71: 62 | B71: DLF | C71: 389.85 | D71: 386.63 | E71: 382.42 | F71: 374.98 | G71: 370.77 | H71: 394.07 | I71: 398.28 | J71: 405.72 | K71: 390.85 | L71: 379.2 | M71: 39.35746
A72: 63 | B72: DABUR | C72: 561.85 | D72: 558.55 | E72: 554.10 | F72: 546.35 | G72: 541.90 | H72: 566.30 | I72: 570.75 | J72: 578.50 | K72: 563 | L72: 550.8 | M72: 12.9368
A73: 64 | B73: DALBHARAT | C73: 1613.25 | D73: 1611.08 | E73: 1597.17 | F73: 1581.08 | G73: 1567.17 | H73: 1627.17 | I73: 1641.08 | J73: 1657.17 | K73: 1625 | L73: 1595 | M73: 0.80366
A74: 65 | B74: DEEPAKNTR | C74: 2290.85 | D74: 2272.93 | E74: 2243.62 | F74: 2196.38 | G74: 2167.07 | H74: 2320.17 | I74: 2349.48 | J74: 2396.72 | K74: 2302.25 | L74: 2225.7 | M74: 5.5992
A75: 66 | B75: DHANI | C75: 62.5 | D75: 63.50 | E75: 61.00 | F75: 59.50 | G75: 57.00 | H75: 65.00 | I75: 67.50 | J75: 69.00 | K75: 66 | L75: 62 | M75: 53.89064
A76: 67 | B76: DIVISLAB | C76: 4529.05 | D76: 4504.03 | E76: 4458.07 | F76: 4387.08 | G76: 4341.12 | H76: 4575.02 | I76: 4620.98 | J76: 4691.97 | K76: 4550 | L76: 4433.05 | M76: 3.771
A77: 68 | B77: DIXON | C77: 4294.65 | D77: 4281.67 | E77: 4254.63 | F77: 4214.62 | G77: 4187.58 | H77: 4321.68 | I77: 4348.72 | J77: 4388.73 | K77: 4308.7 | L77: 4241.65 | M77: 1.28861
A78: 69 | B78: LALPATHLAB | C78: 2780.55 | D78: 2785.15 | E78: 2750.35 | F78: 2720.15 | G78: 2685.35 | H78: 2815.35 | I78: 2850.15 | J78: 2880.35 | K78: 2819.95 | L78: 2754.95 | M78: 3.1262
A79: 70 | B79: DRREDDY | C79: 4320.3 | D79: 4327.28 | E79: 4303.02 | F79: 4285.73 | G79: 4261.47 | H79: 4344.57 | I79: 4368.83 | J79: 4386.12 | K79: 4351.55 | L79: 4310 | M79: 3.94436
A80: 71 | B80: EICHERMOT | C80: 2651.5 | D80: 2622.55 | E80: 2570.65 | F80: 2489.80 | G80: 2437.90 | H80: 2703.40 | I80: 2755.30 | J80: 2836.15 | K80: 2674.45 | L80: 2541.7 | M80: 10.90334
A81: 72 | B81: EMAMILTD | C81: 468.15 | D81: 470.60 | E81: 462.55 | F81: 456.95 | G81: 448.90 | H81: 476.20 | I81: 484.25 | J81: 489.85 | K81: 478.65 | L81: 465 | M81: 2.31367
A82: 73 | B82: ENDURANCE | C82: 1181.65 | D82: 1176.48 | E82: 1163.02 | F82: 1144.38 | G82: 1130.92 | H82: 1195.12 | I82: 1208.58 | J82: 1227.22 | K82: 1189.95 | L82: 1157.85 | M82: 0.3377
A83: 74 | B83: ESCORTS | C83: 1587.05 | D83: 1568.68 | E83: 1547.37 | F83: 1507.68 | G83: 1486.37 | H83: 1608.37 | I83: 1629.68 | J83: 1669.37 | K83: 1590 | L83: 1529 | M83: 8.78422
A84: 75 | B84: EXIDEIND | C84: 156.45 | D84: 156.08 | E84: 155.37 | F84: 154.28 | G84: 153.57 | H84: 157.17 | I84: 157.88 | J84: 158.97 | K84: 156.8 | L84: 155 | M84: 15.31942
A85: 76 | B85: FEDERALBNK | C85: 96.6 | D85: 96.63 | E85: 95.97 | F85: 95.33 | G85: 94.67 | H85: 97.27 | I85: 97.93 | J85: 98.57 | K85: 97.3 | L85: 96 | M85: 101.30826
A86: 77 | B86: FORTIS | C86: 278.8 | D86: 276.88 | E86: 273.97 | F86: 269.13 | G86: 266.22 | H86: 281.72 | I86: 284.63 | J86: 289.47 | K86: 279.8 | L86: 272.05 | M86: 13.37223
A87: 78 | B87: GAIL | C87: 164 | D87: 163.25 | E87: 161.25 | F87: 158.50 | G87: 156.50 | H87: 166.00 | I87: 168.00 | J87: 170.75 | K87: 165.25 | L87: 160.5 | M87: 173.80065
A88: 79 | B88: GMRINFRA | C88: 38 | D88: 37.72 | E88: 37.28 | F88: 36.57 | G88: 36.13 | H88: 38.43 | I88: 38.87 | J88: 39.58 | K88: 38.15 | L88: 37 | M88: 84.19032
A89: 80 | B89: GLAND | C89: 3448.7 | D89: 3406.45 | E89: 3253.50 | F89: 3058.30 | G89: 2905.35 | H89: 3601.65 | I89: 3754.60 | J89: 3949.80 | K89: 3559.4 | L89: 3211.25 | M89: 15.3101
A90: 81 | B90: GLENMARK | C90: 453.6 | D90: 456.13 | E90: 449.77 | F90: 445.93 | G90: 439.57 | H90: 459.97 | I90: 466.33 | J90: 470.17 | K90: 462.5 | L90: 452.3 | M90: 5.08412
A91: 82 | B91: GODREJCP | C91: 798 | D91: 801.38 | E91: 789.42 | F91: 780.83 | G91: 768.87 | H91: 809.97 | I91: 821.93 | J91: 830.52 | K91: 813.35 | L91: 792.8 | M91: 8.32196
A92: 83 | B92: GODREJIND | C92: 502.1 | D92: 499.57 | E92: 493.38 | F92: 484.67 | G92: 478.48 | H92: 508.28 | I92: 514.47 | J92: 523.18 | K92: 505.75 | L92: 490.85 | M92: 1.89929
A93: 84 | B93: GODREJPROP | C93: 1593.9 | D93: 1594.18 | E93: 1582.42 | F93: 1570.93 | G93: 1559.17 | H93: 1605.67 | I93: 1617.43 | J93: 1628.92 | K93: 1605.95 | L93: 1582.7 | M93: 2.84595
A94: 85 | B94: GRASIM | C94: 1764.25 | D94: 1756.23 | E94: 1742.52 | F94: 1720.78 | G94: 1707.07 | H94: 1777.97 | I94: 1791.68 | J94: 1813.42 | K94: 1769.95 | L94: 1734.5 | M94: 7.08186
A95: 86 | B95: GUJGASLTD | C95: 521.45 | D95: 520.12 | E95: 517.33 | F95: 513.22 | G95: 510.43 | H95: 524.23 | I95: 527.02 | J95: 531.13 | K95: 522.9 | L95: 516 | M95: 3.70057
A96: 87 | B96: GSPL | C96: 278.7 | D96: 279.28 | E96: 275.97 | F96: 273.23 | G96: 269.92 | H96: 282.02 | I96: 285.33 | J96: 288.07 | K96: 282.6 | L96: 276.55 | M96: 4.76007
A97: 88 | B97: HCLTECH | C97: 1099.2 | D97: 1095.12 | E97: 1085.18 | F97: 1071.17 | G97: 1061.23 | H97: 1109.13 | I97: 1119.07 | J97: 1133.08 | K97: 1105.05 | L97: 1081.1 | M97: 25.47848
A98: 89 | B98: HDFCAMC | C98: 2092.75 | D98: 2097.43 | E98: 2079.87 | F98: 2066.98 | G98: 2049.42 | H98: 2110.32 | I98: 2127.88 | J98: 2140.77 | K98: 2115 | L98: 2084.55 | M98: 4.12691
A99: 90 | B99: HDFCBANK | C99: 1374.35 | D99: 1369.15 | E99: 1358.50 | F99: 1342.65 | G99: 1332.00 | H99: 1385.00 | I99: 1395.65 | J99: 1411.50 | K99: 1379.8 | L99: 1353.3 | M99: 262.23135
A100: 91 | B100: HDFCLIFE | C100: 570.95 | D100: 567.90 | E100: 560.10 | F100: 549.25 | G100: 541.45 | H100: 578.75 | I100: 586.55 | J100: 597.40 | K100: 575.7 | L100: 557.05 | M100: 31.11307
A101: 92 | B101: HAVELLS | C101: 1320.75 | D101: 1315.92 | E101: 1301.88 | F101: 1283.02 | G101: 1268.98 | H101: 1334.78 | I101: 1348.82 | J101: 1367.68 | K101: 1329.95 | L101: 1297.05 | M101: 7.95979
A102: 93 | B102: HEROMOTOCO | C102: 2317.65 | D102: 2305.47 | E102: 2289.18 | F102: 2260.72 | G102: 2244.43 | H102: 2333.93 | I102: 2350.22 | J102: 2378.68 | K102: 2321.75 | L102: 2277 | M102: 3.41987
A103: 94 | B103: HINDALCO | C103: 540.25 | D103: 539.68 | E103: 532.02 | F103: 523.78 | G103: 516.12 | H103: 547.92 | I103: 555.58 | J103: 563.82 | K103: 547.35 | L103: 531.45 | M103: 85.75442
A104: 95 | B104: HAL | C104: 1676.9 | D104: 1684.95 | E104: 1661.10 | F104: 1645.30 | G104: 1621.45 | H104: 1700.75 | I104: 1724.60 | J104: 1740.40 | K104: 1708.8 | L104: 1669.15 | M104: 5.38252
A105: 96 | B105: HINDCOPPER | C105: 121.8 | D105: 121.93 | E105: 121.02 | F105: 120.23 | G105: 119.32 | H105: 122.72 | I105: 123.63 | J105: 124.42 | K105: 122.85 | L105: 121.15 | M105: 29.45809
A106: 97 | B106: HINDPETRO | C106: 300.95 | D106: 300.57 | E106: 297.03 | F106: 293.12 | G106: 289.58 | H106: 304.48 | I106: 308.02 | J106: 311.93 | K106: 304.1 | L106: 296.65 | M106: 34.68255
A107: 98 | B107: HINDUNILVR | C107: 2197.95 | D107: 2189.90 | E107: 2176.05 | F107: 2154.15 | G107: 2140.30 | H107: 2211.80 | I107: 2225.65 | J107: 2247.55 | K107: 2203.75 | L107: 2168 | M107: 22.44813
A108: 99 | B108: HINDZINC | C108: 349.8 | D108: 348.33 | E108: 345.77 | F108: 341.73 | G108: 339.17 | H108: 352.37 | I108: 354.93 | J108: 358.97 | K108: 350.9 | L108: 344.3 | M108: 5.99962
A109: 100 | B109: HDFC | C109: 2230.65 | D109: 2219.48 | E109: 2192.37 | F109: 2154.08 | G109: 2126.97 | H109: 2257.77 | I109: 2284.88 | J109: 2323.17 | K109: 2246.6 | L109: 2181.2 | M109: 54.19406
A110: 101 | B110: ICICIBANK | C110: 762.35 | D110: 759.25 | E110: 754.30 | F110: 746.25 | G110: 741.30 | H110: 767.30 | I110: 772.25 | J110: 780.30 | K110: 764.2 | L110: 751.2 | M110: 89.53098
A111: 102 | B111: ICICIGI | C111: 1401 | D111: 1392.00 | E111: 1372.00 | F111: 1343.00 | G111: 1323.00 | H111: 1421.00 | I111: 1441.00 | J111: 1470.00 | K111: 1412 | L111: 1363 | M111: 5.46851
A112: 103 | B112: ICICIPRULI | C112: 532.55 | D112: 533.42 | E112: 527.33 | F112: 522.12 | G112: 516.03 | H112: 538.63 | I112: 544.72 | J112: 549.93 | K112: 539.5 | L112: 528.2 | M112: 7.43722
A113: 104 | B113: ISEC | C113: 597.15 | D113: 596.65 | E113: 581.05 | F113: 564.95 | G113: 549.35 | H113: 612.75 | I113: 628.35 | J113: 644.45 | K113: 612.25 | L113: 580.55 | M113: 28.35217
A114: 105 | B114: IDFCFIRSTB | C114: 40.85 | D114: 40.67 | E114: 40.38 | F114: 39.92 | G114: 39.63 | H114: 41.13 | I114: 41.42 | J114: 41.88 | K114: 40.95 | L114: 40.2 | M114: 144.9385
A115: 106 | B115: ITC | C115: 260.4 | D115: 261.48 | E115: 258.52 | F115: 256.63 | G115: 253.67 | H115: 263.37 | I115: 266.33 | J115: 268.22 | K115: 264.45 | L115: 259.6 | M115: 234.12279
A116: 107 | B116: INDIAMART | C116: 4794.45 | D116: 4820.03 | E116: 4725.07 | F116: 4655.68 | G116: 4560.72 | H116: 4889.42 | I116: 4984.38 | J116: 5053.77 | K116: 4915 | L116: 4750.65 | M116: 1.68003
A117: 108 | B117: INDIANB | C117: 166 | D117: 166.02 | E117: 165.03 | F117: 164.07 | G117: 163.08 | H117: 166.98 | I117: 167.97 | J117: 168.93 | K117: 167 | L117: 165.05 | M117: 8.30302
A118: 109 | B118: INDHOTEL | C118: 244.2 | D118: 243.90 | E118: 239.20 | F118: 234.20 | G118: 229.50 | H118: 248.90 | I118: 253.60 | J118: 258.60 | K118: 248.6 | L118: 238.9 | M118: 73.99169
A119: 110 | B119: IOC | C119: 135.05 | D119: 134.62 | E119: 133.83 | F119: 132.62 | G119: 131.83 | H119: 135.83 | I119: 136.62 | J119: 137.83 | K119: 135.4 | L119: 133.4 | M119: 147.69541
A120: 111 | B120: IRCTC | C120: 759.65 | D120: 757.37 | E120: 753.43 | F120: 747.22 | G120: 743.28 | H120: 763.58 | I120: 767.52 | J120: 773.73 | K120: 761.3 | L120: 751.15 | M120: 13.65751
A121: 112 | B121: IRFC | C121: 22.05 | D121: 22.12 | E121: 21.98 | F121: 21.92 | G121: 21.78 | H121: 22.18 | I121: 22.32 | J121: 22.38 | K121: 22.25 | L121: 22.05 | M121: 50.46345
A122: 113 | B122: IGL | C122: 380.45 | D122: 379.32 | E122: 376.68 | F122: 372.92 | G122: 370.28 | H122: 383.08 | I122: 385.72 | J122: 389.48 | K122: 381.95 | L122: 375.55 | M122: 15.86725
A123: 114 | B123: INDUSTOWER | C123: 216.45 | D123: 217.00 | E123: 215.15 | F123: 213.85 | G123: 212.00 | H123: 218.30 | I123: 220.15 | J123: 221.45 | K123: 218.85 | L123: 215.7 | M123: 11.90758
A124: 115 | B124: INDUSINDBK | C124: 989.25 | D124: 986.02 | E124: 979.33 | F124: 969.42 | G124: 962.73 | H124: 995.93 | I124: 1002.62 | J124: 1012.53 | K124: 992.7 | L124: 976.1 | M124: 19.5782
A125: 116 | B125: NAUKRI | C125: 4632.05 | D125: 4643.68 | E125: 4588.37 | F125: 4544.68 | G125: 4489.37 | H125: 4687.37 | I125: 4742.68 | J125: 4786.37 | K125: 4699 | L125: 4600 | M125: 2.41755
A126: 117 | B126: INFY | C126: 1618.8 | D126: 1611.75 | E126: 1596.30 | F126: 1573.80 | G126: 1558.35 | H126: 1634.25 | I126: 1649.70 | J126: 1672.20 | K126: 1627.2 | L126: 1589.25 | M126: 77.66514
A127: 118 | B127: INDIGO | C127: 1938.45 | D127: 1927.82 | E127: 1904.63 | F127: 1870.82 | G127: 1847.63 | H127: 1961.63 | I127: 1984.82 | J127: 2018.63 | K127: 1951 | L127: 1894 | M127: 4.17188
A128: 119 | B128: IPCALAB | C128: 1030.4 | D128: 1028.07 | E128: 1021.13 | F128: 1011.87 | G128: 1004.93 | H128: 1037.33 | I128: 1044.27 | J128: 1053.53 | K128: 1035 | L128: 1018.8 | M128: 4.88476
A129: 120 | B129: JSWENERGY | C129: 340.1 | D129: 340.70 | E129: 333.40 | F129: 326.70 | G129: 319.40 | H129: 347.40 | I129: 354.70 | J129: 361.40 | K129: 348 | L129: 334 | M129: 4.39219
A130: 121 | B130: JSWSTEEL | C130: 734.2 | D130: 735.65 | E130: 724.05 | F130: 713.90 | G130: 702.30 | H130: 745.80 | I130: 757.40 | J130: 767.55 | K130: 747.25 | L130: 725.5 | M130: 39.95936
A131: 122 | B131: JINDALSTEL | C131: 540.75 | D131: 541.37 | E131: 522.73 | F131: 504.72 | G131: 486.08 | H131: 559.38 | I131: 578.02 | J131: 596.03 | K131: 560 | L131: 523.35 | M131: 147.55221
A132: 123 | B132: JUBLFOOD | C132: 594.75 | D132: 583.53 | E132: 566.22 | F132: 537.68 | G132: 520.37 | H132: 612.07 | I132: 629.38 | J132: 657.92 | K132: 600.85 | L132: 555 | M132: 71.44617
A133: 124 | B133: KOTAKBANK | C133: 1760.85 | D133: 1752.78 | E133: 1732.12 | F133: 1703.38 | G133: 1682.72 | H133: 1781.52 | I133: 1802.18 | J133: 1830.92 | K133: 1773.45 | L133: 1724.05 | M133: 27.30691
A134: 125 | B134: L&TFH | C134: 88.45 | D134: 86.62 | E134: 82.98 | F134: 77.52 | G134: 73.88 | H134: 92.08 | I134: 95.72 | J134: 101.18 | K134: 90.25 | L134: 81.15 | M134: 455.05467
A135: 126 | B135: LTTS | C135: 4244.3 | D135: 4233.98 | E135: 4190.37 | F135: 4136.43 | G135: 4092.82 | H135: 4287.92 | I135: 4331.53 | J135: 4385.47 | K135: 4277.6 | L135: 4180.05 | M135: 2.35585
A136: 127 | B136: LICHSGFIN | C136: 382.3 | D136: 380.90 | E136: 377.90 | F136: 373.50 | G136: 370.50 | H136: 385.30 | I136: 388.30 | J136: 392.70 | K136: 383.9 | L136: 376.5 | M136: 17.86544
A137: 128 | B137: LTI | C137: 5076.95 | D137: 5106.03 | E137: 4962.12 | F137: 4847.28 | G137: 4703.37 | H137: 5220.87 | I137: 5364.78 | J137: 5479.62 | K137: 5249.95 | L137: 4991.2 | M137: 20.07738
A138: 129 | B138: LT | C138: 1714.5 | D138: 1713.43 | E138: 1701.07 | F138: 1687.63 | G138: 1675.27 | H138: 1726.87 | I138: 1739.23 | J138: 1752.67 | K138: 1725.8 | L138: 1700 | M138: 17.97489
A139: 130 | B139: LAURUSLABS | C139: 611.05 | D139: 611.27 | E139: 607.78 | F139: 604.52 | G139: 601.03 | H139: 614.53 | I139: 618.02 | J139: 621.28 | K139: 614.75 | L139: 608 | M139: 8.7418
A140: 131 | B140: LUPIN | C140: 782.45 | D140: 779.15 | E140: 772.30 | F140: 762.15 | G140: 755.30 | H140: 789.30 | I140: 796.15 | J140: 806.30 | K140: 786 | L140: 769 | M140: 9.36009
A141: 132 | B141: MRF | C141: 69714.8 | D141: 69224.93 | E141: 68349.87 | F141: 66984.93 | G141: 66109.87 | H141: 70589.87 | I141: 71464.93 | J141: 72829.87 | K141: 70100 | L141: 67860 | M141: 0.11532
A142: 133 | B142: MGL | C142: 825.55 | D142: 822.60 | E142: 816.45 | F142: 807.35 | G142: 801.20 | H142: 831.70 | I142: 837.85 | J142: 846.95 | K142: 828.75 | L142: 813.5 | M142: 2.82912
A143: 134 | B143: M&MFIN | C143: 179.7 | D143: 179.30 | E143: 176.90 | F143: 174.10 | G143: 171.70 | H143: 182.10 | I143: 184.50 | J143: 187.30 | K143: 181.7 | L143: 176.5 | M143: 30.86859
A144: 135 | B144: M&M | C144: 911 | D144: 901.92 | E144: 889.83 | F144: 868.67 | G144: 856.58 | H144: 923.08 | I144: 935.17 | J144: 956.33 | K144: 914 | L144: 880.75 | M144: 32.06906
A145: 136 | B145: MANAPPURAM | C145: 121.25 | D145: 119.68 | E145: 117.67 | F145: 114.08 | G145: 112.07 | H145: 123.27 | I145: 125.28 | J145: 128.87 | K145: 121.7 | L145: 116.1 | M145: 60.64604
A146: 137 | B146: MARICO | C146: 518.2 | D146: 517.40 | E146: 514.35 | F146: 510.50 | G146: 507.45 | H146: 521.25 | I146: 524.30 | J146: 528.15 | K146: 520.45 | L146: 513.55 | M146: 15.15422
A147: 138 | B147: MARUTI | C147: 7879.2 | D147: 7821.68 | E147: 7743.57 | F147: 7607.93 | G147: 7529.82 | H147: 7957.32 | I147: 8035.43 | J147: 8171.07 | K147: 7899.8 | L147: 7686.05 | M147: 7.72708
A148: 139 | B148: MFSL | C148: 747.45 | D148: 749.55 | E148: 739.30 | F148: 731.15 | G148: 720.90 | H148: 757.70 | I148: 767.95 | J148: 776.10 | K148: 759.8 | L148: 741.4 | M148: 3.918
A149: 140 | B149: MINDTREE | C149: 3737.5 | D149: 3711.30 | E149: 3679.20 | F149: 3620.90 | G149: 3588.80 | H149: 3769.60 | I149: 3801.70 | J149: 3860.00 | K149: 3743.4 | L149: 3653 | M149: 5.22382
A150: 141 | B150: MPHASIS | C150: 2900.75 | D150: 2896.95 | E150: 2864.90 | F150: 2829.05 | G150: 2797.00 | H150: 2932.80 | I150: 2964.85 | J150: 3000.70 | K150: 2929 | L150: 2861.1 | M150: 4.38423
A151: 142 | B151: MUTHOOTFIN | C151: 1333.4 | D151: 1332.13 | E151: 1318.27 | F151: 1303.13 | G151: 1289.27 | H151: 1347.27 | I151: 1361.13 | J151: 1376.27 | K151: 1346 | L151: 1317 | M151: 5.34098
A152: 143 | B152: NATCOPHARM | C152: 769.4 | D152: 773.95 | E152: 762.45 | F152: 755.50 | G152: 744.00 | H152: 780.90 | I152: 792.40 | J152: 799.35 | K152: 785.45 | L152: 767 | M152: 1.90229
A153: 144 | B153: NMDC | C153: 169.95 | D153: 169.13 | E153: 167.67 | F153: 165.38 | G153: 163.92 | H153: 171.42 | I153: 172.88 | J153: 175.17 | K153: 170.6 | L153: 166.85 | M153: 65.65198
A154: 145 | B154: NTPC | C154: 162.7 | D154: 162.15 | E154: 160.90 | F154: 159.10 | G154: 157.85 | H154: 163.95 | I154: 165.20 | J154: 167.00 | K154: 163.4 | L154: 160.35 | M154: 219.66151
A155: 146 | B155: NATIONALUM | C155: 119.3 | D155: 118.95 | E155: 117.65 | F155: 116.00 | G155: 114.70 | H155: 120.60 | I155: 121.90 | J155: 123.55 | K155: 120.25 | L155: 117.3 | M155: 162.27721
A156: 147 | B156: NAVINFLUOR | C156: 4044.95 | D156: 4003.98 | E156: 3940.97 | F156: 3836.98 | G156: 3773.97 | H156: 4107.97 | I156: 4170.98 | J156: 4274.97 | K156: 4067 | L156: 3900 | M156: 1.33065
A157: 148 | B157: NESTLEIND | C157: 18202.95 | D157: 18173.95 | E157: 17780.00 | F157: 17357.05 | G157: 16963.10 | H157: 18596.90 | I157: 18990.85 | J157: 19413.80 | K157: 18567.9 | L157: 17751 | M157: 1.85341
A158: 149 | B158: NAM-INDIA | C158: 331.7 | D158: 330.30 | E158: 326.20 | F158: 320.70 | G158: 316.60 | H158: 335.80 | I158: 339.90 | J158: 345.40 | K158: 334.4 | L158: 324.8 | M158: 3.18508
A159: 150 | B159: OBEROIRLTY | C159: 981.9 | D159: 977.07 | E159: 966.93 | F159: 951.97 | G159: 941.83 | H159: 992.03 | I159: 1002.17 | J159: 1017.13 | K159: 987.2 | L159: 962.1 | M159: 4.36086
A160: 151 | B160: ONGC | C160: 174.15 | D160: 174.92 | E160: 173.13 | F160: 172.12 | G160: 170.33 | H160: 175.93 | I160: 177.72 | J160: 178.73 | K160: 176.7 | L160: 173.9 | M160: 122.4672
A161: 152 | B161: OIL | C161: 240 | D161: 241.45 | E161: 237.10 | F161: 234.20 | G161: 229.85 | H161: 244.35 | I161: 248.70 | J161: 251.60 | K161: 245.8 | L161: 238.55 | M161: 16.64082
A162: 153 | B162: PIIND | C162: 2876.3 | D162: 2870.95 | E162: 2856.85 | F162: 2837.40 | G162: 2823.30 | H162: 2890.40 | I162: 2904.50 | J162: 2923.95 | K162: 2885.05 | L162: 2851.5 | M162: 1.6455
A163: 154 | B163: PAGEIND | C163: 45814 | D163: 45671.67 | E163: 45343.33 | F163: 44872.67 | G163: 44544.33 | H163: 46142.33 | I163: 46470.67 | J163: 46941.33 | K163: 46000 | L163: 45201 | M163: 0.11665
A164: 155 | B164: PETRONET | C164: 210.7 | D164: 209.55 | E164: 207.90 | F164: 205.10 | G164: 203.45 | H164: 212.35 | I164: 214.00 | J164: 216.80 | K164: 211.2 | L164: 206.75 | M164: 20.64303
A165: 156 | B165: PFIZER | C165: 4458.85 | D165: 4451.75 | E165: 4428.55 | F165: 4398.25 | G165: 4375.05 | H165: 4482.05 | I165: 4505.25 | J165: 4535.55 | K165: 4474.95 | L165: 4421.45 | M165: 0.14856
A166: 157 | B166: PIDILITIND | C166: 2406.35 | D166: 2396.80 | E166: 2379.60 | F166: 2352.85 | G166: 2335.65 | H166: 2423.55 | I166: 2440.75 | J166: 2467.50 | K166: 2414 | L166: 2370.05 | M166: 2.54959
A167: 158 | B167: PEL | C167: 2239.35 | D167: 2239.12 | E167: 2226.23 | F167: 2213.12 | G167: 2200.23 | H167: 2252.23 | I167: 2265.12 | J167: 2278.23 | K167: 2252 | L167: 2226 | M167: 4.34138
A168: 159 | B168: POLYCAB | C168: 2743.9 | D168: 2706.40 | E168: 2657.70 | F168: 2571.50 | G168: 2522.80 | H168: 2792.60 | I168: 2841.30 | J168: 2927.50 | K168: 2755.1 | L168: 2620.2 | M168: 12.37606
A169: 160 | B169: PFC | C169: 119 | D169: 118.98 | E169: 118.37 | F169: 117.73 | G169: 117.12 | H169: 119.62 | I169: 120.23 | J169: 120.87 | K169: 119.6 | L169: 118.35 | M169: 41.494
A170: 161 | B170: POWERGRID | C170: 227.25 | D170: 227.05 | E170: 225.45 | F170: 223.65 | G170: 222.05 | H170: 228.85 | I170: 230.45 | J170: 232.25 | K170: 228.65 | L170: 225.25 | M170: 83.5075
A171: 162 | B171: PRESTIGE | C171: 495.55 | D171: 495.80 | E171: 489.00 | F171: 482.45 | G171: 475.65 | H171: 502.35 | I171: 509.15 | J171: 515.70 | K171: 502.6 | L171: 489.25 | M171: 5.55377
A172: 163 | B172: PGHH | C172: 14261.4 | D172: 14315.50 | E172: 14146.90 | F172: 14032.40 | G172: 13863.80 | H172: 14430.00 | I172: 14598.60 | J172: 14713.10 | K172: 14484.1 | L172: 14201 | M172: 0.11037
A173: 164 | B173: PNB | C173: 35.95 | D173: 35.97 | E173: 35.78 | F173: 35.62 | G173: 35.43 | H173: 36.13 | I173: 36.32 | J173: 36.48 | K173: 36.15 | L173: 35.8 | M173: 192.83074
A174: 165 | B174: RBLBANK | C174: 126.55 | D174: 127.93 | E174: 123.37 | F174: 120.18 | G174: 115.62 | H174: 131.12 | I174: 135.68 | J174: 138.87 | K174: 132.5 | L174: 124.75 | M174: 265.1412
A175: 166 | B175: RECLTD | C175: 130 | D175: 129.77 | E175: 129.18 | F175: 128.37 | G175: 127.78 | H175: 130.58 | I175: 131.17 | J175: 131.98 | K175: 130.35 | L175: 128.95 | M175: 22.45528
A176: 167 | B176: RELIANCE | C176: 2782.1 | D176: 2767.70 | E176: 2746.40 | F176: 2710.70 | G176: 2689.40 | H176: 2803.40 | I176: 2824.70 | J176: 2860.40 | K176: 2789 | L176: 2732 | M176: 100.18531
A177: 168 | B177: SBICARD | C177: 795.75 | D177: 796.50 | E177: 789.25 | F177: 782.75 | G177: 775.50 | H177: 803.00 | I177: 810.25 | J177: 816.75 | K177: 803.75 | L177: 790 | M177: 17.37624
A178: 169 | B178: SBILIFE | C178: 1144.55 | D178: 1139.45 | E178: 1130.30 | F178: 1116.05 | G178: 1106.90 | H178: 1153.70 | I178: 1162.85 | J178: 1177.10 | K178: 1148.6 | L178: 1125.2 | M178: 7.31288
A179: 170 | B179: SRF | C179: 2547.4 | D179: 2554.33 | E179: 2524.37 | F179: 2501.33 | G179: 2471.37 | H179: 2577.37 | I179: 2607.33 | J179: 2630.37 | K179: 2584.3 | L179: 2531.3 | M179: 5.31946
A180: 171 | B180: SANOFI | C180: 7024.1 | D180: 7028.38 | E180: 7006.77 | F180: 6989.43 | G180: 6967.82 | H180: 7045.72 | I180: 7067.33 | J180: 7084.67 | K180: 7050 | L180: 7011.05 | M180: 0.08424
A181: 172 | B181: SHREECEM | C181: 26056.55 | D181: 25927.22 | E181: 25754.43 | F181: 25452.32 | G181: 25279.53 | H181: 26229.33 | I181: 26402.12 | J181: 26704.23 | K181: 26100 | L181: 25625.1 | M181: 0.2064
A182: 173 | B182: SRTRANSFIN | C182: 1150.85 | D182: 1140.97 | E182: 1127.98 | F182: 1105.12 | G182: 1092.13 | H182: 1163.83 | I182: 1176.82 | J182: 1199.68 | K182: 1153.95 | L182: 1118.1 | M182: 7.7828
A183: 174 | B183: SIEMENS | C183: 2379.85 | D183: 2384.15 | E183: 2361.70 | F183: 2343.55 | G183: 2321.10 | H183: 2402.30 | I183: 2424.75 | J183: 2442.90 | K183: 2406.6 | L183: 2366 | M183: 1.97325
A184: 175 | B184: SBIN | C184: 516.3 | D184: 515.50 | E184: 513.00 | F184: 509.70 | G184: 507.20 | H184: 518.80 | I184: 521.30 | J184: 524.60 | K184: 518 | L184: 512.2 | M184: 100.35638
A185: 176 | B185: SAIL | C185: 103.1 | D185: 102.53 | E185: 101.27 | F185: 99.43 | G185: 98.17 | H185: 104.37 | I185: 105.63 | J185: 107.47 | K185: 103.8 | L185: 100.7 | M185: 311.69375
A186: 177 | B186: SUNPHARMA | C186: 944.1 | D186: 936.90 | E186: 927.80 | F186: 911.50 | G186: 902.40 | H186: 953.20 | I186: 962.30 | J186: 978.60 | K186: 946 | L186: 920.6 | M186: 24.10164
A187: 178 | B187: SUNTV | C187: 503.55 | D187: 502.30 | E187: 498.75 | F187: 493.95 | G187: 490.40 | H187: 507.10 | I187: 510.65 | J187: 515.45 | K187: 505.85 | L187: 497.5 | M187: 5.69542
A188: 179 | B188: SYNGENE | C188: 630.05 | D188: 631.53 | E188: 624.67 | F188: 619.28 | G188: 612.42 | H188: 636.92 | I188: 643.78 | J188: 649.17 | K188: 638.4 | L188: 626.15 | M188: 3.2921
A189: 180 | B189: TVSMOTOR | C189: 658.2 | D189: 657.73 | E189: 652.47 | F189: 646.73 | G189: 641.47 | H189: 663.47 | I189: 668.73 | J189: 674.47 | K189: 663 | L189: 652 | M189: 6.34287
A190: 181 | B190: TATACHEM | C190: 983.05 | D190: 981.25 | E190: 974.80 | F190: 966.55 | G190: 960.10 | H190: 989.50 | I190: 995.95 | J190: 1004.20 | K190: 987.7 | L190: 973 | M190: 4.85694
A191: 182 | B191: TATACOMM | C191: 1282 | D191: 1294.42 | E191: 1264.83 | F191: 1247.67 | G191: 1218.08 | H191: 1311.58 | I191: 1341.17 | J191: 1358.33 | K191: 1324 | L191: 1277.25 | M191: 6.66921
A192: 183 | B192: TCS | C192: 3628.65 | D192: 3613.35 | E192: 3582.70 | F192: 3536.75 | G192: 3506.10 | H192: 3659.30 | I192: 3689.95 | J192: 3735.90 | K192: 3644 | L192: 3567.4 | M192: 22.80996
A193: 184 | B193: TATACONSUM | C193: 820.05 | D193: 815.43 | E193: 808.87 | F193: 797.68 | G193: 791.12 | H193: 826.62 | I193: 833.18 | J193: 844.37 | K193: 822 | L193: 804.25 | M193: 13.4425
A194: 185 | B194: TATAELXSI | C194: 7903.85 | D194: 7973.20 | E194: 7756.40 | F194: 7608.95 | G194: 7392.15 | H194: 8120.65 | I194: 8337.45 | J194: 8484.90 | K194: 8190 | L194: 7825.75 | M194: 13.76486
A195: 186 | B195: TATAMOTORS | C195: 448.05 | D195: 446.15 | E195: 442.95 | F195: 437.85 | G195: 434.65 | H195: 451.25 | I195: 454.45 | J195: 459.55 | K195: 449.35 | L195: 441.05 | M195: 141.24872
A196: 187 | B196: TATAPOWER | C196: 258.85 | D196: 256.58 | E196: 252.97 | F196: 247.08 | G196: 243.47 | H196: 262.47 | I196: 266.08 | J196: 271.97 | K196: 260.2 | L196: 250.7 | M196: 406.17734
A197: 188 | B197: TATASTEEL | C197: 1302.15 | D197: 1303.58 | E197: 1284.42 | F197: 1266.68 | G197: 1247.52 | H197: 1321.32 | I197: 1340.48 | J197: 1358.22 | K197: 1322.75 | L197: 1285.85 | M197: 66.69028
A198: 189 | B198: TECHM | C198: 1312.7 | D198: 1309.72 | E198: 1300.43 | F198: 1288.17 | G198: 1278.88 | H198: 1321.98 | I198: 1331.27 | J198: 1343.53 | K198: 1319 | L198: 1297.45 | M198: 37.28173
A199: 190 | B199: RAMCOCEM | C199: 808.95 | D199: 809.20 | E199: 804.10 | F199: 799.25 | G199: 794.15 | H199: 814.05 | I199: 819.15 | J199: 824.00 | K199: 814.3 | L199: 804.35 | M199: 5.43587
A200: 191 | B200: TITAN | C200: 2521 | D200: 2503.98 | E200: 2483.02 | F200: 2445.03 | G200: 2424.07 | H200: 2541.97 | I200: 2562.93 | J200: 2600.92 | K200: 2524.95 | L200: 2466 | M200: 8.80723
A201: 192 | B201: TORNTPHARM | C201: 2829.95 | D201: 2849.33 | E201: 2804.67 | F201: 2779.38 | G201: 2734.72 | H201: 2874.62 | I201: 2919.28 | J201: 2944.57 | K201: 2894 | L201: 2824.05 | M201: 1.08945
A202: 193 | B202: TORNTPOWER | C202: 557.65 | D202: 550.97 | E202: 538.68 | F202: 519.72 | G202: 507.43 | H202: 569.93 | I202: 582.22 | J202: 601.18 | K202: 563.25 | L202: 532 | M202: 2.82523
A203: 194 | B203: TRENT | C203: 1285.8 | D203: 1280.27 | E203: 1265.53 | F203: 1245.27 | G203: 1230.53 | H203: 1300.53 | I203: 1315.27 | J203: 1335.53 | K203: 1295 | L203: 1260 | M203: 5.16906
A204: 195 | B204: UPL | C204: 829.15 | D204: 827.93 | E204: 822.22 | F204: 815.28 | G204: 809.57 | H204: 834.87 | I204: 840.58 | J204: 847.52 | K204: 833.65 | L204: 821 | M204: 26.91988
A205: 196 | B205: ULTRACEMCO | C205: 6846.5 | D205: 6847.17 | E205: 6807.33 | F205: 6768.17 | G205: 6728.33 | H205: 6886.33 | I205: 6926.17 | J205: 6965.33 | K205: 6887 | L205: 6808 | M205: 1.81457
... 29 more rows

Sheet MidCap Intra
L5: Back To Main Page
A6: FOR INTRA DAY TRADING | K6: =Main!B10 -> 2022-04-22
A9: Sr.no | B9: Scrip | C9: CLOSE RATE | D9: Pivot Point | E9: Supports | H9: Resistances
E10: S1 | F10: S2 | G10: S3 | H10: R1 | I10: R2 | J10: R3 | K10: HIGH | L10: LOW | M10: Total Trade Quanity in Lakhs
A11: 1 | B11: 3MINDIA | C11: 21209.6 | D11: 21124.87 | E11: 20851.73 | F11: 20493.87 | G11: 20220.73 | H11: 21482.73 | I11: 21755.87 | J11: 22113.73 | K11: 21398 | L11: 20767 | M11: 0.01384
A12: 2 | B12: AARTIDRUGS | C12: 491.5 | D12: 491.28 | E12: 486.57 | F12: 481.63 | G12: 476.92 | H12: 496.22 | I12: 500.93 | J12: 505.87 | K12: 496 | L12: 486.35 | M12: 0.59105
A13: 3 | B13: AARTIIND | C13: 940.8 | D13: 943.98 | E13: 935.97 | F13: 931.13 | G13: 923.12 | H13: 948.82 | I13: 956.83 | J13: 961.67 | K13: 952 | L13: 939.15 | M13: 3.48379
A14: 4 | B14: AAVAS | C14: 2405.45 | D14: 2429.93 | E14: 2375.52 | F14: 2345.58 | G14: 2291.17 | H14: 2459.87 | I14: 2514.28 | J14: 2544.22 | K14: 2484.35 | L14: 2400 | M14: 0.41995
A15: 5 | B15: ABB | C15: 2143.5 | D15: 2145.47 | E15: 2121.23 | F15: 2098.97 | G15: 2074.73 | H15: 2167.73 | I15: 2191.97 | J15: 2214.23 | K15: 2169.7 | L15: 2123.2 | M15: 1.22239
A16: 6 | B16: ABBOTINDIA | C16: 17428.85 | D16: 17293.48 | E16: 17047.02 | F16: 16665.18 | G16: 16418.72 | H16: 17675.32 | I16: 17921.78 | J16: 18303.62 | K16: 17539.95 | L16: 16911.65 | M16: 0.17973
A17: 7 | B17: ABCAPITAL | C17: 113.65 | D17: 112.60 | E17: 111.30 | F17: 108.95 | G17: 107.65 | H17: 114.95 | I17: 116.25 | J17: 118.60 | K17: 113.9 | L17: 110.25 | M17: 54.15248
A18: 8 | B18: ABFRL | C18: 292.8 | D18: 293.40 | E18: 290.30 | F18: 287.80 | G18: 284.70 | H18: 295.90 | I18: 299.00 | J18: 301.50 | K18: 296.5 | L18: 290.9 | M18: 21.81901
A19: 9 | B19: ACC | C19: 2270.1 | D19: 2250.12 | E19: 2225.23 | F19: 2180.37 | G19: 2155.48 | H19: 2294.98 | I19: 2319.87 | J19: 2364.73 | K19: 2275 | L19: 2205.25 | M19: 14.91272
A20: 10 | B20: ADANIENT | C20: 2286.35 | D20: 2261.27 | E20: 2228.98 | F20: 2171.62 | G20: 2139.33 | H20: 2318.63 | I20: 2350.92 | J20: 2408.28 | K20: 2293.55 | L20: 2203.9 | M20: 22.43636
A21: 11 | B21: ADANIGREEN | C21: 2811.5 | D21: 2810.50 | E21: 2751.00 | F21: 2690.50 | G21: 2631.00 | H21: 2871.00 | I21: 2930.50 | J21: 2991.00 | K21: 2870 | L21: 2750 | M21: 11.22487
A22: 12 | B22: ADANIPORTS | C22: 850.5 | D22: 847.23 | E22: 835.57 | F22: 820.63 | G22: 808.97 | H22: 862.17 | I22: 873.83 | J22: 888.77 | K22: 858.9 | L22: 832.3 | M22: 55.39106
A23: 13 | B23: ADANITRANS | C23: 2699.6 | D23: 2703.43 | E23: 2659.17 | F23: 2618.73 | G23: 2574.47 | H23: 2743.87 | I23: 2788.13 | J23: 2828.57 | K23: 2747.7 | L23: 2663 | M23: 4.20973
A24: 14 | B24: ADVENZYMES | C24: 309.6 | D24: 312.23 | E24: 304.82 | F24: 300.03 | G24: 292.62 | H24: 317.02 | I24: 324.43 | J24: 329.22 | K24: 319.65 | L24: 307.45 | M24: 1.44216
A25: 15 | B25: AEGISCHEM | C25: 239.85 | D25: 240.78 | E25: 233.57 | F25: 227.28 | G25: 220.07 | H25: 247.07 | I25: 254.28 | J25: 260.57 | K25: 248 | L25: 234.5 | M25: 15.45136
A26: 16 | B26: AFFLE | C26: 1225.85 | D26: 1224.13 | E26: 1217.07 | F26: 1208.28 | G26: 1201.22 | H26: 1232.92 | I26: 1239.98 | J26: 1248.77 | K26: 1231.2 | L26: 1215.35 | M26: 1.13237
A27: 17 | B27: AIAENG | C27: 1890.85 | D27: 1867.00 | E27: 1824.00 | F27: 1757.15 | G27: 1714.15 | H27: 1933.85 | I27: 1976.85 | J27: 2043.70 | K27: 1910 | L27: 1800.15 | M27: 2.04493
A28: 18 | B28: AJANTPHARM | C28: 1767 | D28: 1772.67 | E28: 1756.33 | F28: 1745.67 | G28: 1729.33 | H28: 1783.33 | I28: 1799.67 | J28: 1810.33 | K28: 1789 | L28: 1762 | M28: 0.42195
A29: 19 | B29: ALEMBICLTD | C29: 81.95 | D29: 81.90 | E29: 80.90 | F29: 79.85 | G29: 78.85 | H29: 82.95 | I29: 83.95 | J29: 85.00 | K29: 82.9 | L29: 80.85 | M29: 2.0748
A30: 20 | B30: ALKEM | C30: 3404.15 | D30: 3419.38 | E30: 3374.22 | F30: 3344.28 | G30: 3299.12 | H30: 3449.32 | I30: 3494.48 | J30: 3524.42 | K30: 3464.55 | L30: 3389.45 | M30: 0.61401
A31: 21 | B31: ALKYLAMINE | C31: 3210.55 | D31: 3185.32 | E31: 3155.68 | F31: 3100.82 | G31: 3071.18 | H31: 3240.18 | I31: 3269.82 | J31: 3324.68 | K31: 3214.95 | L31: 3130.45 | M31: 0.42199
A32: 22 | B32: ALOKINDS | C32: 25.05 | D32: 24.95 | E32: 24.70 | F32: 24.35 | G32: 24.10 | H32: 25.30 | I32: 25.55 | J32: 25.90 | K32: 25.2 | L32: 24.6 | M32: 96.42578
A33: 23 | B33: AMARAJABAT | C33: 570.8 | D33: 569.07 | E33: 564.83 | F33: 558.87 | G33: 554.63 | H33: 575.03 | I33: 579.27 | J33: 585.23 | K33: 573.3 | L33: 563.1 | M33: 4.56136
A34: 24 | B34: AMBER | C34: 3643.15 | D34: 3638.12 | E34: 3610.08 | F34: 3577.02 | G34: 3548.98 | H34: 3671.18 | I34: 3699.22 | J34: 3732.28 | K34: 3666.15 | L34: 3605.05 | M34: 0.29058
A35: 25 | B35: AMBUJACEM | C35: 377.35 | D35: 378.83 | E35: 373.32 | F35: 369.28 | G35: 363.77 | H35: 382.87 | I35: 388.38 | J35: 392.42 | K35: 384.35 | L35: 374.8 | M35: 143.85266
A36: 26 | B36: ANGELONE | C36: 1908.95 | D36: 1853.55 | E36: 1758.20 | F36: 1607.45 | G36: 1512.10 | H36: 2004.30 | I36: 2099.65 | J36: 2250.40 | K36: 1948.9 | L36: 1702.8 | M36: 74.57184
A37: 27 | B37: ANURAS | C37: 847 | D37: 845.67 | E37: 841.33 | F37: 835.67 | G37: 831.33 | H37: 851.33 | I37: 855.67 | J37: 861.33 | K37: 850 | L37: 840 | M37: 0.30877
A38: 28 | B38: APLAPOLLO | C38: 1057.35 | D38: 1055.80 | E38: 1040.60 | F38: 1023.85 | G38: 1008.65 | H38: 1072.55 | I38: 1087.75 | J38: 1104.50 | K38: 1071 | L38: 1039.05 | M38: 3.73224
A39: 29 | B39: APLLTD | C39: 771.1 | D39: 762.02 | E39: 751.03 | F39: 730.97 | G39: 719.98 | H39: 782.08 | I39: 793.07 | J39: 813.13 | K39: 773 | L39: 741.95 | M39: 1.82192
A40: 30 | B40: APOLLOHOSP | C40: 4885.25 | D40: 4853.00 | E40: 4802.35 | F40: 4719.45 | G40: 4668.80 | H40: 4935.90 | I40: 4986.55 | J40: 5069.45 | K40: 4903.65 | L40: 4770.1 | M40: 7.71623
A41: 31 | B41: APOLLOTYRE | C41: 204.15 | D41: 202.02 | E41: 199.23 | F41: 194.32 | G41: 191.53 | H41: 206.93 | I41: 209.72 | J41: 214.63 | K41: 204.8 | L41: 197.1 | M41: 70.95916
A42: 32 | B42: ASAHIINDIA | C42: 465.95 | D42: 460.20 | E42: 450.40 | F42: 434.85 | G42: 425.05 | H42: 475.75 | I42: 485.55 | J42: 501.10 | K42: 470 | L42: 444.65 | M42: 2.24666
A43: 33 | B43: ASHOKA | C43: 89.75 | D43: 89.92 | E43: 89.13 | F43: 88.52 | G43: 87.73 | H43: 90.53 | I43: 91.32 | J43: 91.93 | K43: 90.7 | L43: 89.3 | M43: 5.07356
A44: 34 | B44: ASHOKLEY | C44: 128.5 | D44: 128.83 | E44: 127.67 | F44: 126.83 | G44: 125.67 | H44: 129.67 | I44: 130.83 | J44: 131.67 | K44: 130 | L44: 128 | M44: 79.85714
A45: 35 | B45: ASIANPAINT | C45: 3158.25 | D45: 3139.57 | E45: 3104.73 | F45: 3051.22 | G45: 3016.38 | H45: 3193.08 | I45: 3227.92 | J45: 3281.43 | K45: 3174.4 | L45: 3086.05 | M45: 10.69035
A46: 36 | B46: ASTERDM | C46: 193.4 | D46: 190.82 | E46: 186.93 | F46: 180.47 | G46: 176.58 | H46: 197.28 | I46: 201.17 | J46: 207.63 | K46: 194.7 | L46: 184.35 | M46: 12.01043
A47: 37 | B47: ASTRAL | C47: 2119.95 | D47: 2135.00 | E47: 2097.00 | F47: 2074.05 | G47: 2036.05 | H47: 2157.95 | I47: 2195.95 | J47: 2218.90 | K47: 2173 | L47: 2112.05 | M47: 2.2302
A48: 38 | B48: ASTRAZEN | C48: 2736.55 | D48: 2736.60 | E48: 2722.20 | F48: 2707.85 | G48: 2693.45 | H48: 2750.95 | I48: 2765.35 | J48: 2779.70 | K48: 2751 | L48: 2722.25 | M48: 0.03589
A49: 39 | B49: ATGL | C49: 2443.35 | D49: 2462.85 | E49: 2395.70 | F49: 2348.05 | G49: 2280.90 | H49: 2510.50 | I49: 2577.65 | J49: 2625.30 | K49: 2530 | L49: 2415.2 | M49: 2.92017
A50: 40 | B50: ATUL | C50: 9909.7 | D50: 9844.02 | E50: 9748.03 | F50: 9586.37 | G50: 9490.38 | H50: 10005.68 | I50: 10101.67 | J50: 10263.33 | K50: 9940 | L50: 9682.35 | M50: 0.39738
A51: 41 | B51: AUBANK | C51: 1435.05 | D51: 1441.33 | E51: 1416.72 | F51: 1398.38 | G51: 1373.77 | H51: 1459.67 | I51: 1484.28 | J51: 1502.62 | K51: 1465.95 | L51: 1423 | M51: 10.94297
A52: 42 | B52: AUROPHARMA | C52: 674 | D52: 673.40 | E52: 669.70 | F52: 665.40 | G52: 661.70 | H52: 677.70 | I52: 681.40 | J52: 685.70 | K52: 677.1 | L52: 669.1 | M52: 6.24963
A53: 43 | B53: AVANTIFEED | C53: 465.8 | D53: 466.70 | E53: 461.60 | F53: 457.40 | G53: 452.30 | H53: 470.90 | I53: 476.00 | J53: 480.20 | K53: 471.8 | L53: 462.5 | M53: 1.81624
A54: 44 | B54: AXISBANK | C54: 801.8 | D54: 798.78 | E54: 793.57 | F54: 785.33 | G54: 780.12 | H54: 807.02 | I54: 812.23 | J54: 820.47 | K54: 804 | L54: 790.55 | M54: 68.51615
A55: 45 | B55: BAJAJ-AUTO | C55: 3702.35 | D55: 3707.32 | E55: 3675.13 | F55: 3647.92 | G55: 3615.73 | H55: 3734.53 | I55: 3766.72 | J55: 3793.93 | K55: 3739.5 | L55: 3680.1 | M55: 2.16475
A56: 46 | B56: BAJAJCON | C56: 173.2 | D56: 173.97 | E56: 170.78 | F56: 168.37 | G56: 165.18 | H56: 176.38 | I56: 179.57 | J56: 181.98 | K56: 177.15 | L56: 171.55 | M56: 4.94477
A57: 47 | B57: BAJAJELEC | C57: 1093.1 | D57: 1094.32 | E57: 1080.63 | F57: 1068.17 | G57: 1054.48 | H57: 1106.78 | I57: 1120.47 | J57: 1132.93 | K57: 1108 | L57: 1081.85 | M57: 0.42257
A58: 48 | B58: BAJAJFINSV | C58: 15835.75 | D58: 15816.47 | E58: 15611.93 | F58: 15388.12 | G58: 15183.58 | H58: 16040.28 | I58: 16244.82 | J58: 16468.63 | K58: 16021 | L58: 15592.65 | M58: 2.36489
A59: 49 | B59: BAJAJHLDNG | C59: 5343.8 | D59: 5325.00 | E59: 5235.65 | F59: 5127.50 | G59: 5038.15 | H59: 5433.15 | I59: 5522.50 | J59: 5630.65 | K59: 5414.35 | L59: 5216.85 | M59: 1.03502
A60: 50 | B60: BAJFINANCE | C60: 7138.1 | D60: 7124.13 | E60: 7061.27 | F60: 6984.43 | G60: 6921.57 | H60: 7200.97 | I60: 7263.83 | J60: 7340.67 | K60: 7187 | L60: 7047.3 | M60: 8.75343
A61: 51 | B61: BALAMINES | C61: 3302.7 | D61: 3280.43 | E61: 3222.27 | F61: 3141.83 | G61: 3083.67 | H61: 3360.87 | I61: 3419.03 | J61: 3499.47 | K61: 3338.6 | L61: 3200 | M61: 0.79148
A62: 52 | B62: BALKRISIND | C62: 2161.3 | D62: 2148.37 | E62: 2112.98 | F62: 2064.67 | G62: 2029.28 | H62: 2196.68 | I62: 2232.07 | J62: 2280.38 | K62: 2183.75 | L62: 2100.05 | M62: 1.30115
A63: 53 | B63: BALRAMCHIN | C63: 496.7 | D63: 496.67 | E63: 487.03 | F63: 477.37 | G63: 467.73 | H63: 506.33 | I63: 515.97 | J63: 525.63 | K63: 506.3 | L63: 487 | M63: 32.53063
A64: 54 | B64: BANDHANBNK | C64: 336.4 | D64: 334.13 | E64: 328.27 | F64: 320.13 | G64: 314.27 | H64: 342.27 | I64: 348.13 | J64: 356.27 | K64: 340 | L64: 326 | M64: 110.12408
A65: 55 | B65: BANKBARODA | C65: 113.9 | D65: 113.80 | E65: 113.10 | F65: 112.30 | G65: 111.60 | H65: 114.60 | I65: 115.30 | J65: 116.10 | K65: 114.5 | L65: 113 | M65: 199.21166
A66: 56 | B66: BANKINDIA | C66: 50.05 | D66: 50.05 | E66: 49.80 | F66: 49.55 | G66: 49.30 | H66: 50.30 | I66: 50.55 | J66: 50.80 | K66: 50.3 | L66: 49.8 | M66: 17.33196
A67: 57 | B67: BASF | C67: 2671 | D67: 2684.53 | E67: 2650.07 | F67: 2629.13 | G67: 2594.67 | H67: 2705.47 | I67: 2739.93 | J67: 2760.87 | K67: 2719 | L67: 2663.6 | M67: 0.16131
A68: 58 | B68: BATAINDIA | C68: 1948.4 | D68: 1946.55 | E68: 1926.85 | F68: 1905.30 | G68: 1885.60 | H68: 1968.10 | I68: 1987.80 | J68: 2009.35 | K68: 1966.25 | L68: 1925 | M68: 2.96931
A69: 59 | B69: BAYERCROP | C69: 4883.5 | D69: 4887.75 | E69: 4846.80 | F69: 4810.10 | G69: 4769.15 | H69: 4924.45 | I69: 4965.40 | J69: 5002.10 | K69: 4928.7 | L69: 4851.05 | M69: 0.08097
A70: 60 | B70: BBTC | C70: 906.3 | D70: 905.05 | E70: 895.85 | F70: 885.40 | G70: 876.20 | H70: 915.50 | I70: 924.70 | J70: 935.15 | K70: 914.25 | L70: 894.6 | M70: 0.31944
A71: 61 | B71: BDL | C71: 767 | D71: 776.25 | E71: 750.95 | F71: 734.90 | G71: 709.60 | H71: 792.30 | I71: 817.60 | J71: 833.65 | K71: 801.55 | L71: 760.2 | M71: 22.76885
A72: 62 | B72: BEL | C72: 252.9 | D72: 254.50 | E72: 250.30 | F72: 247.70 | G72: 243.50 | H72: 257.10 | I72: 261.30 | J72: 263.90 | K72: 258.7 | L72: 251.9 | M72: 107.00831
A73: 63 | B73: BEML | C73: 1781.75 | D73: 1795.70 | E73: 1747.30 | F73: 1712.85 | G73: 1664.45 | H73: 1830.15 | I73: 1878.55 | J73: 1913.00 | K73: 1844.1 | L73: 1761.25 | M73: 1.32547
A74: 64 | B74: BERGEPAINT | C74: 715.05 | D74: 717.70 | E74: 709.40 | F74: 703.75 | G74: 695.45 | H74: 723.35 | I74: 731.65 | J74: 737.30 | K74: 726 | L74: 712.05 | M74: 5.59791
A75: 65 | B75: BHARATFORG | C75: 738.8 | D75: 739.90 | E75: 729.90 | F75: 721.00 | G75: 711.00 | H75: 748.80 | I75: 758.80 | J75: 767.70 | K75: 749.9 | L75: 731 | M75: 12.6614
A76: 66 | B76: BHARATRAS | C76: 13158.25 | D76: 13195.43 | E76: 13041.22 | F76: 12924.18 | G76: 12769.97 | H76: 13312.47 | I76: 13466.68 | J76: 13583.72 | K76: 13349.65 | L76: 13078.4 | M76: 0.01897
A77: 67 | B77: BHARTIARTL | C77: 735.75 | D77: 736.55 | E77: 729.20 | F77: 722.65 | G77: 715.30 | H77: 743.10 | I77: 750.45 | J77: 757.00 | K77: 743.9 | L77: 730 | M77: 61.1183
A78: 68 | B78: BHEL | C78: 54.7 | D78: 54.62 | E78: 54.13 | F78: 53.57 | G78: 53.08 | H78: 55.18 | I78: 55.67 | J78: 56.23 | K78: 55.1 | L78: 54.05 | M78: 185.20814
A79: 69 | B79: BIOCON | C79: 373.95 | D79: 365.85 | E79: 356.70 | F79: 339.45 | G79: 330.30 | H79: 383.10 | I79: 392.25 | J79: 409.50 | K79: 375 | L79: 348.6 | M79: 89.65603
A80: 70 | B80: BIRLACORPN | C80: 1170.45 | D80: 1167.82 | E80: 1154.63 | F80: 1138.82 | G80: 1125.63 | H80: 1183.63 | I80: 1196.82 | J80: 1212.63 | K80: 1181 | L80: 1152 | M80: 0.8869
A81: 71 | B81: BLUEDART | C81: 6683.4 | D81: 6675.92 | E81: 6612.03 | F81: 6540.67 | G81: 6476.78 | H81: 6747.28 | I81: 6811.17 | J81: 6882.53 | K81: 6739.8 | L81: 6604.55 | M81: 0.05046
A82: 72 | B82: BLUESTARCO | C82: 1164.3 | D82: 1180.43 | E82: 1135.87 | F82: 1107.43 | G82: 1062.87 | H82: 1208.87 | I82: 1253.43 | J82: 1281.87 | K82: 1225 | L82: 1152 | M82: 2.8728
A83: 73 | B83: BOSCHLTD | C83: 14637.45 | D83: 14569.45 | E83: 14488.00 | F83: 14338.55 | G83: 14257.10 | H83: 14718.90 | I83: 14800.35 | J83: 14949.80 | K83: 14650.9 | L83: 14420 | M83: 0.10746
A84: 74 | B84: BPCL | C84: 397.7 | D84: 395.50 | E84: 392.20 | F84: 386.70 | G84: 383.40 | H84: 401.00 | I84: 404.30 | J84: 409.80 | K84: 398.8 | L84: 390 | M84: 79.77846
A85: 75 | B85: BRIGADE | C85: 481.8 | D85: 481.32 | E85: 468.63 | F85: 455.47 | G85: 442.78 | H85: 494.48 | I85: 507.17 | J85: 520.33 | K85: 494 | L85: 468.15 | M85: 3.30702
A86: 76 | B86: BRITANNIA | C86: 3359.9 | D86: 3334.75 | E86: 3299.55 | F86: 3239.20 | G86: 3204.00 | H86: 3395.10 | I86: 3430.30 | J86: 3490.65 | K86: 3369.95 | L86: 3274.4 | M86: 1.52205
A87: 77 | B87: BSE | C87: 841.3 | D87: 846.90 | E87: 834.40 | F87: 827.50 | G87: 815.00 | H87: 853.80 | I87: 866.30 | J87: 873.20 | K87: 859.4 | L87: 840 | M87: 6.47699
A88: 78 | B88: BSOFT | C88: 431.65 | D88: 429.18 | E88: 423.47 | F88: 415.28 | G88: 409.57 | H88: 437.37 | I88: 443.08 | J88: 451.27 | K88: 434.9 | L88: 421 | M88: 28.17254
A89: 79 | B89: INTELLECT | C89: 844.35 | D89: 847.97 | E89: 833.13 | F89: 821.92 | G89: 807.08 | H89: 859.18 | I89: 874.02 | J89: 885.23 | K89: 862.8 | L89: 836.75 | M89: 2.42551
A90: 80 | B90: CAMS | C90: 2590.75 | D90: 2608.95 | E90: 2535.15 | F90: 2479.55 | G90: 2405.75 | H90: 2664.55 | I90: 2738.35 | J90: 2793.95 | K90: 2682.75 | L90: 2553.35 | M90: 2.20755
A91: 81 | B91: CANBK | C91: 238 | D91: 237.25 | E91: 236.00 | F91: 234.00 | G91: 232.75 | H91: 239.25 | I91: 240.50 | J91: 242.50 | K91: 238.5 | L91: 235.25 | M91: 40.48997
A92: 82 | B92: CANFINHOME | C92: 638 | D92: 641.43 | E92: 631.57 | F92: 625.13 | G92: 615.27 | H92: 647.87 | I92: 657.73 | J92: 664.17 | K92: 651.3 | L92: 635 | M92: 3.97778
A93: 83 | B93: CAPLIPOINT | C93: 803.8 | D93: 804.62 | E93: 789.23 | F93: 774.67 | G93: 759.28 | H93: 819.18 | I93: 834.57 | J93: 849.13 | K93: 820 | L93: 790.05 | M93: 1.54256
A94: 84 | B94: CARBORUNIV | C94: 747.1 | D94: 749.78 | E94: 739.57 | F94: 732.03 | G94: 721.82 | H94: 757.32 | I94: 767.53 | J94: 775.07 | K94: 760 | L94: 742.25 | M94: 3.73679
A95: 85 | B95: CASTROLIND | C95: 107.05 | D95: 106.80 | E95: 105.40 | F95: 103.75 | G95: 102.35 | H95: 108.45 | I95: 109.85 | J95: 111.50 | K95: 108.2 | L95: 105.15 | M95: 17.55539
A96: 86 | B96: CCL | C96: 389.05 | D96: 388.33 | E96: 381.07 | F96: 373.08 | G96: 365.82 | H96: 396.32 | I96: 403.58 | J96: 411.57 | K96: 395.6 | L96: 380.35 | M96: 3.19955
A97: 87 | B97: CDSL | C97: 1447.2 | D97: 1440.60 | E97: 1426.80 | F97: 1406.40 | G97: 1392.60 | H97: 1461.00 | I97: 1474.80 | J97: 1495.20 | K97: 1454.4 | L97: 1420.2 | M97: 5.52369
A98: 88 | B98: CEATLTD | C98: 1148.75 | D98: 1143.12 | E98: 1118.23 | F98: 1087.72 | G98: 1062.83 | H98: 1173.63 | I98: 1198.52 | J98: 1229.03 | K98: 1168 | L98: 1112.6 | M98: 2.89337
A99: 89 | B99: CENTRALBK | C99: 19.85 | D99: 19.83 | E99: 19.67 | F99: 19.48 | G99: 19.32 | H99: 20.02 | I99: 20.18 | J99: 20.37 | K99: 20 | L99: 19.65 | M99: 13.85109
A100: 90 | B100: CENTURYPLY | C100: 638.8 | D100: 637.93 | E100: 626.87 | F100: 614.93 | G100: 603.87 | H100: 649.87 | I100: 660.93 | J100: 672.87 | K100: 649 | L100: 626 | M100: 1.11978
A101: 91 | B101: CENTURYTEX | C101: 880.2 | D101: 880.10 | E101: 871.75 | F101: 863.30 | G101: 854.95 | H101: 888.55 | I101: 896.90 | J101: 905.35 | K101: 888.45 | L101: 871.65 | M101: 1.86421
A102: 92 | B102: CERA | C102: 4496.65 | D102: 4477.08 | E102: 4429.72 | F102: 4362.78 | G102: 4315.42 | H102: 4544.02 | I102: 4591.38 | J102: 4658.32 | K102: 4524.45 | L102: 4410.15 | M102: 0.28687
A103: 93 | B103: CESC | C103: 84.15 | D103: 84.40 | E103: 83.45 | F103: 82.75 | G103: 81.80 | H103: 85.10 | I103: 86.05 | J103: 86.75 | K103: 85.35 | L103: 83.7 | M103: 14.16355
A104: 94 | B104: CGCL | C104: 753.35 | D104: 762.33 | E104: 734.87 | F104: 716.38 | G104: 688.92 | H104: 780.82 | I104: 808.28 | J104: 826.77 | K104: 789.8 | L104: 743.85 | M104: 7.98736
A105: 95 | B105: CGPOWER | C105: 194.3 | D105: 195.47 | E105: 192.33 | F105: 190.37 | G105: 187.23 | H105: 197.43 | I105: 200.57 | J105: 202.53 | K105: 198.6 | L105: 193.5 | M105: 10.64358
A106: 96 | B106: CHALET | C106: 287.75 | D106: 287.72 | E106: 283.13 | F106: 278.52 | G106: 273.93 | H106: 292.33 | I106: 296.92 | J106: 301.53 | K106: 292.3 | L106: 283.1 | M106: 2.38656
A107: 97 | B107: CHAMBLFERT | C107: 477.35 | D107: 470.17 | E107: 458.33 | F107: 439.32 | G107: 427.48 | H107: 489.18 | I107: 501.02 | J107: 520.03 | K107: 482 | L107: 451.15 | M107: 45.0186
A108: 98 | B108: CHOLAFIN | C108: 720.55 | D108: 719.22 | E108: 712.43 | F108: 704.32 | G108: 697.53 | H108: 727.33 | I108: 734.12 | J108: 742.23 | K108: 726 | L108: 711.1 | M108: 16.76681
A109: 99 | B109: CHOLAHLDNG | C109: 642.35 | D109: 643.77 | E109: 633.58 | F109: 624.82 | G109: 614.63 | H109: 652.53 | I109: 662.72 | J109: 671.48 | K109: 653.95 | L109: 635 | M109: 1.54398
A110: 100 | B110: CIPLA | C110: 998.55 | D110: 1005.08 | E110: 990.17 | F110: 981.78 | G110: 966.87 | H110: 1013.47 | I110: 1028.38 | J110: 1036.77 | K110: 1020 | L110: 996.7 | M110: 15.26774
A111: 101 | B111: COALINDIA | C111: 206.9 | D111: 205.27 | E111: 202.63 | F111: 198.37 | G111: 195.73 | H111: 209.53 | I111: 212.17 | J111: 216.43 | K111: 207.9 | L111: 201 | M111: 436.83145
A112: 102 | B112: COCHINSHIP | C112: 348.25 | D112: 345.50 | E112: 341.20 | F112: 334.15 | G112: 329.85 | H112: 352.55 | I112: 356.85 | J112: 363.90 | K112: 349.8 | L112: 338.45 | M112: 3.72291
A113: 103 | B113: COFORGE | C113: 4093.05 | D113: 4063.65 | E113: 4020.40 | F113: 3947.75 | G113: 3904.50 | H113: 4136.30 | I113: 4179.55 | J113: 4252.20 | K113: 4106.9 | L113: 3991 | M113: 2.91958
A114: 104 | B114: COLPAL | C114: 1556.95 | D114: 1549.58 | E114: 1537.42 | F114: 1517.88 | G114: 1505.72 | H114: 1569.12 | I114: 1581.28 | J114: 1600.82 | K114: 1561.75 | L114: 1530.05 | M114: 3.89662
A115: 105 | B115: CONCOR | C115: 656.8 | D115: 657.62 | E115: 648.63 | F115: 640.47 | G115: 631.48 | H115: 665.78 | I115: 674.77 | J115: 682.93 | K115: 666.6 | L115: 649.45 | M115: 9.69631
A116: 106 | B116: COROMANDEL | C116: 838.95 | D116: 838.10 | E116: 821.20 | F116: 803.45 | G116: 786.55 | H116: 855.85 | I116: 872.75 | J116: 890.50 | K116: 855 | L116: 820.35 | M116: 6.22832
A117: 107 | B117: CREDITACC | C117: 1018.65 | D117: 1017.45 | E117: 1003.65 | F117: 988.65 | G117: 974.85 | H117: 1032.45 | I117: 1046.25 | J117: 1061.25 | K117: 1031.25 | L117: 1002.45 | M117: 0.78961
A118: 108 | B118: CRISIL | C118: 3254.45 | D118: 3216.02 | E118: 3082.03 | F118: 2909.62 | G118: 2775.63 | H118: 3388.43 | I118: 3522.42 | J118: 3694.83 | K118: 3350 | L118: 3043.6 | M118: 1.94611
A119: 109 | B119: CROMPTON | C119: 380.8 | D119: 382.40 | E119: 377.90 | F119: 375.00 | G119: 370.50 | H119: 385.30 | I119: 389.80 | J119: 392.70 | K119: 386.9 | L119: 379.5 | M119: 30.73721
A120: 110 | B120: CSBBANK | C120: 222.2 | D120: 220.77 | E120: 217.63 | F120: 213.07 | G120: 209.93 | H120: 225.33 | I120: 228.47 | J120: 233.03 | K120: 223.9 | L120: 216.2 | M120: 3.41078
A121: 111 | B121: CUB | C121: 137.45 | D121: 136.48 | E121: 134.62 | F121: 131.78 | G121: 129.92 | H121: 139.32 | I121: 141.18 | J121: 144.02 | K121: 138.35 | L121: 133.65 | M121: 9.43059
A122: 112 | B122: CUMMINSIND | C122: 1090.75 | D122: 1094.23 | E122: 1075.17 | F122: 1059.58 | G122: 1040.52 | H122: 1109.82 | I122: 1128.88 | J122: 1144.47 | K122: 1113.3 | L122: 1078.65 | M122: 6.19016
A123: 113 | B123: CYIENT | C123: 831.45 | D123: 828.55 | E123: 815.25 | F123: 799.05 | G123: 785.75 | H123: 844.75 | I123: 858.05 | J123: 874.25 | K123: 841.85 | L123: 812.35 | M123: 2.47814
A124: 114 | B124: DABUR | C124: 561.85 | D124: 558.55 | E124: 554.10 | F124: 546.35 | G124: 541.90 | H124: 566.30 | I124: 570.75 | J124: 578.50 | K124: 563 | L124: 550.8 | M124: 12.9368
A125: 115 | B125: DALBHARAT | C125: 1613.25 | D125: 1611.08 | E125: 1597.17 | F125: 1581.08 | G125: 1567.17 | H125: 1627.17 | I125: 1641.08 | J125: 1657.17 | K125: 1625 | L125: 1595 | M125: 0.80366
A126: 116 | B126: DBL | C126: 277 | D126: 279.67 | E126: 271.43 | F126: 265.87 | G126: 257.63 | H126: 285.23 | I126: 293.47 | J126: 299.03 | K126: 287.9 | L126: 274.1 | M126: 6.44211
A127: 117 | B127: DCBBANK | C127: 82 | D127: 82.40 | E127: 81.40 | F127: 80.80 | G127: 79.80 | H127: 83.00 | I127: 84.00 | J127: 84.60 | K127: 83.4 | L127: 81.8 | M127: 3.8602
A128: 118 | B128: DCMSHRIRAM | C128: 1166.05 | D128: 1173.45 | E128: 1147.90 | F128: 1129.75 | G128: 1104.20 | H128: 1191.60 | I128: 1217.15 | J128: 1235.30 | K128: 1199 | L128: 1155.3 | M128: 1.75313
A129: 119 | B129: DEEPAKNTR | C129: 2290.85 | D129: 2272.93 | E129: 2243.62 | F129: 2196.38 | G129: 2167.07 | H129: 2320.17 | I129: 2349.48 | J129: 2396.72 | K129: 2302.25 | L129: 2225.7 | M129: 5.5992
A130: 120 | B130: DELTACORP | C130: 292.35 | D130: 291.70 | E130: 288.90 | F130: 285.45 | G130: 282.65 | H130: 295.15 | I130: 297.95 | J130: 301.40 | K130: 294.5 | L130: 288.25 | M130: 29.44163
A131: 121 | B131: DHANI | C131: 62.5 | D131: 63.50 | E131: 61.00 | F131: 59.50 | G131: 57.00 | H131: 65.00 | I131: 67.50 | J131: 69.00 | K131: 66 | L131: 62 | M131: 53.89064
A132: 122 | B132: DHANUKA | C132: 751.3 | D132: 757.67 | E132: 741.63 | F132: 731.97 | G132: 715.93 | H132: 767.33 | I132: 783.37 | J132: 793.03 | K132: 773.7 | L132: 748 | M132: 0.35361
A133: 123 | B133: DIVISLAB | C133: 4529.05 | D133: 4504.03 | E133: 4458.07 | F133: 4387.08 | G133: 4341.12 | H133: 4575.02 | I133: 4620.98 | J133: 4691.97 | K133: 4550 | L133: 4433.05 | M133: 3.771
A134: 124 | B134: DIXON | C134: 4294.65 | D134: 4281.67 | E134: 4254.63 | F134: 4214.62 | G134: 4187.58 | H134: 4321.68 | I134: 4348.72 | J134: 4388.73 | K134: 4308.7 | L134: 4241.65 | M134: 1.28861
A135: 125 | B135: DLF | C135: 389.85 | D135: 386.63 | E135: 382.42 | F135: 374.98 | G135: 370.77 | H135: 394.07 | I135: 398.28 | J135: 405.72 | K135: 390.85 | L135: 379.2 | M135: 39.35746
A136: 126 | B136: DMART | C136: 4030.25 | D136: 4041.75 | E136: 4003.50 | F136: 3976.75 | G136: 3938.50 | H136: 4068.50 | I136: 4106.75 | J136: 4133.50 | K136: 4080 | L136: 4015 | M136: 2.09196
A137: 127 | B137: DRREDDY | C137: 4320.3 | D137: 4327.28 | E137: 4303.02 | F137: 4285.73 | G137: 4261.47 | H137: 4344.57 | I137: 4368.83 | J137: 4386.12 | K137: 4351.55 | L137: 4310 | M137: 3.94436
A138: 128 | B138: ECLERX | C138: 2433.2 | D138: 2432.83 | E138: 2404.52 | F138: 2375.83 | G138: 2347.52 | H138: 2461.52 | I138: 2489.83 | J138: 2518.52 | K138: 2461.15 | L138: 2404.15 | M138: 0.26829
A139: 129 | B139: EDELWEISS | C139: 62.3 | D139: 61.92 | E139: 60.08 | F139: 57.87 | G139: 56.03 | H139: 64.13 | I139: 65.97 | J139: 68.18 | K139: 63.75 | L139: 59.7 | M139: 50.29606
A140: 130 | B140: EICHERMOT | C140: 2651.5 | D140: 2622.55 | E140: 2570.65 | F140: 2489.80 | G140: 2437.90 | H140: 2703.40 | I140: 2755.30 | J140: 2836.15 | K140: 2674.45 | L140: 2541.7 | M140: 10.90334
A141: 131 | B141: EIDPARRY | C141: 503.8 | D141: 502.82 | E141: 496.23 | F141: 488.67 | G141: 482.08 | H141: 510.38 | I141: 516.97 | J141: 524.53 | K141: 509.4 | L141: 495.25 | M141: 2.59545
A142: 132 | B142: EIHOTEL | C142: 161.1 | D142: 161.57 | E142: 159.13 | F142: 157.17 | G142: 154.73 | H142: 163.53 | I142: 165.97 | J142: 167.93 | K142: 164 | L142: 159.6 | M142: 2.30335
A143: 133 | B143: ELGIEQUIP | C143: 310.1 | D143: 310.95 | E143: 306.90 | F143: 303.70 | G143: 299.65 | H143: 314.15 | I143: 318.20 | J143: 321.40 | K143: 315 | L143: 307.75 | M143: 1.36749
A144: 134 | B144: EMAMILTD | C144: 468.15 | D144: 470.60 | E144: 462.55 | F144: 456.95 | G144: 448.90 | H144: 476.20 | I144: 484.25 | J144: 489.85 | K144: 478.65 | L144: 465 | M144: 2.31367
A145: 135 | B145: ENDURANCE | C145: 1181.65 | D145: 1176.48 | E145: 1163.02 | F145: 1144.38 | G145: 1130.92 | H145: 1195.12 | I145: 1208.58 | J145: 1227.22 | K145: 1189.95 | L145: 1157.85 | M145: 0.3377
A146: 136 | B146: ENGINERSIN | C146: 68.4 | D146: 68.57 | E146: 68.03 | F146: 67.67 | G146: 67.13 | H146: 68.93 | I146: 69.47 | J146: 69.83 | K146: 69.1 | L146: 68.2 | M146: 7.80092
A147: 137 | B147: EPL | C147: 174.5 | D147: 174.18 | E147: 172.92 | F147: 171.33 | G147: 170.07 | H147: 175.77 | I147: 177.03 | J147: 178.62 | K147: 175.45 | L147: 172.6 | M147: 1.5079
A148: 138 | B148: EQUITAS | C148: 117.05 | D148: 117.83 | E148: 115.67 | F148: 114.28 | G148: 112.12 | H148: 119.22 | I148: 121.38 | J148: 122.77 | K148: 120 | L148: 116.45 | M148: 3.03528
A149: 139 | B149: EQUITASBNK | C149: 55.2 | D149: 55.27 | E149: 53.73 | F149: 52.27 | G149: 50.73 | H149: 56.73 | I149: 58.27 | J149: 59.73 | K149: 56.8 | L149: 53.8 | M149: 14.08288
A150: 140 | B150: ERIS | C150: 686.05 | D150: 685.12 | E150: 681.53 | F150: 677.02 | G150: 673.43 | H150: 689.63 | I150: 693.22 | J150: 697.73 | K150: 688.7 | L150: 680.6 | M150: 0.19473
A151: 141 | B151: ESCORTS | C151: 1587.05 | D151: 1568.68 | E151: 1547.37 | F151: 1507.68 | G151: 1486.37 | H151: 1608.37 | I151: 1629.68 | J151: 1669.37 | K151: 1590 | L151: 1529 | M151: 8.78422
A152: 142 | B152: EXIDEIND | C152: 156.45 | D152: 156.08 | E152: 155.37 | F152: 154.28 | G152: 153.57 | H152: 157.17 | I152: 157.88 | J152: 158.97 | K152: 156.8 | L152: 155 | M152: 15.31942
A153: 143 | B153: FACT | C153: 137.5 | D153: 136.62 | E153: 134.18 | F153: 130.87 | G153: 128.43 | H153: 139.93 | I153: 142.37 | J153: 145.68 | K153: 139.05 | L153: 133.3 | M153: 3.27934
A154: 144 | B154: FDC | C154: 283.55 | D154: 282.60 | E154: 280.20 | F154: 276.85 | G154: 274.45 | H154: 285.95 | I154: 288.35 | J154: 291.70 | K154: 285 | L154: 279.25 | M154: 0.86321
A155: 145 | B155: FEDERALBNK | C155: 96.6 | D155: 96.63 | E155: 95.97 | F155: 95.33 | G155: 94.67 | H155: 97.27 | I155: 97.93 | J155: 98.57 | K155: 97.3 | L155: 96 | M155: 101.30826
A156: 146 | B156: FINCABLES | C156: 416.35 | D156: 417.33 | E156: 412.72 | F156: 409.08 | G156: 404.47 | H156: 420.97 | I156: 425.58 | J156: 429.22 | K156: 421.95 | L156: 413.7 | M156: 9.35461
A157: 147 | B157: FINEORG | C157: 4532.9 | D157: 4569.67 | E157: 4454.33 | F157: 4375.77 | G157: 4260.43 | H157: 4648.23 | I157: 4763.57 | J157: 4842.13 | K157: 4685 | L157: 4491.1 | M157: 0.49176
A158: 148 | B158: FINPIPE | C158: 162.4 | D158: 162.62 | E158: 160.78 | F158: 159.17 | G158: 157.33 | H158: 164.23 | I158: 166.07 | J158: 167.68 | K158: 164.45 | L158: 161 | M158: 3.07613
A159: 149 | B159: FLUOROCHEM | C159: 2895.9 | D159: 2875.78 | E159: 2820.32 | F159: 2744.73 | G159: 2689.27 | H159: 2951.37 | I159: 3006.83 | J159: 3082.42 | K159: 2931.25 | L159: 2800.2 | M159: 0.44818
A160: 150 | B160: FORTIS | C160: 278.8 | D160: 276.88 | E160: 273.97 | F160: 269.13 | G160: 266.22 | H160: 281.72 | I160: 284.63 | J160: 289.47 | K160: 279.8 | L160: 272.05 | M160: 13.37223
A161: 151 | B161: FRETAIL | C161: 30.45 | D161: 30.10 | E161: 29.75 | F161: 29.05 | G161: 28.70 | H161: 30.80 | I161: 31.15 | J161: 31.85 | K161: 30.45 | L161: 29.4 | M161: 19.4264
A162: 152 | B162: FSL | C162: 128.9 | D162: 128.72 | E162: 127.93 | F162: 126.97 | G162: 126.18 | H162: 129.68 | I162: 130.47 | J162: 131.43 | K162: 129.5 | L162: 127.75 | M162: 26.39804
A163: 153 | B163: GAEL | C163: 348.6 | D163: 354.08 | E163: 338.72 | F163: 328.83 | G163: 313.47 | H163: 363.97 | I163: 379.33 | J163: 389.22 | K163: 369.45 | L163: 344.2 | M163: 16.2711
A164: 154 | B164: GAIL | C164: 164 | D164: 163.25 | E164: 161.25 | F164: 158.50 | G164: 156.50 | H164: 166.00 | I164: 168.00 | J164: 170.75 | K164: 165.25 | L164: 160.5 | M164: 173.80065
A165: 155 | B165: GALAXYSURF | C165: 2970.5 | D165: 2974.32 | E165: 2948.63 | F165: 2926.77 | G165: 2901.08 | H165: 2996.18 | I165: 3021.87 | J165: 3043.73 | K165: 3000 | L165: 2952.45 | M165: 0.11946
A166: 156 | B166: GARFIBRES | C166: 3129.6 | D166: 3125.65 | E166: 3086.30 | F166: 3043.00 | G166: 3003.65 | H166: 3168.95 | I166: 3208.30 | J166: 3251.60 | K166: 3165 | L166: 3082.35 | M166: 0.07385
A167: 157 | B167: GESHIP | C167: 395.3 | D167: 389.70 | E167: 378.40 | F167: 361.50 | G167: 350.20 | H167: 406.60 | I167: 417.90 | J167: 434.80 | K167: 401 | L167: 372.8 | M167: 10.86861
A168: 158 | B168: GICRE | C168: 122.5 | D168: 122.22 | E168: 121.33 | F168: 120.17 | G168: 119.28 | H168: 123.38 | I168: 124.27 | J168: 125.43 | K168: 123.1 | L168: 121.05 | M168: 1.26171
A169: 159 | B169: GILLETTE | C169: 5191.5 | D169: 5167.02 | E169: 5130.03 | F169: 5068.57 | G169: 5031.58 | H169: 5228.48 | I169: 5265.47 | J169: 5326.93 | K169: 5204 | L169: 5105.55 | M169: 0.02981
A170: 160 | B170: GLAND | C170: 3448.7 | D170: 3406.45 | E170: 3253.50 | F170: 3058.30 | G170: 2905.35 | H170: 3601.65 | I170: 3754.60 | J170: 3949.80 | K170: 3559.4 | L170: 3211.25 | M170: 15.3101
A171: 161 | B171: GLAXO | C171: 1621.3 | D171: 1628.48 | E171: 1602.82 | F171: 1584.33 | G171: 1558.67 | H171: 1646.97 | I171: 1672.63 | J171: 1691.12 | K171: 1654.15 | L171: 1610 | M171: 0.17534
A172: 162 | B172: GLENMARK | C172: 453.6 | D172: 456.13 | E172: 449.77 | F172: 445.93 | G172: 439.57 | H172: 459.97 | I172: 466.33 | J172: 470.17 | K172: 462.5 | L172: 452.3 | M172: 5.08412
A173: 163 | B173: GMMPFAUDLR | C173: 4731.55 | D173: 4732.25 | E173: 4694.50 | F173: 4657.45 | G173: 4619.70 | H173: 4769.30 | I173: 4807.05 | J173: 4844.10 | K173: 4770 | L173: 4695.2 | M173: 0.0854
A174: 164 | B174: GNFC | C174: 878.1 | D174: 879.58 | E174: 869.57 | F174: 861.03 | G174: 851.02 | H174: 888.12 | I174: 898.13 | J174: 906.67 | K174: 889.6 | L174: 871.05 | M174: 16.97386
A175: 165 | B175: GODFRYPHLP | C175: 1306.35 | D175: 1317.12 | E175: 1284.23 | F175: 1262.12 | G175: 1229.23 | H175: 1339.23 | I175: 1372.12 | J175: 1394.23 | K175: 1350 | L175: 1295 | M175: 0.98413
A176: 166 | B176: GODREJAGRO | C176: 498.4 | D176: 496.08 | E176: 489.62 | F176: 480.83 | G176: 474.37 | H176: 504.87 | I176: 511.33 | J176: 520.12 | K176: 502.55 | L176: 487.3 | M176: 2.41207
A177: 167 | B177: GODREJCP | C177: 798 | D177: 801.38 | E177: 789.42 | F177: 780.83 | G177: 768.87 | H177: 809.97 | I177: 821.93 | J177: 830.52 | K177: 813.35 | L177: 792.8 | M177: 8.32196
A178: 168 | B178: GODREJIND | C178: 502.1 | D178: 499.57 | E178: 493.38 | F178: 484.67 | G178: 478.48 | H178: 508.28 | I178: 514.47 | J178: 523.18 | K178: 505.75 | L178: 490.85 | M178: 1.89929
A179: 169 | B179: GODREJPROP | C179: 1593.9 | D179: 1594.18 | E179: 1582.42 | F179: 1570.93 | G179: 1559.17 | H179: 1605.67 | I179: 1617.43 | J179: 1628.92 | K179: 1605.95 | L179: 1582.7 | M179: 2.84595
A180: 170 | B180: GPPL | C180: 84.3 | D180: 85.13 | E180: 82.77 | F180: 81.23 | G180: 78.87 | H180: 86.67 | I180: 89.03 | J180: 90.57 | K180: 87.5 | L180: 83.6 | M180: 13.27301
A181: 171 | B181: GRANULES | C181: 291.7 | D181: 291.48 | E181: 289.72 | F181: 287.73 | G181: 285.97 | H181: 293.47 | I181: 295.23 | J181: 297.22 | K181: 293.25 | L181: 289.5 | M181: 5.0359
A182: 172 | B182: GRAPHITE | C182: 557.05 | D182: 558.92 | E182: 553.13 | F182: 549.22 | G182: 543.43 | H182: 562.83 | I182: 568.62 | J182: 572.53 | K182: 564.7 | L182: 555 | M182: 6.15264
A183: 173 | B183: GRASIM | C183: 1764.25 | D183: 1756.23 | E183: 1742.52 | F183: 1720.78 | G183: 1707.07 | H183: 1777.97 | I183: 1791.68 | J183: 1813.42 | K183: 1769.95 | L183: 1734.5 | M183: 7.08186
A184: 174 | B184: GREAVESCOT | C184: 194.55 | D184: 193.47 | E184: 191.33 | F184: 188.12 | G184: 185.98 | H184: 196.68 | I184: 198.82 | J184: 202.03 | K184: 195.6 | L184: 190.25 | M184: 15.95678
A185: 175 | B185: GRINDWELL | C185: 1736.65 | D185: 1731.98 | E185: 1701.97 | F185: 1667.28 | G185: 1637.27 | H185: 1766.67 | I185: 1796.68 | J185: 1831.37 | K185: 1762 | L185: 1697.3 | M185: 0.41617
A186: 176 | B186: GSFC | C186: 175.35 | D186: 176.65 | E186: 172.30 | F186: 169.25 | G186: 164.90 | H186: 179.70 | I186: 184.05 | J186: 187.10 | K186: 181 | L186: 173.6 | M186: 35.08799
A187: 177 | B187: GSPL | C187: 278.7 | D187: 279.28 | E187: 275.97 | F187: 273.23 | G187: 269.92 | H187: 282.02 | I187: 285.33 | J187: 288.07 | K187: 282.6 | L187: 276.55 | M187: 4.76007
A188: 178 | B188: GUJALKALI | C188: 975.55 | D188: 979.05 | E188: 958.10 | F188: 940.65 | G188: 919.70 | H188: 996.50 | I188: 1017.45 | J188: 1034.90 | K188: 1000 | L188: 961.6 | M188: 29.51155
A189: 179 | B189: GUJGASLTD | C189: 521.45 | D189: 520.12 | E189: 517.33 | F189: 513.22 | G189: 510.43 | H189: 524.23 | I189: 527.02 | J189: 531.13 | K189: 522.9 | L189: 516 | M189: 3.70057
A190: 180 | B190: HAL | C190: 1676.9 | D190: 1684.95 | E190: 1661.10 | F190: 1645.30 | G190: 1621.45 | H190: 1700.75 | I190: 1724.60 | J190: 1740.40 | K190: 1708.8 | L190: 1669.15 | M190: 5.38252
A191: 181 | B191: HAPPSTMNDS | C191: 1027.95 | D191: 1027.68 | E191: 1017.32 | F191: 1006.68 | G191: 996.32 | H191: 1038.32 | I191: 1048.68 | J191: 1059.32 | K191: 1038.05 | L191: 1017.05 | M191: 1.69684
A192: 182 | B192: HATHWAY | C192: 20.55 | D192: 20.58 | E192: 20.22 | F192: 19.88 | G192: 19.52 | H192: 20.92 | I192: 21.28 | J192: 21.62 | K192: 20.95 | L192: 20.25 | M192: 63.5209
A193: 183 | B193: HATSUN | C193: 1103.45 | D193: 1111.67 | E193: 1083.33 | F193: 1063.22 | G193: 1034.88 | H193: 1131.78 | I193: 1160.12 | J193: 1180.23 | K193: 1140 | L193: 1091.55 | M193: 0.39933
A194: 184 | B194: HAVELLS | C194: 1320.75 | D194: 1315.92 | E194: 1301.88 | F194: 1283.02 | G194: 1268.98 | H194: 1334.78 | I194: 1348.82 | J194: 1367.68 | K194: 1329.95 | L194: 1297.05 | M194: 7.95979
A195: 185 | B195: HCLTECH | C195: 1099.2 | D195: 1095.12 | E195: 1085.18 | F195: 1071.17 | G195: 1061.23 | H195: 1109.13 | I195: 1119.07 | J195: 1133.08 | K195: 1105.05 | L195: 1081.1 | M195: 25.47848
A196: 186 | B196: HDFC | C196: 2230.65 | D196: 2219.48 | E196: 2192.37 | F196: 2154.08 | G196: 2126.97 | H196: 2257.77 | I196: 2284.88 | J196: 2323.17 | K196: 2246.6 | L196: 2181.2 | M196: 54.19406
A197: 187 | B197: HDFCAMC | C197: 2092.75 | D197: 2097.43 | E197: 2079.87 | F197: 2066.98 | G197: 2049.42 | H197: 2110.32 | I197: 2127.88 | J197: 2140.77 | K197: 2115 | L197: 2084.55 | M197: 4.12691
A198: 188 | B198: HDFCBANK | C198: 1374.35 | D198: 1369.15 | E198: 1358.50 | F198: 1342.65 | G198: 1332.00 | H198: 1385.00 | I198: 1395.65 | J198: 1411.50 | K198: 1379.8 | L198: 1353.3 | M198: 262.23135
A199: 189 | B199: HDFCLIFE | C199: 570.95 | D199: 567.90 | E199: 560.10 | F199: 549.25 | G199: 541.45 | H199: 578.75 | I199: 586.55 | J199: 597.40 | K199: 575.7 | L199: 557.05 | M199: 31.11307
A200: 190 | B200: HEG | C200: 1353.7 | D200: 1357.00 | E200: 1344.00 | F200: 1334.30 | G200: 1321.30 | H200: 1366.70 | I200: 1379.70 | J200: 1389.40 | K200: 1370 | L200: 1347.3 | M200: 1.64719
A201: 191 | B201: HEIDELBERG | C201: 204.8 | D201: 204.80 | E201: 202.00 | F201: 199.20 | G201: 196.40 | H201: 207.60 | I201: 210.40 | J201: 213.20 | K201: 207.6 | L201: 202 | M201: 1.14632
A202: 192 | B202: HEMIPROP | C202: 121.35 | D202: 121.33 | E202: 120.02 | F202: 118.68 | G202: 117.37 | H202: 122.67 | I202: 123.98 | J202: 125.32 | K202: 122.65 | L202: 120 | M202: 3.98154
A203: 193 | B203: HEROMOTOCO | C203: 2317.65 | D203: 2305.47 | E203: 2289.18 | F203: 2260.72 | G203: 2244.43 | H203: 2333.93 | I203: 2350.22 | J203: 2378.68 | K203: 2321.75 | L203: 2277 | M203: 3.41987
A204: 194 | B204: HFCL | C204: 77.3 | D204: 77.97 | E204: 76.33 | F204: 75.37 | G204: 73.73 | H204: 78.93 | I204: 80.57 | J204: 81.53 | K204: 79.6 | L204: 77 | M204: 51.46698
A205: 195 | B205: HGS | C205: 1089.95 | D205: 1090.45 | E205: 1081.05 | F205: 1072.15 | G205: 1062.75 | H205: 1099.35 | I205: 1108.75 | J205: 1117.65 | K205: 1099.85 | L205: 1081.55 | M205: 0.27981
A206: 196 | B206: HIKAL | C206: 420.65 | D206: 420.22 | E206: 416.63 | F206: 412.62 | G206: 409.03 | H206: 424.23 | I206: 427.82 | J206: 431.83 | K206: 423.8 | L206: 416.2 | M206: 0.4621
... 319 more rows

Sheet Bulk Deals
E6: Back To Main Page
A7: Subject : | B7: BULK DEAL | D7: =Main!B10 -> 2022-04-22
A9: Date | B9: Scrip code | C9: Scrip Name | D9: Client Name | E9: Buy / Sell | F9: Quantity Traded | G9: Trade Price / Wt.Avg.trade price | H9: Exchange
A10: 2022-04-21 | B10: 540615 | C10: 7NR | D10: KAUSHIK SHAH SHARES & SEC. LTD | E10: BUY | F10: 600,000 | G10: 2.46 | H10: BSE
A11: 2022-04-21 | B11: 539773 | C11: ADVIKCA | D11: STEPPING STONE CONSTRUCTION PRIVATE LIMITED | E11: SELL | F11: 337,646 | G11: 6.01 | H11: BSE
A12: 2022-04-21 | B12: 539773 | C12: ADVIKCA | D12: NISHCHAYA TRADINGS PRIVATE LIMITED | E12: BUY | F12: 233,385 | G12: 5.7 | H12: BSE
A13: 2022-04-21 | B13: 539773 | C13: ADVIKCA | D13: NISHCHAYA TRADINGS PRIVATE LIMITED | E13: SELL | F13: 184,503 | G13: 6.01 | H13: BSE
A14: 2022-04-21 | B14: 539773 | C14: ADVIKCA | D14: ALTOLITE ELECTRO SIGNS PRIVATE LIMITED | E14: SELL | F14: 280,000 | G14: 6.01 | H14: BSE
A15: 2022-04-21 | B15: 540135 | C15: ARCFIN | D15: BP FINTRADE PRIVATE LIMITED | E15: BUY | F15: 3,238,526 | G15: 1.93 | H15: BSE
A16: 2022-04-21 | B16: 540135 | C16: ARCFIN | D16: ALPHA LEON ENTERPRISES LLP | E16: BUY | F16: 5,089,606 | G16: 1.93 | H16: BSE
A17: 2022-04-21 | B17: 540135 | C17: ARCFIN | D17: BP FINTRADE PRIVATE LIMITED | E17: SELL | F17: 3,238,526 | G17: 1.95 | H17: BSE
A18: 2022-04-21 | B18: 540135 | C18: ARCFIN | D18: ALPHA LEON ENTERPRISES LLP | E18: SELL | F18: 13,566,917 | G18: 2.01 | H18: BSE
A19: 2022-04-21 | B19: 540135 | C19: ARCFIN | D19: EPITOME TRADING AND INVESTMENTS | E19: BUY | F19: 2,616,318 | G19: 1.95 | H19: BSE
A20: 2022-04-21 | B20: 540135 | C20: ARCFIN | D20: TOPGAIN FINANCE PRIVATE LIMITED | E20: BUY | F20: 11,843,194 | G20: 1.95 | H20: BSE
A21: 2022-04-21 | B21: 540135 | C21: ARCFIN | D21: EPITOME TRADING AND INVESTMENTS | E21: SELL | F21: 3,016,318 | G21: 1.99 | H21: BSE
A22: 2022-04-21 | B22: 540135 | C22: ARCFIN | D22: TOPGAIN FINANCE PRIVATE LIMITED | E22: SELL | F22: 12,165,842 | G22: 2 | H22: BSE
A23: 2022-04-21 | B23: 540135 | C23: ARCFIN | D23: RISHIAGARWAL | E23: BUY | F23: 19,600,527 | G23: 2.03 | H23: BSE
A24: 2022-04-21 | B24: 540135 | C24: ARCFIN | D24: SPARK FINANCE | E24: BUY | F24: 3,083,279 | G24: 1.94 | H24: BSE
A25: 2022-04-21 | B25: 540135 | C25: ARCFIN | D25: SPARK FINANCE | E25: SELL | F25: 3,083,279 | G25: 2.01 | H25: BSE
A26: 2022-04-21 | B26: 540135 | C26: ARCFIN | D26: ELIXIR WEALTH MANAGEMENT PRIVATE LIMITED | E26: BUY | F26: 5,884,241 | G26: 2.02 | H26: BSE
A27: 2022-04-21 | B27: 540135 | C27: ARCFIN | D27: ELIXIR WEALTH MANAGEMENT PRIVATE LIMITED | E27: SELL | F27: 3,900,941 | G27: 2.02 | H27: BSE
A28: 2022-04-21 | B28: 540135 | C28: ARCFIN | D28: MIDLAND FINANCIAL ADVISORY PRIVATE LIMITED | E28: BUY | F28: 10,000 | G28: 1.93 | H28: BSE
A29: 2022-04-21 | B29: 540135 | C29: ARCFIN | D29: MIDLAND FINANCIAL ADVISORY PRIVATE LIMITED | E29: SELL | F29: 4,037,108 | G29: 2.09 | H29: BSE
A30: 2022-04-21 | B30: 540135 | C30: ARCFIN | D30: FRANKLIN LEASING AND FINANCE LIMITED | E30: SELL | F30: 13,017,312 | G30: 2.08 | H30: BSE
A31: 2022-04-21 | B31: 540135 | C31: ARCFIN | D31: ANUSTUP TRADING PRIVATE LIMITED | E31: BUY | F31: 3,800,000 | G31: 2.09 | H31: BSE
A32: 2022-04-21 | B32: 540135 | C32: ARCFIN | D32: ANUSTUP TRADING PRIVATE LIMITED | E32: SELL | F32: 3,800,000 | G32: 2.07 | H32: BSE
A33: 2022-04-21 | B33: 540135 | C33: ARCFIN | D33: B.W.TRADERS | E33: BUY | F33: 4,793,748 | G33: 2.09 | H33: BSE
A34: 2022-04-21 | B34: 540135 | C34: ARCFIN | D34: B.W.TRADERS | E34: SELL | F34: 1,752,648 | G34: 2.01 | H34: BSE
A35: 2022-04-21 | B35: 542721 | C35: ARL | D35: SAUMIK KETAN DOSHI | E35: SELL | F35: 365,000 | G35: 47.85 | H35: BSE
A36: 2022-04-21 | B36: 540788 | C36: ASPIRA | D36: VINCENT COMMERCIAL COMPANY LIMITED | E36: SELL | F36: 51,500 | G36: 64.12 | H36: BSE
A37: 2022-04-21 | B37: 539621 | C37: BCLENTERPR | D37: JITENDRAKUMAR GHEVERCHAND JAIN | E37: SELL | F37: 3,900,000 | G37: 4.89 | H37: BSE
A38: 2022-04-21 | B38: 539621 | C38: BCLENTERPR | D38: NITESH CHOPRA | E38: BUY | F38: 300,000 | G38: 4.89 | H38: BSE
A39: 2022-04-21 | B39: 539621 | C39: BCLENTERPR | D39: VANRAJ DADBHAI KAHOR | E39: BUY | F39: 1,900,000 | G39: 4.89 | H39: BSE
A40: 2022-04-21 | B40: 539621 | C40: BCLENTERPR | D40: VANRAJ DADBHAI KAHOR | E40: SELL | F40: 1,900,000 | G40: 4.89 | H40: BSE
A41: 2022-04-21 | B41: 539621 | C41: BCLENTERPR | D41: KALPESH JAVERILAL OSWAL | E41: BUY | F41: 910,101 | G41: 4.89 | H41: BSE
A42: 2022-04-21 | B42: 539621 | C42: BCLENTERPR | D42: KALPESH JAVERILAL OSWAL | E42: SELL | F42: 1,032,139 | G42: 4.89 | H42: BSE
A43: 2022-04-21 | B43: 539621 | C43: BCLENTERPR | D43: DHRUV PRADIPKUMAR SHAH | E43: SELL | F43: 486,530 | G43: 4.89 | H43: BSE
A44: 2022-04-21 | B44: 539621 | C44: BCLENTERPR | D44: DIPAK MATHURBHAI SALVI | E44: SELL | F44: 306,456 | G44: 4.89 | H44: BSE
A45: 2022-04-21 | B45: 539884 | C45: DARSHANORNA | D45: VIVID MERCANTILE LIMITED | E45: BUY | F45: 3,862 | G45: 85 | H45: BSE
A46: 2022-04-21 | B46: 539884 | C46: DARSHANORNA | D46: VIVID MERCANTILE LIMITED | E46: SELL | F46: 115,472 | G46: 87.15 | H46: BSE
A47: 2022-04-21 | B47: 540811 | C47: DML | D47: B B COMMERCIAL LTD | E47: SELL | F47: 80,000 | G47: 16.53 | H47: BSE
A48: 2022-04-21 | B48: 542724 | C48: EARUM | D48: KALPESH JAVERILAL OSWAL | E48: BUY | F48: 484,000 | G48: 6.29 | H48: BSE
A49: 2022-04-21 | B49: 542724 | C49: EARUM | D49: KALPESH JAVERILAL OSWAL | E49: SELL | F49: 484,000 | G49: 6.7 | H49: BSE
A50: 2022-04-21 | B50: 542724 | C50: EARUM | D50: BHUMISHTH NARENDRABHAI PATEL | E50: SELL | F50: 800,000 | G50: 6.39 | H50: BSE
A51: 2022-04-21 | B51: 542724 | C51: EARUM | D51: NARENDRAKUMAR GANGARAMDAS PATEL | E51: SELL | F51: 800,002 | G51: 6.32 | H51: BSE
A52: 2022-04-21 | B52: 542724 | C52: EARUM | D52: SUSHILABEN NARENDRAKUMAR PATEL | E52: SELL | F52: 900,000 | G52: 6.32 | H52: BSE
A53: 2022-04-21 | B53: 542724 | C53: EARUM | D53: RITU DEVI DAGA | E53: BUY | F53: 700,000 | G53: 6.39 | H53: BSE
A54: 2022-04-21 | B54: 543518 | C54: EIGHTY | D54: ALPHA LEON ENTERPRISES LLP | E54: BUY | F54: 57,000 | G54: 53.55 | H54: BSE
A55: 2022-04-21 | B55: 543518 | C55: EIGHTY | D55: ALPHA LEON ENTERPRISES LLP | E55: SELL | F55: 27,000 | G55: 53.55 | H55: BSE
A56: 2022-04-21 | B56: 524444 | C56: EVEXIA | D56: GOENKA BUSINESS & FINANCE LIMITED | E56: BUY | F56: 1,872,986 | G56: 6.57 | H56: BSE
A57: 2022-04-21 | B57: 524444 | C57: EVEXIA | D57: GOENKA BUSINESS & FINANCE LIMITED | E57: SELL | F57: 1,872,986 | G57: 6.57 | H57: BSE
A58: 2022-04-21 | B58: 540936 | C58: GGL | D58: YACOOBALI AIYUB MOHAMMED | E58: BUY | F58: 59,886 | G58: 14.85 | H58: BSE
A59: 2022-04-21 | B59: 540936 | C59: GGL | D59: YACOOBALI AIYUB MOHAMMED | E59: SELL | F59: 23,747 | G59: 15.13 | H59: BSE
A60: 2022-04-21 | B60: 540936 | C60: GGL | D60: UMANG MUKESHKUMAR SHAH | E60: BUY | F60: 67,800 | G60: 15.03 | H60: BSE
A61: 2022-04-21 | B61: 540936 | C61: GGL | D61: JIMESH BHUPENDRA GANDHI | E61: SELL | F61: 54,500 | G61: 15.05 | H61: BSE
A62: 2022-04-21 | B62: 542918 | C62: GIANLIFE | D62: HARISHKUMAR | E62: BUY | F62: 33,000 | G62: 30.2 | H62: BSE
A63: 2022-04-21 | B63: 542918 | C63: GIANLIFE | D63: LALIT DUA (HUF) | E63: SELL | F63: 29,700 | G63: 30.2 | H63: BSE
A64: 2022-04-21 | B64: 543245 | C64: GLAND | D64: NICOMAC MACHINERY PRIVATE LIMITED | E64: SELL | F64: 5,379,343 | G64: 3200.66 | H64: BSE
A65: 2022-04-21 | B65: 532216 | C65: HBSTOCK | D65: BP EQUITIES PVT. LTD. | E65: BUY | F65: 42,552 | G65: 76.9 | H65: BSE
A66: 2022-04-21 | B66: 532216 | C66: HBSTOCK | D66: BP EQUITIES PVT. LTD. | E66: SELL | F66: 16,542 | G66: 76.86 | H66: BSE
A67: 2022-04-21 | B67: 532216 | C67: HBSTOCK | D67: ARPIT JAIN HUF | E67: BUY | F67: 15,001 | G67: 75.83 | H67: BSE
A68: 2022-04-21 | B68: 532216 | C68: HBSTOCK | D68: ARPIT JAIN HUF | E68: SELL | F68: 51,001 | G68: 76.53 | H68: BSE
A69: 2022-04-21 | B69: 524590 | C69: HEMORGANIC | D69: AYAN SHIRISHBHAI SHAH | E69: SELL | F69: 20,000 | G69: 57.6 | H69: BSE
A70: 2022-04-21 | B70: 531661 | C70: HITTCO | D70: JASBINDER KAUR | E70: SELL | F70: 40,000 | G70: 12.06 | H70: BSE
A71: 2022-04-21 | B71: 541983 | C71: INNOVATIVE | D71: AJAY MEENA | E71: SELL | F71: 75,000 | G71: 10.21 | H71: BSE
A72: 2022-04-21 | B72: 543286 | C72: JETMALL | D72: PAVITHRA VASUDEVAN | E72: BUY | F72: 36,000 | G72: 30.13 | H72: BSE
A73: 2022-04-21 | B73: 543286 | C73: JETMALL | D73: BHARAT KUMAR PUKHRAJJI | E73: SELL | F73: 132,000 | G73: 30.69 | H73: BSE
A74: 2022-04-21 | B74: 543286 | C74: JETMALL | D74: NEELAM JILESH CHHEDA | E74: BUY | F74: 36,000 | G74: 30.83 | H74: BSE
A75: 2022-04-21 | B75: 543286 | C75: JETMALL | D75: NEELAM JILESH CHHEDA | E75: SELL | F75: 24,000 | G75: 31 | H75: BSE
A76: 2022-04-21 | B76: 531328 | C76: KRETTOSYS | D76: BHAVESH A VORA (HUF) | E76: SELL | F76: 1,000,000 | G76: 1.13 | H76: BSE
A77: 2022-04-21 | B77: 531328 | C77: KRETTOSYS | D77: DHWANIL D PATEL | E77: SELL | F77: 1,010,852 | G77: 1.13 | H77: BSE
A78: 2022-04-21 | B78: 531328 | C78: KRETTOSYS | D78: MANJULABEN DHARMESHBHAI PATEL | E78: SELL | F78: 2,090,000 | G78: 1.13 | H78: BSE
A79: 2022-04-21 | B79: 531328 | C79: KRETTOSYS | D79: VORA FINANCIAL SERVICES PVT LTD | E79: BUY | F79: 1,200,000 | G79: 1.13 | H79: BSE
A80: 2022-04-21 | B80: 540078 | C80: MITSU | D80: NEXPACT LIMITED | E80: BUY | F80: 86,888 | G80: 311.32 | H80: BSE
A81: 2022-04-21 | B81: 539767 | C81: MNIL | D81: SEEMA | E81: BUY | F81: 45,200 | G81: 18.3 | H81: BSE
A82: 2022-04-21 | B82: 539767 | C82: MNIL | D82: SHALU | E82: BUY | F82: 54,590 | G82: 18.3 | H82: BSE
A83: 2022-04-21 | B83: 539767 | C83: MNIL | D83: VSN GLOBAL TRENDS | E83: SELL | F83: 99,392 | G83: 18.3 | H83: BSE
A84: 2022-04-21 | B84: 531494 | C84: NAVKAR | D84: EFFICENT TIE UP PRIVATE LIMITED | E84: SELL | F84: 514,000 | G84: 73.04 | H84: BSE
A85: 2022-04-21 | B85: 531494 | C85: NAVKAR | D85: ANILKUMAR | E85: BUY | F85: 327,400 | G85: 73 | H85: BSE
A86: 2022-04-21 | B86: 531494 | C86: NAVKAR | D86: KESAR TRACOM INDIA LLP | E86: BUY | F86: 12,000 | G86: 77.4 | H86: BSE
A87: 2022-04-21 | B87: 531494 | C87: NAVKAR | D87: KESAR TRACOM INDIA LLP | E87: SELL | F87: 100,000 | G87: 73 | H87: BSE
A88: 2022-04-21 | B88: 538537 | C88: OMANSH | D88: NARANG | E88: SELL | F88: 200,000 | G88: 2.15 | H88: BSE
A89: 2022-04-21 | B89: 538537 | C89: OMANSH | D89: ASHISH MITTAL HUF | E89: BUY | F89: 169,390 | G89: 2.15 | H89: BSE
A90: 2022-04-21 | B90: 538537 | C90: OMANSH | D90: ASHISH MITTAL HUF | E90: SELL | F90: 12,906 | G90: 2.15 | H90: BSE
A91: 2022-04-21 | B91: 539143 | C91: PANTH | D91: HANSABEN BHARATKUMAR PATEL | E91: SELL | F91: 95,965 | G91: 17.69 | H91: BSE
A92: 2022-04-21 | B92: 539143 | C92: PANTH | D92: PURAV BHARATBHAI PATEL | E92: SELL | F92: 276,376 | G92: 17.18 | H92: BSE
A93: 2022-04-21 | B93: 540727 | C93: POOJA | D93: EPITOME TRADING AND INVESTMENTS | E93: BUY | F93: 55,655 | G93: 45.45 | H93: BSE
A94: 2022-04-21 | B94: 540727 | C94: POOJA | D94: EPITOME TRADING AND INVESTMENTS | E94: SELL | F94: 30,789 | G94: 44.82 | H94: BSE
A95: 2022-04-21 | B95: 540175 | C95: REGENCY | D95: DHRUVAPANDEY | E95: SELL | F95: 49,000 | G95: 9.65 | H95: BSE
A96: 2022-04-21 | B96: 540175 | C96: REGENCY | D96: HARISH VERMA | E96: BUY | F96: 22,000 | G96: 9.53 | H96: BSE
A97: 2022-04-21 | B97: 540175 | C97: REGENCY | D97: HARISH VERMA | E97: SELL | F97: 660 | G97: 9.99 | H97: BSE
A98: 2022-04-21 | B98: 512499 | C98: SHALPRO | D98: TOPGAIN FINANCE PRIVATE LIMITED | E98: BUY | F98: 17,179,432 | G98: 0.92 | H98: BSE
A99: 2022-04-21 | B99: 512499 | C99: SHALPRO | D99: TOPGAIN FINANCE PRIVATE LIMITED | E99: SELL | F99: 14,601,802 | G99: 0.92 | H99: BSE
A100: 2022-04-21 | B100: 512499 | C100: SHALPRO | D100: ALPHA LEON ENTERPRISES LLP | E100: BUY | F100: 8,805,014 | G100: 0.91 | H100: BSE
A101: 2022-04-21 | B101: 512499 | C101: SHALPRO | D101: ALPHA LEON ENTERPRISES LLP | E101: SELL | F101: 8,805,014 | G101: 0.91 | H101: BSE
A102: 2022-04-21 | B102: 512499 | C102: SHALPRO | D102: TURBOT TRADERS PRIVATE LIMITED | E102: SELL | F102: 5,000,000 | G102: 0.93 | H102: BSE
A103: 2022-04-21 | B103: 512197 | C103: SILVERO | D103: RATHI KHUBCHAND BHANWARLAL | E103: SELL | F103: 14,281 | G103: 3.29 | H103: BSE
A104: 2022-04-21 | B104: 539584 | C104: SIPTL | D104: PARESH DHIRAJLAL SHAH | E104: SELL | F104: 300,000 | G104: 1.99 | H104: BSE
A105: 2022-04-21 | B105: 538918 | C105: VANICOM | D105: MITESH KUMAR | E105: SELL | F105: 21,900 | G105: 10 | H105: BSE
A106: 2022-04-21 | B106: 533056 | C106: VEDAVAAG | D106: RAHUL DHANRAJ MAHESHWARI (HUF) | E106: BUY | F106: 140,741 | G106: 69.06 | H106: BSE
A107: 2022-04-21 | B107: 533056 | C107: VEDAVAAG | D107: RAHUL DHANRAJ MAHESHWARI (HUF) | E107: SELL | F107: 14,741 | G107: 69.48 | H107: BSE
A108: 2022-04-21 | B108: 540823 | C108: VITESSE | D108: MONIKA RAJPUT | E108: BUY | F108: 23,556 | G108: 98.61 | H108: BSE
A109: 2022-04-21 | B109: 531845 | C109: ZENITHSTL | D109: ALPHA LEON ENTERPRISES LLP | E109: BUY | F109: 878,166 | G109: 4 | H109: BSE
A110: 2022-04-21 | B110: 531845 | C110: ZENITHSTL | D110: ALPHA LEON ENTERPRISES LLP | E110: SELL | F110: 1,209,872 | G110: 4.34 | H110: BSE
A111: 2022-04-21 | B111: AKASH | C111: Akash Infra-Projects Ltd | D111: ALPHA LEON ENTERPRISES LLP | E111: BUY | F111: 111,472 | G111: 48.75 | H111: NSE
A112: 2022-04-21 | B112: ANGELONE | C112: Angel One Limited | D112: NK SECURITIES RESEARCH PRIVATE LIMITED | E112: BUY | F112: 517,184 | G112: 1816.5 | H112: NSE
A113: 2022-04-21 | B113: ANGELONE | C113: Angel One Limited | D113: XTX MARKETS LLP | E113: BUY | F113: 535,850 | G113: 1806.72 | H113: NSE
A114: 2022-04-21 | B114: ANGELONE | C114: Angel One Limited | D114: GRAVITON RESEARCH CAPITAL LLP | E114: BUY | F114: 453,379 | G114: 1775.41 | H114: NSE
A115: 2022-04-21 | B115: ATALREAL | C115: Atal Realtech Limited | D115: MANISH NITIN THAKUR | E115: BUY | F115: 35,200 | G115: 142.27 | H115: NSE
A116: 2022-04-21 | B116: BANG | C116: Bang Overseas Limited | D116: ANANT WEALTH CONSULTANTS PRIVATE LIMITED | E116: BUY | F116: 490,825 | G116: 77.41 | H116: NSE
A117: 2022-04-21 | B117: BANG | C117: Bang Overseas Limited | D117: ADROIT FINANCIAL SERVICES PVT LTD | E117: BUY | F117: 134,842 | G117: 77.34 | H117: NSE
A118: 2022-04-21 | B118: BARBEQUE | C118: Barbeque Nation Hosp. Ltd | D118: EVEREST FINANCE AND INVESTMENT COMPANY | E118: BUY | F118: 252,500 | G118: 1163 | H118: NSE
A119: 2022-04-21 | B119: BARBEQUE | C119: Barbeque Nation Hosp. Ltd | D119: ASHISH RAMESH KACHOLIA | E119: BUY | F119: 253,004 | G119: 1163 | H119: NSE
A120: 2022-04-21 | B120: BROOKS | C120: Brooks Lab Limited | D120: MUKUL MAHESHWARI (HUF) | E120: BUY | F120: 131,656 | G120: 104.67 | H120: NSE
A121: 2022-04-21 | B121: CUPID | C121: Cupid Limited | D121: L7 HITECH PRIVATE LIMITED | E121: BUY | F121: 80,000 | G121: 297.15 | H121: NSE
A122: 2022-04-21 | B122: FCONSUMER | C122: Future Consumer Ltd | D122: SHARE INDIA SECURITIES LIMITED | E122: BUY | F122: 15,688,950 | G122: 5.08 | H122: NSE
A123: 2022-04-21 | B123: FELIX | C123: Felix Industries Ltd. | D123: SANJAYKUMAR SARAWAGI | E123: BUY | F123: 32,000 | G123: 12.53 | H123: NSE
A124: 2022-04-21 | B124: HARIOMPIPE | C124: Hariom Pipe Industries L | D124: TOPGAIN FINANCE PRIVATE LIMITED | E124: BUY | F124: 300,000 | G124: 208.05 | H124: NSE
A125: 2022-04-21 | B125: HARIOMPIPE | C125: Hariom Pipe Industries L | D125: SOCIETE GENERALE | E125: BUY | F125: 70,000 | G125: 217.91 | H125: NSE
A126: 2022-04-21 | B126: HBLPOWER | C126: HBL Power Systems Limited | D126: QE SECURITIES | E126: BUY | F126: 1,481,305 | G126: 70.55 | H126: NSE
A127: 2022-04-21 | B127: HBLPOWER | C127: HBL Power Systems Limited | D127: GRAVITON RESEARCH CAPITAL LLP | E127: BUY | F127: 2,598,395 | G127: 70.62 | H127: NSE
A128: 2022-04-21 | B128: HBSL | C128: HB Stockholdings Limited | D128: ARPIT JAIN HUF | E128: BUY | F128: 65,351 | G128: 75.06 | H128: NSE
A129: 2022-04-21 | B129: HBSL | C129: HB Stockholdings Limited | D129: RAGINI CHETAN MEHTA | E129: BUY | F129: 55,000 | G129: 76.05 | H129: NSE
A130: 2022-04-21 | B130: HBSL | C130: HB Stockholdings Limited | D130: AMRITA JAIN | E130: BUY | F130: 51,195 | G130: 75.77 | H130: NSE
A131: 2022-04-21 | B131: JSLL | C131: Jeena Sikho Lifecare Ltd | D131: PERPETUAL ENTERPRISES LLP | E131: BUY | F131: 70,000 | G131: 186 | H131: NSE
A132: 2022-04-21 | B132: JSLL | C132: Jeena Sikho Lifecare Ltd | D132: NKA FINANCIAL SERVICES PVT LTD. | E132: BUY | F132: 70,000 | G132: 186 | H132: NSE
A133: 2022-04-21 | B133: JSLL | C133: Jeena Sikho Lifecare Ltd | D133: MAZE ENTERPRISE | E133: BUY | F133: 70,000 | G133: 186 | H133: NSE
A134: 2022-04-21 | B134: KAKATCEM | C134: Kakatiya Cements Ltd | D134: ALACRITY SECURITIES LTD | E134: BUY | F134: 50,000 | G134: 274 | H134: NSE
A135: 2022-04-21 | B135: KAKATCEM | C135: Kakatiya Cements Ltd | D135: GOENKA BUSINESS & FINANCE LIMITED | E135: BUY | F135: 50,000 | G135: 274.2 | H135: NSE
A136: 2022-04-21 | B136: KAKATCEM | C136: Kakatiya Cements Ltd | D136: ANUSTUP TRADING PRIVATE LIMITED | E136: BUY | F136: 51,000 | G136: 273.75 | H136: NSE
A137: 2022-04-21 | B137: KAKATCEM | C137: Kakatiya Cements Ltd | D137: NIRAJ HARSUKHLAL SANGHAVI | E137: BUY | F137: 64,994 | G137: 292.68 | H137: NSE
A138: 2022-04-21 | B138: KBCGLOBAL | C138: KBC Global Limited | D138: MAYBANK KIM ENG SECURITIES PTE LTD | E138: BUY | F138: 3,500,000 | G138: 9.99 | H138: NSE
A139: 2022-04-21 | B139: KBCGLOBAL | C139: KBC Global Limited | D139: ANUSTUP TRADING PRIVATE LIMITED | E139: BUY | F139: 6,018,252 | G139: 9.73 | H139: NSE
A140: 2022-04-21 | B140: NAVKARCORP | C140: Navkar Corporation Ltd. | D140: CRONY VYAPAR PVT LTD | E140: BUY | F140: 734,390 | G140: 50.57 | H140: NSE
A141: 2022-04-21 | B141: NAVKARCORP | C141: Navkar Corporation Ltd. | D141: PARTH INFIN BROKERS PVT LTD | E141: BUY | F141: 849,827 | G141: 49.35 | H141: NSE
A142: 2022-04-21 | B142: NAVKARCORP | C142: Navkar Corporation Ltd. | D142: GRAVITON RESEARCH CAPITAL LLP | E142: BUY | F142: 1,210,775 | G142: 50.02 | H142: NSE
A143: 2022-04-21 | B143: ORTINLAB | C143: Ortin Laboratories Ltd | D143: MUKUL MAHESHWARI (HUF) | E143: BUY | F143: 49,347 | G143: 29.95 | H143: NSE
A144: 2022-04-21 | B144: RIIL | C144: Reliance Indl Infra Ltd | D144: XTX MARKETS LLP | E144: BUY | F144: 206,046 | G144: 1003.69 | H144: NSE
A145: 2022-04-21 | B145: RIIL | C145: Reliance Indl Infra Ltd | D145: GRAVITON RESEARCH CAPITAL LLP | E145: BUY | F145: 227,779 | G145: 1005.62 | H145: NSE
A146: 2022-04-21 | B146: RIIL | C146: Reliance Indl Infra Ltd | D146: QE SECURITIES | E146: BUY | F146: 89,772 | G146: 1003.79 | H146: NSE
A147: 2022-04-21 | B147: SEJALLTD | C147: Sejal Glass Limited | D147: ALPHA LEON ENTERPRISES LLP | E147: BUY | F147: 139,726 | G147: 309.36 | H147: NSE
A148: 2022-04-21 | B148: SEJALLTD | C148: Sejal Glass Limited | D148: STATSOL RESEARCH LLP | E148: BUY | F148: 68,959 | G148: 308.93 | H148: NSE
A149: 2022-04-21 | B149: SEJALLTD | C149: Sejal Glass Limited | D149: MANSI SHARES & STOCK ADVISORS PVT LTD | E149: BUY | F149: 100,040 | G149: 309.49 | H149: NSE
A150: 2022-04-21 | B150: VCL | C150: Vaxtex Cotfab Limited | D150: PREETI JAIN | E150: BUY | F150: 295,024 | G150: 22 | H150: NSE
A151: 2022-04-21 | B151: AKASH | C151: Akash Infra-Projects Ltd | D151: ALPHA LEON ENTERPRISES LLP | E151: SELL | F151: 67,972 | G151: 48.81 | H151: NSE
A152: 2022-04-21 | B152: ANGELONE | C152: Angel One Limited | D152: GRAVITON RESEARCH CAPITAL LLP | E152: SELL | F152: 453,379 | G152: 1776.69 | H152: NSE
A153: 2022-04-21 | B153: ANGELONE | C153: Angel One Limited | D153: NK SECURITIES RESEARCH PRIVATE LIMITED | E153: SELL | F153: 517,184 | G153: 1817.79 | H153: NSE
A154: 2022-04-21 | B154: ANGELONE | C154: Angel One Limited | D154: XTX MARKETS LLP | E154: SELL | F154: 536,541 | G154: 1807.41 | H154: NSE
A155: 2022-04-21 | B155: ATALREAL | C155: Atal Realtech Limited | D155: MANISH NITIN THAKUR | E155: SELL | F155: 4,800 | G155: 140 | H155: NSE
A156: 2022-04-21 | B156: BANG | C156: Bang Overseas Limited | D156: ANANT WEALTH CONSULTANTS PRIVATE LIMITED | E156: SELL | F156: 490,325 | G156: 78.23 | H156: NSE
A157: 2022-04-21 | B157: BANG | C157: Bang Overseas Limited | D157: DIGVIJAY SHIVSHANGBHAI CHAVDA | E157: SELL | F157: 110,000 | G157: 72.37 | H157: NSE
A158: 2022-04-21 | B158: BANG | C158: Bang Overseas Limited | D158: ADROIT FINANCIAL SERVICES PVT LTD | E158: SELL | F158: 166,000 | G158: 77.17 | H158: NSE
A159: 2022-04-21 | B159: BARBEQUE | C159: Barbeque Nation Hosp. Ltd | D159: MENU PRIVATE LIMITED | E159: SELL | F159: 505,504 | G159: 1163 | H159: NSE
A160: 2022-04-21 | B160: BROOKS | C160: Brooks Lab Limited | D160: MUKUL MAHESHWARI (HUF) | E160: SELL | F160: 38,423 | G160: 104.83 | H160: NSE
A161: 2022-04-21 | B161: FCONSUMER | C161: Future Consumer Ltd | D161: SHARE INDIA SECURITIES LIMITED | E161: SELL | F161: 15,686,598 | G161: 5.09 | H161: NSE
A162: 2022-04-21 | B162: HARIOMPIPE | C162: Hariom Pipe Industries L | D162: SOCIETE GENERALE | E162: SELL | F162: 150,000 | G162: 208.05 | H162: NSE
A163: 2022-04-21 | B163: HARIOMPIPE | C163: Hariom Pipe Industries L | D163: TOPGAIN FINANCE PRIVATE LIMITED | E163: SELL | F163: 4,000 | G163: 216 | H163: NSE
A164: 2022-04-21 | B164: HARIOMPIPE | C164: Hariom Pipe Industries L | D164: MOUNTAIN VENTURES | E164: SELL | F164: 130,000 | G164: 208.05 | H164: NSE
A165: 2022-04-21 | B165: HBLPOWER | C165: HBL Power Systems Limited | D165: GRAVITON RESEARCH CAPITAL LLP | E165: SELL | F165: 2,598,395 | G165: 70.56 | H165: NSE
A166: 2022-04-21 | B166: HBLPOWER | C166: HBL Power Systems Limited | D166: BANYANTREE GROWTH CAPITAL L.L.C. | E166: SELL | F166: 1,800,000 | G166: 69.77 | H166: NSE
A167: 2022-04-21 | B167: HBLPOWER | C167: HBL Power Systems Limited | D167: QE SECURITIES | E167: SELL | F167: 1,599,406 | G167: 70.64 | H167: NSE
A168: 2022-04-21 | B168: HBSL | C168: HB Stockholdings Limited | D168: ARPIT JAIN HUF | E168: SELL | F168: 29,351 | G168: 73.09 | H168: NSE
A169: 2022-04-21 | B169: HBSL | C169: HB Stockholdings Limited | D169: AMRITA JAIN | E169: SELL | F169: 51,195 | G169: 76.04 | H169: NSE
A170: 2022-04-21 | B170: JSLL | C170: Jeena Sikho Lifecare Ltd | D170: MANSUKH SECURITIES & FINANCE LTD | E170: SELL | F170: 210,000 | G170: 186 | H170: NSE
A171: 2022-04-21 | B171: KAKATCEM | C171: Kakatiya Cements Ltd | D171: GOENKA BUSINESS & FINANCE LIMITED | E171: SELL | F171: 50,000 | G171: 273.99 | H171: NSE
A172: 2022-04-21 | B172: KAKATCEM | C172: Kakatiya Cements Ltd | D172: ALACRITY SECURITIES LTD | E172: SELL | F172: 50,000 | G172: 273.75 | H172: NSE
A173: 2022-04-21 | B173: KAKATCEM | C173: Kakatiya Cements Ltd | D173: ANUSTUP TRADING PRIVATE LIMITED | E173: SELL | F173: 51,000 | G173: 274.72 | H173: NSE
A174: 2022-04-21 | B174: KAKATCEM | C174: Kakatiya Cements Ltd | D174: NIRAJ HARSUKHLAL SANGHAVI | E174: SELL | F174: 64,994 | G174: 301.2 | H174: NSE
A175: 2022-04-21 | B175: KBCGLOBAL | C175: KBC Global Limited | D175: ANUSTUP TRADING PRIVATE LIMITED | E175: SELL | F175: 2,622,159 | G175: 9.71 | H175: NSE
A176: 2022-04-21 | B176: NAVKARCORP | C176: Navkar Corporation Ltd. | D176: PARTH INFIN BROKERS PVT LTD | E176: SELL | F176: 890,437 | G176: 49.51 | H176: NSE
A177: 2022-04-21 | B177: NAVKARCORP | C177: Navkar Corporation Ltd. | D177: GRAVITON RESEARCH CAPITAL LLP | E177: SELL | F177: 1,210,775 | G177: 50.11 | H177: NSE
A178: 2022-04-21 | B178: NAVKARCORP | C178: Navkar Corporation Ltd. | D178: CRONY VYAPAR PVT LTD | E178: SELL | F178: 1,284,390 | G178: 50.03 | H178: NSE
A179: 2022-04-21 | B179: ORTINLAB | C179: Ortin Laboratories Ltd | D179: MUKUL MAHESHWARI (HUF) | E179: SELL | F179: 29,347 | G179: 30.31 | H179: NSE
A180: 2022-04-21 | B180: RIIL | C180: Reliance Indl Infra Ltd | D180: GRAVITON RESEARCH CAPITAL LLP | E180: SELL | F180: 227,779 | G180: 1005.64 | H180: NSE
A181: 2022-04-21 | B181: RIIL | C181: Reliance Indl Infra Ltd | D181: QE SECURITIES | E181: SELL | F181: 88,321 | G181: 1004.96 | H181: NSE
A182: 2022-04-21 | B182: RIIL | C182: Reliance Indl Infra Ltd | D182: XTX MARKETS LLP | E182: SELL | F182: 212,964 | G182: 1005.97 | H182: NSE
A183: 2022-04-21 | B183: SEJALLTD | C183: Sejal Glass Limited | D183: ALPHA LEON ENTERPRISES LLP | E183: SELL | F183: 181,309 | G183: 309.99 | H183: NSE
A184: 2022-04-21 | B184: SEJALLTD | C184: Sejal Glass Limited | D184: STATSOL RESEARCH LLP | E184: SELL | F184: 37,694 | G184: 322.03 | H184: NSE
A185: 2022-04-21 | B185: SEJALLTD | C185: Sejal Glass Limited | D185: MANSI SHARES & STOCK ADVISORS PVT LTD | E185: SELL | F185: 100,036 | G185: 323.86 | H185: NSE
A186: 2022-04-21 | B186: VCL | C186: Vaxtex Cotfab Limited | D186: SHIVANG R VACHHETA | E186: SELL | F186: 590,000 | G186: 21.5 | H186: NSE
A187: 2022-04-21 | B187: VCL | C187: Vaxtex Cotfab Limited | D187: SHANI BHATI | E187: SELL | F187: 485,000 | G187: 21.75 | H187: NSE

Sheet Call Tracker (Equity & F&O)
M5: Back To Main Page
A6: Retail Research Technical Calls & Fundamental Performance Report for the month of Apr-2022
M7: =Main!B10 -> 2022-04-22
B8: Positional Call
A9: Sr.no | B9: Date | D9: Company | E9: Rec | F9: Rec Price | G9: Stop Loss*** | H9: Call Closed At | I9: Target | J9: Remark | K9: Profit / Loss per Share | L9: All charges | M9: Net Gain / Loss % | N9: Status | O9: Closed Date | P9: Market Closing Price
A10: 1 | B10: 2022-03-07 | D10: REDINGTON | E10: Buy | F10: 146.5 | G10: 135 | H10: 156.5 | I10: 160-170 | J10: Profit of Rs.10/- | K10: =H10-F10 -> 10 | L10: =(F10*-0.7)/100 -> -1.03 | M10: =(K10+L10)/F10 -> 6.13% | N10: Successful | O10: 2022-04-07 | R10: H
A11: 2 | B11: 2022-03-17 | D11: TATACOMM | E11: Buy | F11: 1165 | G11: 1090 | H11: 1240 | I11: 1250-1300 | J11: Profit of Rs.75/- | K11: 75 | L11: -8.16 | M11: 5.74% | N11: Successful | O11: 2022-04-01 | R11: H
A12: 3 | B12: 2022-03-21 | D12: WHIRLPOOL | E12: Buy | F12: 1640 | G12: 1530 | H12: 1705 | I12: 1800-1900 | J12: Part profit of Rs.65/- | K12: 65 | L12: -11.48 | M12: 3.26% | N12: Successful | O12: 2022-04-11 | P12: =VLOOKUP(D12,'MidCap Intra'!B18:C573,2,0) -> 1634.1 | R12: H
A13: 4 | B13: 2022-03-25 | D13: SEQUENT | E13: Buy | F13: 134.5 | G13: 125 | H13: 142.5 | I13: 150-160 | J13: Profit of Rs.8/- | K13: =H13-F13 -> 8 | L13: =(F13*-0.7)/100 -> -0.94 | M13: =(K13+L13)/F13 -> 5.25% | N13: Successful | O13: 2022-04-01 | R13: H
A14: 5 | B14: 2022-04-01 | D14: HCLTECH | E14: Buy | F14: 1155 | G14: 1090 | H14: =(1199.5+1090)/2 -> 1144.75 | I14: 1250-1300 | J14: Loss of Rs.10.25/- | K14: -10.25 | L14: -8.09 | M14: -1.59% | N14: Unsuccessful | O14: 2022-04-19 | R14: H
A15: 6 | B15: 2022-04-06 | D15: APOLLOHOSP | E15: Buy | F15: 4540 | G15: 4195 | H15: 4805 | I15: 4800-5000 | J15: Part profit of Rs.265/- | K15: =H15-F15 -> 265 | L15: =(F15*-0.7)/100 -> -31.78 | M15: =(K15+L15)/F15 -> 5.14% | N15: Successful | O15: 2022-04-19 | R15: H
A16: 7 | B16: 2022-04-07 | D16: LT | E16: Buy | F16: 1820 | G16: 1715 | H16: 1715 | I16: 1950-2000 | J16: Loss of Rs.105/- | K16: -105 | L16: -12.74 | M16: -6.47% | N16: Unsuccessful | O16: 2022-04-19 | R16: H
A17: 8 | B17: 2022-04-08 | D17: REDINGTON | E17: Buy | F17: 152 | G17: 144 | H17: 161.5 | I17: 165-170 | J17: Profit of Rs.9.5/- | K17: =H17-F17 -> 9.5 | L17: =(F17*-0.7)/100 -> -1.06 | M17: =(K17+L17)/F17 -> 5.55% | N17: Successful | O17: 2022-04-11 | R17: H
A18: 9 | B18: 2022-04-12 | D18: REDINGTON | E18: Buy | F18: 154.5 | G18: 144 | H18: 164 | I18: 170-180 | J18: Profit of Rs.9.5/- | K18: 9.5 | L18: =(F18*-0.4)/100 -> -0.62 | M18: 5.75% | N18: Successful | O18: 2022-04-13 | R18: H
A19: 10 | B19: 2022-04-13 | D19: TATACOMM | E19: Buy | F19: 1280-1300 | G19: 1215 | I19: 1400-1450 | J19: Open | R19: H
A20: 11 | B20: 2022-04-13 | D20: CAMS | E20: Buy | F20: 2580-2610 | G20: 2395 | I20: 2800-2900 | J20: Open | R20: H
A21: 12 | B21: 2022-04-19 | D21: REDINGTON | E21: Buy | F21: 157-159 | G21: 149 | I21: 170-180 | J21: Open | R21: H
A22: 13 | B22: 2022-04-20 | D22: IRCTC | E22: Buy | F22: 750-760 | G22: 695 | I22: 830-900 | J22: Open | R22: H
A26: CLBS = Closing Basis ***
A27: Dividend adjusted <> | F27: Reinitiated $
A28: Part book {} | D28: s | F28: Revised stoploss #
B30: Momentum Call
A31: Sr.no | B31: Date | D31: Company | E31: Rec | F31: Rec Price | G31: Stop Loss | H31: Call Closed At | I31: Target | J31: Remark | K31: Profit / Loss per Share/Lot | L31: All charges | M31: Net Gain / Loss % | N31: Status | O31: Closed Date
A32: 1 | B32: 2022-03-14 | D32: BEL | E32: Buy<> | F32: 208.5 | G32: 203 | H32: 215.5 | I32: 218-222 | J32: Profit of Rs.7/- | K32: =H32-F32 -> 7 | L32: =(F32*-0.7)/100 -> -1.46 | M32: =(K32+L32)/F32 -> 2.66% | N32: Successful | O32: 2022-04-01 | R32: H
A33: 2 | B33: 2022-03-25 | D33: SBIN | E33: Buy | F33: 491.5 | G33: 477 | H33: 509 | I33: 510-520 | J33: Profit of Rs.17.5/- | K33: =H33-F33 -> 17.5 | L33: =(F33*-0.7)/100 -> -3.44 | M33: =(K33+L33)/F33 -> 2.86% | N33: Successful | O33: 2022-04-04 | R33: H
A34: 3 | B34: 2022-04-04 | D34: SUMICHEM | E34: Buy | F34: 430-432 | G34: 418 | I34: 450-460 | J34: Open | R34: H
A35: 4 | B35: 2022-04-05 | D35: TATAPOWER | E35: Buy | F35: 272 | G35: 264 | H35: 285.5 | I35: 285-290 | J35: Profit of Rs.13.5/- | K35: =H35-F35 -> 13.5 | L35: =(F35*-0.7)/100 -> -1.90 | M35: =(K35+L35)/F35 -> 4.26% | N35: Successful | O35: 2022-04-06 | R35: H
A36: 5 | B36: 2022-04-06 | D36: DIXON | E36: Buy | F36: 4580 | G36: 4430 | H36: 4430 | I36: 4800-4900 | J36: Loss of Rs.150/- | K36: =H36-F36 -> -150 | L36: =(F36*-0.7)/100 -> -32.06 | M36: =(K36+L36)/F36 -> -3.98% | N36: Unsuccessful | O36: 2022-04-11 | R36: H
A37: 6 | B37: 2022-04-06 | D37: VTL | E37: Buy | F37: 446.5 | G37: 432 | H37: 462.5 | I37: 465-475 | J37: Profit of Rs.16/- | K37: 16 | L37: -3.13 | M37: 2.88% | N37: Successful | O37: 2022-04-13 | R37: H
A38: 7 | B38: 2022-04-07 | D38: SAIL | E38: Buy | F38: 110.25 | G38: 107.4 | H38: 107.4 | I38: 114-116 | J38: Loss of Rs.2.85/- | K38: =H38-F38 -> -2.85 | L38: =(F38*-0.7)/100 -> -0.77 | M38: =(K38+L38)/F38 -> -3.29% | N38: Unsuccessful | O38: 2022-04-13 | R38: H
A39: 8 | B39: 2022-04-07 | D39: HDFCBANK | E39: Buy | F39: 1525 | G39: 1477 | H39: 1477 | I39: 1590-1620 | J39: Loss of Rs.48/- | K39: -48 | L39: -10.68 | M39: -3.85% | N39: Unsuccessful | O39: 2022-04-13 | R39: H
A40: 9 | B40: 2022-04-08 | D40: HDFC | E40: Buy | F40: 2444 | G40: 2370 | H40: 2370 | I40: 2550-2600 | J40: Loss of Rs.74/- | K40: =H40-F40 -> -74 | L40: =(F40*-0.7)/100 -> -17.11 | M40: =(K40+L40)/F40 -> -3.73% | N40: Unsuccessful | O40: 2022-04-18 | R40: H
A41: 10 | B41: 2022-04-12 | D41: SBILIFE | E41: Buy | F41: 1142.5 | G41: 1113 | H41: 1174 | I41: 1180-1200 | J41: Profit of Rs.31.5/- | K41: 31.5 | L41: =(F41*-0.7)/100 -> -8.00 | M41: =(K41+L41)/F41 -> 2.06% | N41: Successful | O41: 2022-04-18 | R41: H
A42: 11 | B42: 2022-04-19 | D42: TATAPOWER | E42: Buy | F42: 248 | G42: 240 | H42: 255.75 | I42: 265 | J42: Profit of Rs.7.75/- | K42: =H42-F42 -> 7.75 | L42: =(F42*-0.7)/100 -> -1.74 | M42: =(K42+L42)/F42 -> 2.43% | N42: Successful | O42: 2022-04-21 | R42: H
A43: 12 | B43: 2022-04-20 | D43: SBILIFE | E43: Buy | F43: 1125-1130 | G43: 1100 | I43: 1160-1190 | J43: Open | R43: N
A44: 13 | B44: 2022-04-20 | D44: PRSMJOHNSN | E44: Buy | F44: 120.5-121.50 | G44: 117 | I44: 17-132 | J44: Open | R44: N
A45: 14 | B45: 2022-04-20 | D45: CANBK | E45: Buy | F45: 233-234 | G45: 227 | I45: 242-250 | J45: Open | R45: H
A46: 15 | B46: 2022-04-20 | D46: INDIACEM | E46: Buy | F46: 212-214 | G46: 207 | I46: 220-225 | J46: Open | R46: H
A47: 16 | B47: 2022-04-21 | D47: CARBORUNIV | E47: Buy | F47: 755-760 | G47: 730 | I47: 800 | J47: Open | R47: N
A48: 17 | B48: 2022-04-21 | D48: SUPREMEIND | E48: Buy | F48: 1975-1985 | G48: 1920 | I48: 2050-2100 | J48: Open | R48: H
A49: 18 | B49: 2022-04-21 | D49: HDFCBANK | E49: Buy | F49: 1370-1380 | G49: 1340 | I49: 1450 | J49: Open | R49: H
A52: CLBS = Closing Basis *** | H52: *
A53: Dividend adjusted <> | F53: Reinitiated $
F54: Revised stoploss #
A56: Master Trade High Risk
A57: Sr.no | B57: Date | D57: Company | E57: Rec | F57: Rec Price | G57: Stop Loss | H57: Call Closed At | I57: Target | J57: Remark | K57: Profit / Loss per share | L57: All charges | M57: Gain / Loss per Lot | N57: Lot | O57: Status | P57: Closed Date
A58: 1 | B58: 2022-03-31 | D58: NIFTY APR FUT | E58: Buy | F58: 17520 | G58: 17340 | H58: 17625 | I58: 17700-17800 | J58: Profit of Rs.105/- | K58: =H58-F58 -> 105 | L58: =(H58*N58)*0.07% -> 616.88 | M58: =(K58*N58)-L58 -> 4633.1 | N58: 50 | O58: Successful | P58: 2022-04-01 | R58: H
A59: 2 | B59: 2022-04-01 | D59: PIDILITIND APR FUT | E59: Buy | F59: 2455 | G59: 2400 | H59: 2495 | I59: 2520-2550 | J59: Profit of Rs.40/- | K59: =H59-F59 -> 40 | L59: =(H59*N59)*0.07% -> 436.63 | M59: =(K59*N59)-L59 -> 9563.4 | N59: 250 | O59: Successful | P59: 2022-04-01 | R59: N
A60: 3 | B60: 2022-04-01 | D60: PIIND APR FUT | E60: Buy | F60: 2830 | G60: 2775 | H60: 2867.5 | I60: 2900-2930 | J60: Profit of Rs.37.5/- | K60: =H60-F60 -> 37.5 | L60: =(H60*N60)*0.07% -> 501.81 | M60: =(K60*N60)-L60 -> 8873.2 | N60: 250 | O60: Successful | P60: 2022-04-01 | R60: H
A61: 4 | B61: 2022-04-01 | D61: SIEMENS APR FUT | E61: Buy | F61: 2380 | G61: 2335 | H61: 2410 | I61: 2440-2480 | J61: Profit of Rs.30/- | K61: 30 | L61: 463.93 | M61: 7786.1 | N61: 275 | O61: Successful | P61: 2022-04-04 | R61: N
A62: 5 | B62: 2022-04-01 | D62: ACC APR FUT | E62: Buy | F62: 2100 | G62: 2048 | H62: 2130 | I62: 2160-2200 | J62: Profit of Rs.30/- | K62: =H62-F62 -> 30 | L62: =(H62*N62)*0.07% -> 372.75 | M62: =(K62*N62)-L62 -> 7127.3 | N62: 250 | O62: Successful | P62: 2022-04-04 | R62: H
A63: 6 | B63: 2022-04-01 | D63: HDFCBANK APR FUT | E63: Buy | F63: 1494 | G63: 1475 | H63: 1637.5 | I63: 1525-1535 | J63: Profit of Rs.143.5/- | K63: =H63-F63 -> 143.5 | L63: =(H63*N63)*0.07% -> 630.44 | M63: =(K63*N63)-L63 -> 78294.6 | N63: 550 | O63: Successful | P63: 2022-04-04 | R63: H
A64: 7 | B64: 2022-04-01 | D64: AARTIIND APR FUT | E64: Buy | F64: 955 | G64: 940 | H64: 966.5 | I64: 980-995 | J64: Profit of Rs.11.5/- | K64: 11.5 | L64: 575.07 | M64: 9199.9 | N64: 850 | O64: Successful | P64: 2022-04-04 | R64: N
A65: 8 | B65: 2022-04-04 | D65: NIFTY APR FUT | E65: Sell | F65: 18090 | G65: 18260 | H65: 17980 | I65: 17800-17700 | J65: Profit of Rs.110/- | K65: =F65-H65 -> 110 | L65: =(H65*N65)*0.07% -> 629.30 | M65: =(K65*N65)-L65 -> 4870.7 | N65: 50 | O65: Successful | P65: 2022-04-04 | R65: H
A66: 9 | B66: 2022-04-04 | D66: JSWSTEEL APR FUT | E66: Buy | F66: 736.5 | G66: 726 | H66: 745 | I66: 750-760 | J66: Profit of Rs.8.50/- | K66: =H66-F66 -> 8.5 | L66: 704.03 | M66: 10771.0 | N66: 1350 | O66: Successful | P66: 2022-04-05 | R66: N
A67: 10 | B67: 2022-04-04 | D67: INDUSINDBK APR FUT | E67: Buy | F67: 988 | G67: 974 | H67: 974 | I67: 1000-1015 | J67: Loss of Rs.14/- | K67: -14 | L67: =(H67*N67)*0.07% -> 613.62 | M67: =(K67*N67)-L67 -> -13213.6 | N67: 900 | O67: Unsuccessful | P67: 2022-04-05 | R67: H
A68: 11 | B68: 2022-04-04 | D68: PIIND APR FUT | E68: Buy | F68: 2870 | G68: 2820 | H68: 2905 | I68: 2950-3000 | J68: Profit of Rs.35/- | K68: =H68-F68 -> 35 | L68: =(H68*N68)*0.07% -> 508.38 | M68: =(K68*N68)-L68 -> 8241.6 | N68: 250 | O68: Successful | P68: 2022-04-05 | R68: N
A69: 12 | B69: 2022-04-05 | D69: HINDALCO APR FUT | E69: Buy | F69: 583 | G69: 570 | H69: 586.5 | I69: 600 | J69: Profit of Rs.3.5/- | K69: =H69-F69 -> 3.5 | L69: =(H69*N69)*0.07% -> 441.34 | M69: =(K69*N69)-L69 -> 3321.2 | N69: 1075 | O69: Successful | P69: 2022-04-05 | R69: H
A70: 13 | B70: 2022-04-05 | D70: NIFTY APR FUT | E70: Sell | F70: 18130 | G70: 18310 | H70: 18045 | I70: 17800-17700 | J70: Profit of Rs.85/- | K70: =F70-H70 -> 85 | L70: 631.58 | M70: 3618.4 | N70: 50 | O70: Successful | P70: 2022-04-05 | R70: H
A71: 14 | B71: 2022-04-05 | D71: JSWSTEEL APR FUT | E71: Buy | F71: 736 | G71: 725 | H71: 744 | I71: 750-760 | J71: Profit of Rs.8/- | K71: =H71-F71 -> 8 | L71: 703.08 | M71: 10096.9 | N71: 1350 | O71: Successful | P71: 2022-04-05 | R71: N
A72: 15 | B72: 2022-04-06 | D72: SIEMENS APR FUT | E72: Buy | F72: 2463 | G72: 2410 | H72: 2497.5 | I72: 2520-2560 | J72: Profit of Rs.34.5/- | K72: =H72-F72 -> 34.5 | L72: =(H72*N72)*0.07% -> 480.77 | M72: =(K72*N72)-L72 -> 9006.7 | N72: 275 | O72: Successful | P72: 2022-04-06 | R72: N
A73: 16 | B73: 2022-04-06 | D73: PIIND APR FUT | E73: Buy | F73: 2880 | G73: 2830 | H73: 2920 | I73: 2950-3000 | J73: Profit of Rs.40/- | K73: =H73-F73 -> 40 | L73: =(H73*N73)*0.07% -> 511.00 | M73: =(K73*N73)-L73 -> 9489.0 | N73: 250 | O73: Successful | P73: 2022-04-07 | R73: H
A74: 17 | B74: 2022-04-06 | D74: SIEMENS APR FUT | E74: Buy | F74: 2462 | G74: 2410 | H74: 2525 | I74: 2520-2560 | J74: Profit of Rs.63/- | K74: 63 | L74: 486.06 | M74: =(K74*N74)-L74 -> 16838.9 | N74: 275 | O74: Successful | P74: 2022-04-07 | R74: N
A75: 18 | B75: 2022-04-06 | D75: INFY APR FUT | E75: Buy | F75: 1832 | G75: 1790 | H75: 1790 | I75: 1870-1900 | J75: Loss of Rs.42/- | K75: -42 | L75: 375.90 | M75: =(K75*N75)-L75 -> -12975.9 | N75: 300 | O75: Unsuccessful | P75: 2022-04-11 | R75: H
A76: 19 | B76: 2022-04-06 | D76: HINDALCO APR FUT | E76: Buy | F76: 582 | G76: 570 | H76: 570 | I76: 600 | J76: Loss of Rs.12/- | K76: =H76-F76 -> -12 | L76: =(H76*N76)*0.07% -> 359.10 | M76: =(K76*N76)-L76 -> -11159.1 | N76: 900 | O76: Unsuccessful | P76: 2022-04-12 | R76: H
A77: 20 | B77: 2022-04-07 | D77: JSWSTEEL APR FUT | E77: Buy | F77: 731.5 | G77: 722 | H77: 739.5 | I77: 745-755 | J77: Profit of Rs.8/- | K77: =H77-F77 -> 8 | L77: =(H77*N77)*0.07% -> 698.83 | M77: =(K77*N77)-L77 -> 10101.2 | N77: 1350 | O77: Successful | P77: 2022-04-08 | R77: N
A78: 21 | B78: 2022-04-07 | D78: PIIND APR FUT | E78: Buy | F78: 2870 | G78: 2820 | H78: 2910 | I78: 2950-3000 | J78: Profit of Rs.40/- | K78: 40 | L78: 509.25 | M78: 9490.8 | N78: 250 | O78: Successful | P78: 2022-04-08 | R78: N
A79: 22 | B79: 2022-04-08 | D79: HCLTECH APR FUT | E79: Buy | F79: 1161 | G79: 1142 | H79: 1174.5 | I79: 1190-1200 | J79: Profit of Rs.13.5/- | K79: =H79-F79 -> 13.5 | L79: =(H79*N79)*0.07% -> 575.51 | M79: =(K79*N79)-L79 -> 8874.5 | N79: 700 | O79: Successful | P79: 2022-04-08 | R79: N
A80: 23 | B80: 2022-04-08 | D80: COLPAL APR FUT | E80: Buy | F80: 1573 | G80: 1535 | H80: 1535 | I80: 1610-1630 | J80: Loss of Rs.38/- | K80: -38 | L80: 376.08 | M80: -13676.1 | N80: 350 | O80: Unsuccessful | P80: 2022-04-13 | R80: N
A81: 24 | B81: 2022-04-11 | D81: SIEMENS APR FUT | E81: Buy | F81: 2515 | G81: 2465 | H81: 2465 | I81: 2570-2620 | J81: Loss of Rs.50/- | K81: =H81-F81 -> -50 | L81: =(H81*N81)*0.07% -> 474.51 | M81: =(K81*N81)-L81 -> -14224.5 | N81: 275 | O81: Unsuccessful | P81: 2022-04-12 | R81: N
A82: 25 | B82: 2022-04-11 | D82: HCLTECH APR FUT | E82: Buy | F82: 1137 | G82: 1120 | H82: 1120 | I82: 1160-1175 | J82: Loss of Rs.17/- | K82: -17 | L82: 548.80 | M82: -12448.8 | N82: 700 | O82: Unsuccessful | P82: 2022-04-12 | R82: N
A83: 26 | B83: 2022-04-11 | D83: ITC APR FUT | E83: Buy | F83: 269.5 | G83: 262 | H83: 262 | I83: 280 | J83: Loss of Rs.3.65/- | K83: -7.5 | L83: 400.00 | M83: =(-3.65*3200)-500 -> -12180.0 | N83: 3200 | O83: Unsuccessful | P83: 2022-04-20 | R83: H
D84: ITC 280 CE APR | E84: Sell | F84: 4.85 | H84: 1 | K84: =F84-H84 -> 3.85 | L84: 100.00 | R84: H
A85: 27 | B85: 2022-04-12 | D85: RELIANCE APR FUT | E85: Buy | F85: 2600 | G85: 2550 | H85: 2610 | I85: 2660-2700 | J85: Profit of Rs.10- | K85: =H85-F85 -> 10 | L85: =(H85*N85)*0.07% -> 456.75 | M85: =(K85*N85)-L85 -> 2043.3 | N85: 250 | O85: Successful | P85: 2022-04-19 | R85: H
A86: 28 | B86: 2022-04-12 | D86: NIFTY APR FUT | E86: Buy | F86: 17575 | G86: 17420 | H86: 17645 | I86: 17800-17900 | J86: Profit of Rs.70/- | K86: =H86-F86 -> 70 | L86: =(H86*N86)*0.07% -> 617.58 | M86: =(K86*N86)-L86 -> 2882.4 | N86: 50 | O86: Successful | P86: 2022-04-13 | R86: H
A87: 29 | B87: 2022-04-13 | D87: NIFTY APR FUT | E87: Buy | F87: 17530 | G87: 17400 | H87: 17535 | I87: 17800 | J87: Profit of Rs.5- | K87: =H87-F87 -> 5 | L87: =(H87*N87)*0.07% -> 613.73 | M87: =(K87*N87)-L87 -> -363.7 | N87: 50 | O87: Neutral | P87: 2022-04-13 | R87: H
A88: 30 | B88: 2022-04-18 | D88: PIIND APR FUT | E88: Buy | F88: 2905 | G88: 2850 | H88: 2950 | I88: 2970-3000 | J88: Profit of Rs.45/- | K88: 45 | L88: 516.25 | M88: 10733.8 | N88: 250 | O88: Successful | P88: 2022-04-18 | R88: N
A89: 31 | B89: 2022-04-18 | D89: ABCAPITAL APR FUT | E89: Buy | F89: 114.5 | G89: 111 | H89: 116.7 | I89: 118-121 | J89: Profit of Rs.2.2/- | K89: 2.2 | L89: 359.44 | M89: 9320.6 | N89: 4400 | O89: Successful | P89: 2022-04-18 | R89: N
A90: 32 | B90: 2022-04-18 | D90: ACC APR FUT | E90: Buy | F90: 2205 | G90: 2150 | H90: 2150 | I90: 2260-2300 | J90: Loss of Rs.55/- | K90: -55 | L90: 376.25 | M90: -14126.3 | N90: 250 | O90: Unsuccessful | P90: 2022-04-19 | R90: N
A91: 33 | B91: 2022-04-19 | D91: ABCAPITAL APR FUT | E91: Buy | F91: 114 | G91: 111 | H91: 111 | I91: 118-121 | J91: Loss of Rs.3/- | K91: =H91-F91 -> -3 | L91: =(H91*N91)*0.07% -> 341.88 | M91: =(K91*N91)-L91 -> -13541.9 | N91: 4400 | O91: Unsuccessful | P91: 2022-04-19 | R91: N
A92: 34 | B92: 2022-04-19 | D92: HCLTECH APR FUT | E92: Buy | F92: 1099 | G92: 1084 | H92: 1084 | I92: 1120-1130 | J92: Loss of Rs.15/- | K92: =H92-F92 -> -15 | L92: =(H92*N92)*0.07% -> 531.16 | M92: =(K92*N92)-L92 -> -11031.2 | N92: 700 | O92: Unsuccessful | P92: 2022-04-19 | R92: H
A93: 35 | B93: 2022-04-19 | D93: SIEMENS APR FUT | E93: Buy | F93: 2427.5 | G93: 2380 | H93: 2380 | I93: 2500-2520 | J93: Loss of Rs.47.5/- | K93: =H93-F93 -> -47.5 | L93: =(H93*N93)*0.07% -> 458.15 | M93: =(K93*N93)-L93 -> -13520.7 | N93: 275 | O93: Unsuccessful | P93: 2022-04-20 | R93: N
A94: 36 | B94: 2022-04-19 | D94: PIIND APR FUT | E94: Buy | F94: 2895-2905 | G94: 2850 | I94: 2970-3000 | J94: Open | R94: N
A95: 37 | B95: 2022-04-20 | D95: CROMPTON APR FUT | E95: Buy | F95: 374 | G95: 363 | H95: 383.5 | I95: 385-390 | J95: Profit of Rs.9.5/- | K95: =H95-F95 -> 9.5 | L95: =(H95*N95)*0.07% -> 295.30 | M95: =(K95*N95)-L95 -> 10154.7 | N95: 1100 | O95: Successful | P95: 2022-04-20 | R95: N
A96: 38 | B96: 2022-04-20 | D96: AARTIIND APR FUT | E96: Buy | F96: 747-749 | G96: 733 | I96: 765-775 | J96: Open | R96: H
A97: 39 | B97: 2022-04-20 | D97: SBIN APR FUT | E97: Buy | F97: 508.5 | G97: 500 | H97: 514.5 | I97: 520-525 | J97: Profit of Rs.6/- | K97: =H97-F97 -> 6 | L97: =(H97*N97)*0.07% -> 540.23 | M97: =(K97*N97)-L97 -> 8459.8 | N97: 1500 | O97: Successful | P97: 2022-04-21 | R97: H
A98: 40 | B98: 2022-04-21 | D98: ICICIBANK APR FUT | E98: Buy | F98: 757 | G98: 748 | H98: 764.5 | I98: 770-778 | J98: Profit of Rs.7.5/- | K98: 7.5 | L98: 735.83 | M98: 9576.7 | N98: 1375 | O98: Successful | P98: 2022-04-21 | R98: H
A99: 41 | B99: 2022-04-21 | D99: SIEMENS APR FUT | E99: Buy | F99: 2380-2384 | G99: 2345 | I99: 2440-2460 | J99: Open | R99: H
A100: 42 | B100: 2022-04-21 | D100: CROMPTON APR FUT | E100: Buy | F100: 381-383 | G100: 371 | I100: 395-400 | J100: Open | R100: N
A106: Master Trade Medium Risk
A107: Sr.no | B107: Date | D107: Company | E107: Rec | F107: Rec Price | G107: Stop Loss | H107: Call Closed At | I107: Target | J107: Remark | K107: Profit/ Loss per lot | L107: All charges | M107: Gain / Loss per Lot | N107: Lot | O107: Status | P107: Closed Date
A108: 1 | B108: 2022-04-04 | D108: HEROMOTOCO 2220 PE APR | E108: Buy | F108: 56 | G108: 39 | H108: 39 | I108: 75-85 | J108: Loss of Rs.17/- | K108: =H108-F108 -> -17 | L108: 100.00 | M108: =(K108*N108)-L108 -> -5200.0 | N108: 300 | O108: Unsuccessful | P108: 2022-04-04 | R108: N
A109: 2 | B109: 2022-04-04 | D109: NIFTY 17900 PE 07-APR | E109: Buy | F109: 82.5 | G109: 35 | H109: 102.5 | I109: 130-160 | J109: Profit of Rs.20/- | K109: =H109-F109 -> 20 | L109: 100.00 | M109: =(K109*N109)-L109 -> 900.0 | N109: 50 | O109: Successful | P109: 2022-04-04 | R109: H
A110: 3 | B110: 2022-04-04 | D110: NIFTY 17900 PE 07-APR | E110: Buy | F110: 77 | G110: 35 | H110: 54 | I110: 130-160 | J110: Loss of Rs.23/- | K110: -23 | L110: 100.00 | M110: -1250.0 | N110: 50 | O110: Unsuccessful | P110: 2022-04-04 | R110: H
A111: 4 | B111: 2022-04-05 | D111: BANKNIFTY 38200 PE 07-APR | E111: Buy | F111: 290 | G111: 170 | H111: 375 | I111: 400-450 | J111: Profit of Rs.85/- | K111: =H111-F111 -> 85 | L111: 100.00 | M111: =(K111*N111)-L111 -> 2025.0 | N111: 25 | O111: Successful | P111: 2022-04-05 | R111: H
A112: 5 | B112: 2022-04-05 | D112: BANKNIFTY 38700 CE 07-APR | E112: Buy | F112: 245 | G112: 130 | H112: 305 | I112: 350-400 | J112: Profit of Rs.60/- | K112: 60 | L112: 100.00 | M112: 1400.0 | N112: 25 | O112: Successful | P112: 2022-04-05 | R112: N
A113: 6 | B113: 2022-04-05 | D113: JUBLFOOD 600 CE APR | E113: Buy | F113: 13.5 | G113: 5 | H113: 5 | I113: 20-22 | J113: Loss of Rs.23/- | K113: -8.5 | L113: 100.00 | M113: -5412.5 | N113: 625 | O113: Unsuccessful | P113: 2022-04-04 | R113: N
A114: 7 | B114: 2022-04-06 | D114: NIFTY 17800 CE 07-APR | E114: Buy | F114: 94 | G114: 45 | H114: 114 | I114: 140-170 | J114: Profit of Rs.20/- | K114: =H114-F114 -> 20 | L114: 100.00 | M114: =(K114*N114)-L114 -> 900.0 | N114: 50 | O114: Successful | P114: 2022-04-06 | R114: H
A115: 8 | B115: 2022-04-06 | D115: BANKNIFTY 37800 CE 07-APR | E115: Buy | F115: 155 | G115: 45 | H115: 225 | I115: 300-400 | J115: Profit of Rs.70/- | K115: =H115-F115 -> 70 | L115: 100.00 | M115: =(K115*N115)-L115 -> 1650.0 | N115: 25 | O115: Successful | P115: 2022-04-06 | R115: N
A116: 9 | B116: 2022-04-06 | D116: NIFTY 17800 CE 07-APR | E116: Buy | F116: 73 | G116: 35 | H116: 35 | I116: 140-170 | J116: Loss of Rs.38/- | K116: -38 | L116: 100.00 | M116: -2000.0 | N116: 50 | O116: Unsuccessful | P116: 2022-04-07 | R116: H
A117: 10 | B117: 2022-04-06 | D117: BANKNIFTY 37800 CE 07-APR | E117: Buy | F117: 145 | G117: 45 | H117: 45 | I117: 300-400 | J117: Loss of Rs.100/- | K117: -100 | L117: 100.00 | M117: -2600.0 | N117: 25 | O117: Unsuccessful | P117: 2022-04-07 | R117: N
A118: 11 | B118: 2022-04-07 | D118: NIFTY 17900 CE 13-APR | E118: Buy | F118: 62.5 | G118: 19 | H118: 80 | I118: 100-114 | J118: Profit of Rs.17.5/- | K118: =H118-F118 -> 17.5 | L118: 100.00 | M118: =(K118*N118)-L118 -> 775.0 | N118: 50 | O118: Successful | P118: 2022-04-08 | R118: H
A119: 12 | B119: 2022-04-11 | D119: ACC 2140 PE APR | E119: Buy | F119: 51.5 | G119: 32 | H119: 34 | I119: 75-35 | J119: Loss of Rs.17.5/- | K119: -17.5 | L119: 100.00 | M119: -4475.0 | N119: 250 | O119: Unsuccessful | P119: 2022-04-11 | R119: H
A120: 13 | B120: 2022-04-11 | D120: NIFTY 17800 CE 13-APR | E120: Buy | F120: 71 | G120: 35 | H120: 91 | I120: 110-130 | J120: Profit of Rs.20/- | K120: 20 | L120: 100.00 | M120: 900.0 | N120: 50 | O120: Successful | P120: 2022-04-11 | R120: H
A121: 14 | B121: 2022-04-11 | D121: BANKNIFTY 38000 CE 13-APR | E121: Buy | F121: 255 | G121: 175 | H121: 305 | I121: 350-400 | J121: Profit of Rs.50/- | K121: 50 | L121: 100.00 | M121: 1150.0 | N121: 25 | O121: Successful | P121: 2022-04-11 | R121: H
A122: 15 | B122: 2022-04-11 | D122: LT 1820 CE APR | E122: Buy | F122: 34.5 | G122: 25 | H122: 25.5 | I122: 45-50 | J122: Loss of Rs.9/- | K122: -9 | L122: 100.00 | M122: =(K122*N122)-L122 -> -5275.0 | N122: 575 | O122: Unsuccessful | P122: 2022-04-11 | R122: H
A123: 16 | B123: 2022-04-11 | D123: BANKNIFTY 38000 CE 13-APR | E123: Buy | F123: 235 | G123: 140 | H123: 155 | I123: 350-400 | J123: Loss of Rs.80/- | K123: =H123-F123 -> -80 | L123: 100.00 | M123: =(K123*N123)-L123 -> -2100.0 | N123: 25 | O123: Unsuccessful | P123: 2022-04-11 | R123: N
A124: 17 | B124: 2022-04-11 | D124: NIFTY 17750 CE 13-APR | E124: Buy | F124: 71 | G124: 35 | H124: 35 | I124: 110-130 | J124: Loss of Rs.36/- | K124: =H124-F124 -> -36 | L124: 100.00 | M124: =(K124*N124)-L124 -> -1900.0 | N124: 50 | O124: Unsuccessful | P124: 2022-04-12 | R124: H
A125: 18 | B125: 2022-04-12 | D125: BANKNIFTY 37600 CE 13-APR | E125: Buy | F125: 145 | G125: 45 | H125: 195 | I125: 250-350 | J125: Profit of Rs.50/- | K125: 50 | L125: 100.00 | M125: 1150.0 | N125: 25 | O125: Successful | P125: 2022-04-12 | R125: N
A126: 19 | B126: 2022-04-12 | D126: NIFTY 17550 CE 13-APR | E126: Buy | F126: 48.5 | G126: 18 | H126: 68.5 | I126: 90-100 | J126: Profit of Rs.20/- | K126: 20 | L126: 100.00 | M126: 900.0 | N126: 50 | O126: Successful | P126: 2022-04-12 | R126: H
A127: 20 | B127: 2022-04-13 | D127: NIFTY 17600 PE 13-APR | E127: Buy | F127: 26 | H127: 46 | I127: 50-60 | J127: Profit of Rs.20/- | K127: =H127-F127 -> 20 | L127: 100.00 | M127: =(K127*N127)-L127 -> 900.0 | N127: 50 | O127: Successful | P127: 2022-04-13 | R127: N
A128: 21 | B128: 2022-04-13 | D128: NIFTY 17600 CE 13-APR | E128: Buy | F128: 29 | G128: 0 | H128: 0 | I128: 50-60 | J128: Loss of Rs.23/- | K128: -29 | L128: 100.00 | M128: -1550.0 | N128: 50 | O128: Unsuccessful | P128: 2022-04-13 | R128: N
A129: 22 | B129: 2022-04-13 | D129: BANKNIFTY 38000 CE 21-APR | E129: Buy | F129: 360 | G129: 170 | H129: 170 | I129: 500-600 | J129: Loss of Rs.190/- | K129: -190 | L129: 100.00 | M129: =(130*25-200) -> 3050.0 | N129: 25 | O129: Unsuccessful | P129: 2022-04-18 | R129: H
D130: BANKNIFTY 38000 CE 13 APR | E130: Sell | F130: 60 | H130: 0 | J130: Profit of Rs.60/- | K130: 60 | L130: 100.00 | R130: H
A131: 23 | B131: 2022-04-20 | D131: NIFTY 17100 PE 21-APR | E131: Buy | F131: 72 | G131: 30 | H131: 92 | I131: 110-130 | J131: Profit of Rs.20/- | K131: =H131-F131 -> 20 | L131: 100.00 | M131: =(K131*N131)-L131 -> 900.0 | N131: 50 | O131: Successful | P131: 2022-04-20 | R131: N
A132: 24 | B132: 2022-04-20 | D132: NIFTY 17100 PE 21-APR | E132: Buy | F132: 62 | G132: 20 | H132: 86.5 | I132: 110-130 | J132: Profit of Rs.24.5/- | K132: 24.5 | L132: 100.00 | M132: 1125.0 | N132: 50 | O132: Successful | P132: 2022-04-20 | R132: N
A133: 25 | B133: 2022-04-20 | D133: NIFTY 17100 PE 21-APR | E133: Buy | F133: 52 | G133: 15 | H133: 78.5 | I133: 90-110 | J133: Profit of Rs.26.5/- | K133: 26.5 | L133: 100.00 | M133: 1225.0 | N133: 50 | O133: Successful | P133: 2022-04-20 | R133: N
A134: 26 | B134: 2022-04-20 | D134: BANKNIFTY 36200 CE 21-APR | E134: Buy | F134: 210 | G134: 110 | H134: 265 | I134: 320-400 | J134: Profit of Rs.55/- | K134: 55 | L134: 100.00 | M134: 1275.0 | N134: 25 | O134: Successful | P134: 2022-04-20 | R134: N
A135: 27 | B135: 2022-04-20 | D135: BANKNIFTY 36200 CE 21-APR | E135: Buy | F135: 210 | G135: 110 | H135: 285 | I135: 320-400 | J135: Profit of Rs.75/- | K135: 75 | L135: 100.00 | M135: 1775.0 | N135: 25 | O135: Successful | P135: 2022-04-20 | R135: H
A136: 28 | B136: 2022-04-20 | D136: NIFTY 17100 PE 21-APR | E136: Buy | F136: 46 | G136: 10 | H136: 62 | I136: 90-110 | J136: Profit of Rs.16/- | K136: 16 | L136: 100.00 | M136: 700.0 | N136: 50 | O136: Successful | P136: 2022-04-20 | R136: N
A137: 29 | B137: 2022-04-20 | D137: PIDILITIND 2380 CE APR | E137: Buy | F137: 30 | G137: 12 | H137: 39 | I137: 55-70 | J137: Profit of Rs.9/- | K137: =H137-F137 -> 9 | L137: 100.00 | M137: =(K137*N137)-L137 -> 2150.0 | N137: 250 | O137: Successful | P137: 2022-04-21 | R137: H
A138: 30 | B138: 2022-04-21 | D138: NIFTY 17250 PE 21-APR | E138: Buy | F138: 46.5 | G138: 10 | H138: 10 | I138: 90-110 | J138: Loss of Rs.36.5/- | K138: -36.5 | L138: 100.00 | M138: -1925.0 | N138: 50 | O138: Unsuccessful | P138: 2022-04-21 | R138: H
A139: 31 | B139: 2022-04-21 | D139: NIFTY 17400 PE 21-APR | E139: Buy | F139: 17 | H139: 19 | I139: 50-60 | J139: Profit of Rs.2/- | K139: 2 | L139: 100.00 | M139: 0.0 | N139: 50 | O139: Neutral | P139: 2022-04-21 | R139: H
A144: Techno -Funda (positional)
A145: Sr.no | B145: Date | D145: Company | E145: Rec | F145: Rec Price | G145: Stop Loss*** | H145: Call Closed At | I145: Target | J145: Remark | K145: Profit / Loss per Share/Lot | L145: All charges | M145: Net Gain / Loss % | N145: Status | O145: Closed Date | P145: Market Closing Price
A146: 1 | B146: 2021-10-19 | D146: ITC | E146: Buy<> | F146: 235.25 | G146: 198 | I146: 320-340 | J146: Open | R146: H
A147: 2 | B147: 2022-03-31 | D147: KEC | E147: Buy | F147: 379 | G147: 348 | H147: 406 | I147: 420-450 | J147: Part profit of Rs.27/- | K147: =H147-F147 -> 27 | L147: =(F147*-0.7)/100 -> -2.65 | M147: =(K147+L147)/F147 -> 6.42% | N147: Successful | O147: 2022-04-06 | P147: =VLOOKUP(D147,'MidCap Intra'!B86:C641,2,0) -> 399.75 | R147: H
A148: 3 | B148: 2022-04-07 | D148: JKLAKSHMI | E148: Buy | F148: 445-455 | G148: 398 | I148: 520-560 | J148: Open | R148: H
A150: CLBS = Closing Basis *** | F150: Reinitiated $
A151: Dividend adjusted <> | F151: Revised stoploss # | H151: .................
B153: Intrday Call
A154: Sr.no | B154: Date | D154: Company | E154: Rec | F154: Rec Price | G154: Stop Loss | H154: Call Closed At | I154: Target | J154: Remark | K154: Profit / Loss per Share/Lot | L154: Gain / Loss per Lot | M154: Lot | N154: All charges | O154: Net Gain / Loss % | P154: Status | Q154: Closed Date
B167: Investment Idea
A168: Sr.no | B168: Date | D168: Company | E168: Rec | F168: Rec Price | G168: Point of Review | H168: Close Rate | I168: Target | J168: Remark | K168: Profit / Loss per Share | L168: Gain / Loss % | M168: Status | N168: Closed Date
A169: 1 | B169: 2013-11-01 | D169: L&T Finance Holding | E169: Accu | F169: 82.00 | G169: - | H169: 100 | I169: 100.00 | J169: Target Achieved | K169: =H169-F169 -> 18.00 | L169: =K169/F169 -> 21.95% | M169: Successful | N169: 2016-10-14
A170: 2 | B170: 2014-06-04 | D170: Finolex Inds | E170: Buy | F170: 257.00 | G170: - | H170: 300 | I170: 300.00 | J170: Target Achieved | K170: 43.00 | L170: 16.73% | M170: Successful | N170: 2014-07-02
A171: 3 | B171: 2014-07-08 | D171: JK Cement | E171: Buy | F171: 393.00 | G171: - | H171: 468 | I171: 468.00 | J171: Target Achieved | K171: 75.00 | L171: 19.08% | M171: Successful | N171: 2014-08-12
A172: 4 | B172: 2014-08-06 | D172: Finolex Cables | E172: Buy | F172: 205.00 | G172: - | H172: 275 | I172: 250.00 | J172: Target Achieved | K172: 70.00 | L172: 34.15% | M172: Successful | N172: 2014-11-19
A173: 5 | B173: 2014-09-04 | D173: Exide Inds | E173: Buy | F173: 162.00 | G173: - | H173: 190 | I173: 190.00 | J173: Target Achieved | K173: 28.00 | L173: 17.28% | M173: Successful | N173: 2015-01-02
A174: 6 | B174: 2014-09-04 | D174: Deepak Nitrite | E174: Buy | F174: 75.00 | G174: - | H174: 91.5 | I174: 95-100 | J174: Profit of Rs.16.50/- | K174: 16.50 | L174: 22.00% | M174: Successful | N174: 2014-11-11
A175: 7 | B175: 2014-10-01 | D175: Mercks | E175: Buy | F175: 850.00 | G175: - | H175: 982.5 | I175: 1050.00 | J175: Profit of Rs.132.50/- | K175: 132.50 | L175: 15.59% | M175: Successful | N175: 2015-02-04
A176: 8 | B176: 2014-10-01 | D176: Grindwell Norton | E176: Buy | F176: 475.00 | G176: - | H176: 515 | I176: 600.00 | J176: Profit of Rs.40/- | K176: 40.00 | L176: 8.42% | M176: Successful | N176: 2014-10-27
A177: 9 | B177: 2014-10-01 | D177: Snowman Logistics | E177: Buy | F177: 86.00 | G177: - | H177: 99 | I177: 140.00 | J177: Profit of Rs.13.00/- | K177: 13.00 | L177: 15.12% | M177: Successful | N177: 2014-10-27
A178: 10 | B178: 2014-10-14 | D178: Birla Corp | E178: Buy | F178: 496.60 | G178: - | H178: 621 | I178: 580.00 | J178: Target Achieved | K178: 124.40 | L178: 25.05% | M178: Successful | N178: 2016-08-23
A179: 11 | B179: 2014-10-14 | D179: Ultratech Cem | E179: Buy | F179: 2481.90 | G179: - | H179: 2840 | I179: 2870.00 | J179: Profit of Rs.358.10/- | K179: 358.10 | L179: 14.43% | M179: Successful | N179: 2015-01-13
A180: 12 | B180: 2014-10-16 | D180: Sintex Inds | E180: Buy | F180: 84.50 | G180: - | H180: 93 | I180: 110.00 | J180: Profit of Rs.8.50/- | K180: 8.50 | L180: 10.06% | M180: Successful | N180: 2014-10-27
A181: 13 | B181: 2014-10-16 | D181: HSIL | E181: Buy | F181: 401.00 | G181: - | H181: 428 | I181: 450.00 | J181: Profit of Rs.27.00/- | K181: 27.00 | L181: 6.73% | M181: Successful | N181: 2015-01-16
A182: 14 | B182: 2014-10-16 | D182: Eveready Inds | E182: Buy | F182: 101.00 | G182: - | H182: 112 | I182: 120.00 | J182: Profit of Rs.11.00/- | K182: 11.00 | L182: 10.89% | M182: Successful | N182: 2014-10-27
A183: 15 | B183: 2014-11-11 | D183: Pennar Inds | E183: Buy | F183: 59.00 | G183: - | H183: 76 | I183: 76.00 | J183: Target Achieved | K183: 17.00 | L183: 28.81% | M183: Successful | N183: 2017-10-24
A184: 16 | B184: 2014-11-11 | D184: Snowman Logistics | E184: Buy | F184: 99.00 | G184: - | H184: 120 | I184: 120.00 | J184: Profit of Rs.21/- | K184: 21.00 | L184: 21.21% | M184: Successful | N184: 2014-11-17
A185: 17 | B185: 2014-11-13 | D185: Dharamsi Morarji Chem | E185: Buy | F185: 22.00 | G185: - | H185: 33.55 | I185: 32.00 | J185: Profit of Rs 11.55/- | K185: 11.55 | L185: 52.50% | M185: Successful | N185: 2015-07-03
A186: 18 | B186: 2014-12-03 | D186: Tatachem | E186: Buy | F186: 440.00 | G186: - | H186: 520 | I186: 520.00 | J186: Profit of Rs 80.00/- | K186: 80.00 | L186: 18.18% | M186: Successful | N186: 2015-07-23
A187: 19 | B187: 2014-12-03 | D187: Advanta | E187: Buy | F187: 360.00 | G187: - | H187: 427 | I187: 425.00 | J187: Profit of Rs.67.00/- | K187: 67.00 | L187: 18.61% | M187: Successful | N187: 2015-02-23
A188: 20 | B188: 2015-01-08 | D188: GDL | E188: Buy | F188: 360.00 | G188: - | H188: 455 | I188: 420.00 | J188: Profit of Rs.95.00/- | K188: 95.00 | L188: 26.39% | M188: Successful | N188: 2015-01-20
A189: 21 | B189: 2015-01-08 | D189: NRB Bearing | E189: Buy | F189: 130.00 | H189: 175.5 | I189: 165.00 | J189: Profit of Rs 45.50/- | K189: 45.50 | L189: 35.00% | M189: Successful | N189: 2017-12-19
A190: 22 | B190: 2015-02-05 | D190: GSFC | E190: Accu | F190: 98.00 | H190: 120 | I190: 120.00 | J190: Target Achieved | K190: 22.00 | L190: 22.45% | M190: Successful | N190: 2017-01-18
A191: 23 | B191: 2015-02-05 | D191: Sundrmfast | E191: Accu | F191: 196.00 | H191: 262 | I191: 255.00 | J191: Target Achieved | K191: 66.00 | L191: 33.67% | M191: Successful | N191: 2016-08-17
A192: 24 | B192: 2015-03-04 | D192: GPPL | E192: Accu | F192: 235 | H192: 77.00 | I192: 280-285 | J192: Loss of Rs.158/- | K192: -158.00 | L192: -67.23% | M192: Unsuccessful | N192: 2019-02-26
A193: 25 | B193: 2015-03-04 | D193: ORIENTCEM | E193: Accu | F193: 185.00 | H193: 224 | I193: 220-225 | J193: Target Achieved | K193: 39.00 | L193: 21.08% | M193: Successful | N193: 2016-10-04
A194: 26 | B194: 2015-03-27 | D194: PFS | E194: Accu | F194: 49.5 | H194: 15.85 | I194: 67.00 | J194: Loss of Rs.33.65/- | K194: -33.65 | L194: -68% | M194: Unsuccessful | N194: 2019-06-11
A195: 27 | B195: 2015-03-30 | D195: Walchandnagar Ind Ltd | E195: Accu | F195: 183.50 | H195: 219 | I195: 218.00 | J195: Profit of Rs.35.50/- | K195: 35.50 | L195: 19.35% | M195: Successful | N195: 2015-04-09
A196: 28 | B196: 2015-04-20 | D196: Kalpataru Power Transmission Ltd | E196: Accu | F196: =(227+237)/2 -> 232.00 | H196: 298 | I196: 298.00 | J196: Target Achieved | K196: 66.00 | L196: 28.45% | M196: Successful | N196: 2017-03-29
A197: 29 | B197: 2015-05-04 | D197: Mastek Ltd | E197: Buy | F197: 385.00 | H197: =212.5+331 -> 543.5 | I197: 510.00 | J197: Profit of Rs 158.50/- | K197: 158.50 | L197: 41.17% | M197: Successful | N197: 2015-08-19
A198: 30 | B198: 2015-05-04 | D198: Suprajit Eng | E198: Buy | F198: 115.50 | H198: 146 | I198: 142.00 | J198: Profit of Rs 30.50/- | K198: 30.50 | L198: 26.41% | M198: Successful | N198: 2015-07-17
A199: 31 | B199: 2015-05-27 | D199: TCI | E199: Buy | F199: 237.50 | H199: 279.5 | I199: 278.00 | J199: Target Achieved | K199: 42.00 | L199: 17.68% | M199: Successful | N199: 2015-08-06
A200: 32 | B200: 2015-06-19 | D200: HSIL | E200: Accu | F200: 340.00 | H200: 448 | I200: 448.00 | J200: Target Achieved | K200: 108.00 | L200: 31.76% | M200: Successful | N200: 2017-10-10
A201: 33 | B201: 2015-07-06 | D201: Capital First | E201: Accu | F201: 390.00 | H201: 460 | I201: 460.00 | J201: Target Achieved | K201: 70.00 | L201: 17.95% | M201: Successful | N201: 2016-04-18
A202: 34 | B202: 2015-07-10 | D202: Dolphin OffShore | E202: Accu | F202: 122.5 | H202: 61.00 | I202: 172.00 | J202: Loss of Rs.61.50/- | K202: -61.50 | L202: -50.20% | M202: Unsuccessful | N202: 2018-08-21
A203: 35 | B203: 2015-08-03 | D203: Allcargo logistics | E203: Accu | F203: 297.50 | H203: 350 | I203: 360.00 | J203: Profit of Rs 52.50/- | K203: 52.50 | L203: 17.65% | M203: Successful | N203: 2015-08-16
A204: 36 | B204: 2015-08-03 | D204: Camline Fine | E204: Accu | F204: 115.50 | H204: 149 | I204: 140.00 | J204: Profit of Rs 33.50/- | K204: 33.50 | L204: 29.00% | M204: Successful | N204: 2017-01-05
A205: 37 | B205: 2015-09-04 | D205: TCI | E205: Accu | F205: 226.00 | H205: 292 | I205: 292.00 | J205: Target Achieved | K205: 66.00 | L205: 29.20% | M205: Successful | N205: 2015-10-09
A206: 38 | B206: 2015-09-07 | D206: Kalpataru Power Transmission Ltd | E206: Accu | F206: 232.50 | H206: 312.5 | I206: 310.00 | J206: Target Achieved | K206: 80.00 | L206: 34.41% | M206: Successful | N206: 2017-03-29
A207: 39 | B207: 2015-09-21 | D207: LLOYD ELECTRIC & ENG LTD | E207: Accu | F207: 196.50 | H207: 238 | I207: 238.00 | J207: Target Achieved | K207: 41.50 | L207: 21.12% | M207: Successful | N207: 2015-10-14
A208: 40 | B208: 2015-09-24 | D208: L&T Finance Holding | E208: Accu | F208: 65.00 | H208: 82 | I208: 82.00 | J208: Target Achieved | K208: 17.00 | L208: 26.15% | M208: Successful | N208: 2016-07-27
A209: 41 | B209: 2015-10-14 | D209: KEC International ltd | E209: Accu | F209: 144.00 | H209: 182.5 | I209: 181.00 | J209: Target Achieved | K209: 38.50 | L209: 26.74% | M209: Successful | N209: 2017-03-23
A210: 42 | B210: 2015-10-14 | D210: Gruh Finance | E210: Accu | F210: 264.00 | H210: 311 | I210: 311.00 | J210: Target Achieved | K210: 47.00 | L210: 17.80% | M210: Successful | N210: 2016-08-22
A211: 43 | B211: 2015-11-10 | D211: Pidilitind | E211: Buy | F211: 549.50 | H211: 630 | I211: 630.00 | J211: Target Achieved | K211: 80.50 | L211: 14.65% | M211: Successful | N211: 2016-02-19
A212: 44 | B212: 2015-12-04 | D212: Zensar Technology | E212: Accu | F212: 1027.50 | H212: 1315 | I212: 1250.00 | J212: Target Achieved | K212: 287.50 | L212: 27.98% | M212: Successful | N212: 2018-05-24
A213: 45 | B213: 2015-12-29 | D213: Vinati Organics Ltd | E213: Accu | F213: 465.00 | H213: 540 | I213: 540.00 | J213: Target Achieved | K213: 75.00 | L213: 16.13% | M213: Successful | N213: 2016-06-09
A214: 46 | B214: 2016-01-11 | D214: GSFC | E214: Buy | F214: 81.00 | H214: 110 | I214: 110.00 | J214: Target Achieved | K214: 29.00 | L214: 35.80% | M214: Successful | N214: 2017-01-10
A215: 47 | B215: 2016-01-13 | D215: SSWL | E215: Buy | F215: 417.50 | H215: 547 | I215: 535.00 | J215: Target Achieved | K215: 129.50 | L215: 31.02% | M215: Successful | N215: 2016-07-27
A216: 48 | B216: 2016-02-08 | D216: Persistent System Ltd | E216: Accu | F216: 650.00 | H216: 800 | I216: 800.00 | J216: Target Achieved | K216: 150.00 | L216: 23.08% | M216: Successful | N216: 2018-02-23
A217: 49 | B217: 2016-03-04 | D217: UPL | E217: Accu | F217: 437.50 | H217: 504.5 | I217: 522.00 | J217: Profit of Rs.67/- | K217: 67.00 | L217: 15.31% | M217: Successful | N217: 2016-04-20
A218: 50 | B218: 2016-03-09 | D218: Ashoka Buildcon Ltd | E218: Accu | F218: 189.50 | H218: 218 | I218: 218.00 | J218: Target Achieved | K218: 28.50 | L218: 15.04% | M218: Successful | N218: 2017-10-26
A219: 51 | B219: 2016-04-11 | D219: PTC INDIA FIN SERV LTD | E219: Accu | F219: 36.5 | H219: 15.85 | I219: 60.00 | J219: Loss of Rs.20.65/- | K219: -20.65 | L219: -56.58% | M219: Unsuccessful | N219: 2019-06-11
A220: 52 | B220: 2016-04-12 | D220: CAMLINFINE $ | E220: Accu | F220: 93.00 | H220: 149 | I220: 140.00 | J220: Profit of Rs 56/- | K220: 56.00 | L220: 60.22% | M220: Successful | N220: 2017-01-05
A221: 53 | B221: 2016-04-12 | D221: Greaves Cotton Ltd. | E221: Accu | F221: 130.00 | H221: 150 | I221: 150-155 | J221: Target Achieved | K221: 20.00 | L221: 15.38% | M221: Successful | N221: 2016-07-13
A222: 54 | B222: 2016-04-13 | D222: DHFL | E222: Accu | F222: 196.00 | H222: 299 | I222: 299.00 | J222: Target Achieved | K222: 103.00 | L222: 52.55% | M222: Successful | N222: 2016-09-07
A223: 55 | B223: 2016-04-13 | D223: Magma | E223: Accu | F223: 88.00 | H223: 103 | I223: 103.00 | J223: Target Achieved | K223: 15.00 | L223: 17.05% | M223: Successful | N223: 2016-06-09
A224: 56 | B224: 2016-05-02 | D224: KEC International ltd $ | E224: Accu | F224: 127.50 | H224: 148 | I224: 148-150 | J224: Target Achieved | K224: =H224-F224 -> 20.50 | L224: =K224/F224 -> 16.08% | M224: Successful | N224: 2016-07-13
A225: 57 | B225: 2016-05-03 | D225: Mindtree | E225: Accu | F225: 675.00 | H225: 815 | I225: 790-800 | J225: Target Achieved | K225: =H225-F225 -> 140.00 | L225: =K225/F225 -> 20.74% | M225: Successful | N225: 2018-02-23
A226: 58 | B226: 2016-06-01 | D226: Atulauto | E226: Accu | F226: 500 | H226: 232.50 | I226: 565-570 | J226: Loss of Rs.267.50 /- | K226: =H226-F226 -> -267.50 | L226: =K226/F226 -> -53.50% | M226: Unsuccessful | N226: 2019-09-27
A227: 59 | B227: 2016-06-06 | D227: TRITURBINE | E227: Accu | F227: 110.00 | H227: 126.5 | I227: 125.00 | J227: Profit of Rs.16.50/- | K227: =H227-F227 -> 16.50 | L227: =K227/F227 -> 15.00% | M227: Successful | N227: 2016-07-01
A228: 60 | B228: 2016-06-17 | D228: Pennar Industries Ltd | E228: Accu | F228: 44.00 | H228: 69.5 | I228: 69.50 | J228: Profit of Rs.25.50/- | K228: =H228-F228 -> 25.50 | L228: =K228/F228 -> 57.95% | M228: Successful | N228: 2017-08-30
A229: 61 | B229: 2016-06-28 | D229: EVEREADY | E229: Accu | F229: 262.50 | H229: 340 | I229: 333.00 | J229: Profit of Rs.77.50/- | K229: 77.50 | L229: 29.52% | M229: Successful | N229: 2017-10-09
A230: 62 | B230: 2016-06-28 | D230: FIEMIND | E230: Accu | F230: 840.00 | H230: 1230 | I230: 1230.00 | J230: Target Achieved | K230: 390.00 | L230: 46.43% | M230: Successful | N230: 2016-10-06
A231: 63 | B231: 2016-07-05 | D231: Bajaj Corp Ltd | E231: Accu | F231: 395 | H231: =(468.5+342.5)/2 -> 405.50 | I231: 510.00 | J231: Profit of Rs.10.50/- | K231: =H231-F231 -> 10.50 | L231: =K231/F231 -> 3% | M231: Neutral | N231: 2019-05-21
A232: 64 | B232: 2016-08-02 | D232: GPPL $ | E232: Buy | F232: =169.5-12.8 -> 156.7 | H232: 77.00 | I232: 198-200 | J232: Loss of Rs.79.7/- | K232: -79.70 | L232: -50.86% | M232: Unsuccessful | N232: 2019-02-26
A233: 65 | B233: 2016-08-04 | D233: WONDERLA HOLIDAYS LTD | E233: Accu | F233: 400 | H233: 305.00 | I233: 475.00 | J233: Loss of Rs.95/- | K233: -95.00 | L233: -23.75% | M233: Unsuccessful | N233: 2019-05-21
A234: 66 | B234: 2016-08-11 | D234: CAMLINFINE | E234: Accu | F234: 86.50 | H234: 130 | I234: 130.00 | J234: Profit of Rs.43.50/- | K234: 43.50 | L234: 50.29% | M234: Successful | N234: 2017-12-22
... 111 more rows
